Payment Date,Transaction Number,Net Amount,Supplier (Beneficiary) Name,Local Supplier Internal Reference,Directorate / Service Where Expenditure Incurred,Service Category Label,Service Category URI,SeRCOP Expenditure Category,SeRCOP Expenditure Code,Purpose of Spend,SeRCOP Detailed Expenditure Code,Capital/Revenue,Procurement Classification
27-Feb-2018,7004732,19.98,POWER TOOL CENTRE,396397,"Health, Education, Care and Safeguarding",Children's & Education Services,103,Premises-Related Expenditure,502,"Repairs, alterations and maintenance of buildings",5005,Revenue,01.TOOLS & EQUIPMENT
27-Feb-2018,7004733,34.30,STAMPS 4U,396395,Housing Revenue Account,Housing Revenue Account,N/A,Supplies and Services,504,Miscellaneous Expenses,5034,Revenue,STAT SUNDRIES
27-Feb-2018,7004734,39.00,UK CONSTRUCTION SAFE,396394,Housing Revenue Account,Housing Revenue Account,N/A,Employees,501,Indirect Employee Expenses,5002,Revenue,18.CONFERENCING
27-Feb-2018,7004734,39.00,UK CONSTRUCTION SAFE,396394,Housing Revenue Account,Housing Revenue Account,N/A,Employees,501,Indirect Employee Expenses,5002,Revenue,18.CONFERENCING
27-Feb-2018,7004735,71.80,LAIDLAW DIRECT,396393,"Environment, Housing & Leisure",Cultural & Related Services,104,Supplies and Services,504,Equipment,5023,Revenue,FIRE EQUIP
27-Feb-2018,7004736,34.50,BACKCS,396392,"Health, Education, Care and Safeguarding",Children's & Education Services,103,Supplies and Services,504,"Printing, Stationery and General Office Expenses",5026,Revenue,00.NON INFLUENCIBLE
27-Feb-2018,7004737,27.00,WORLDBOOKS,396391,"Health, Education, Care and Safeguarding",Children's & Education Services,103,Supplies and Services,504,Equipment,5023,Revenue,ADV IMAGE
27-Feb-2018,7004738,944.87,WCF FUELS NRTH WES,396390,"Health, Education, Care and Safeguarding",Children's & Education Services,103,Premises-Related Expenditure,502,Energy Costs,5006,Revenue,28.FUEL
27-Feb-2018,7004739,145.00,UNI CAM ESALES,396389,"Health, Education, Care and Safeguarding",Children's & Education Services,103,Employees,501,Indirect Employee Expenses,5002,Revenue,18.CONFERENCING
27-Feb-2018,7004740,135.13,TRY BOOKING,396388,"Health, Education, Care and Safeguarding",Children's & Education Services,103,Supplies and Services,504,Miscellaneous Expenses,5034,Revenue,11.CRIME & DISORDER
27-Feb-2018,7004741,83.00,TRFSA   THOMSONREUTERS,396387,Law & Governance,Central Services,102,Supplies and Services,504,"Printing, Stationery and General Office Expenses",5026,Revenue,18.BOOKS & PUBLICATIONS
27-Feb-2018,7004742,17.24,TRADESPARKY LTD STONE,396386,"Health, Education, Care and Safeguarding",Children's & Education Services,103,Premises-Related Expenditure,502,"Repairs, alterations and maintenance of buildings",5005,Revenue,01.ELECTRICAL
27-Feb-2018,7004743,20.99,TIME.LY,396385,"Health, Education, Care and Safeguarding",Children's & Education Services,103,Supplies and Services,504,Communications & Computing,5028,Revenue,15.SOFTWARE
27-Feb-2018,7004744,45.78,TAYNA LTD,396384,"Health, Education, Care and Safeguarding",Children's & Education Services,103,Supplies and Services,504,Miscellaneous Expenses,5034,Revenue,28.VEHICLE PARTS
27-Feb-2018,7004745,28.26,STAGE DEPOT,396383,"Health, Education, Care and Safeguarding",Children's & Education Services,103,Supplies and Services,504,Miscellaneous Expenses,5034,Revenue,NULL
27-Feb-2018,7004746,120.00,ST OSWALDS,396380,"Health, Education, Care and Safeguarding",Children's & Education Services,103,Third Party Payments,505,Other Establishments,5041,Revenue,10.HOUSEHOLD
27-Feb-2018,7004747,94.37,PHOTO STUFF LTD,383873,"Environment, Housing & Leisure",Cultural & Related Services,104,Supplies and Services,504,Equipment,5023,Revenue,16.ADVERTISING
27-Feb-2018,7004748,497.46,NORTHERN POWERGRID (NORTHEAST) LTD,388693,Housing Revenue Account,Housing Revenue Account,N/A,Supplies and Services,504,Miscellaneous Expenses,5034,Revenue,27.ELECTRIC
27-Feb-2018,7004749,359.60,NORTH EAST CATER HIRE,396379,Commissioning & Investment,Children's & Education Services,103,Supplies and Services,504,Equipment,5023,Revenue,03.GROCERIES & PROVISIONS
27-Feb-2018,7004750,120.00,MOUNTAIN TRAINING UK,368016,"Health, Education, Care and Safeguarding",Children's & Education Services,103,Supplies and Services,504,Miscellaneous Expenses,5034,Revenue,18.CONFERENCING
27-Feb-2018,7004751,28.55,LAKES AND DALES,396377,"Health, Education, Care and Safeguarding",Children's & Education Services,103,Third Party Payments,505,Other Establishments,5041,Revenue,03.GROCERIES & PROVISIONS
27-Feb-2018,7004752,271.67,HOMEAWAY,396376,"Health, Education, Care and Safeguarding",Children's & Education Services,103,Supplies and Services,504,Miscellaneous Expenses,5034,Revenue,HR ACCOMM
27-Feb-2018,7004753,148.75,EPICURUS,376078,Commissioning & Investment,Children's & Education Services,103,Supplies and Services,504,Equipment,5023,Revenue,03.CROCKERY
27-Feb-2018,7004754,111.25,EB  NEWCASTLE UPON TYN,396365,"Health, Education, Care and Safeguarding",Children's & Education Services,103,Employees,501,Indirect Employee Expenses,5002,Revenue,18.CONFERENCING
27-Feb-2018,7004755,46.29,EB  ABUSED EXPLOITED A,396364,"Health, Education, Care and Safeguarding",Adult Social Care,101,Supplies and Services,504,Expenses,5030,Revenue,18.CONFERENCING
27-Feb-2018,7004756,18.12,CARRVILLE SERVICE,396363,"Environment, Housing & Leisure",Cultural & Related Services,104,Premises-Related Expenditure,502,Energy Costs,5006,Revenue,28.FUEL
27-Feb-2018,7004757,66.67,BRAMWELLS,396362,Law & Governance,Central Services,102,Supplies and Services,504,Expenses,5030,Revenue,16.EVENTS & PROMOTIONS
27-Feb-2018,7004758,87.50,ALCATRAZ GUEST HOUSE,387483,"Environment, Housing & Leisure",Housing Services,108,Third Party Payments,505,Private Contractors,5042,Revenue,22.SUPPORT SERVICES
27-Feb-2018,7004758,29.17,ALCATRAZ GUEST HOUSE,387483,"Environment, Housing & Leisure",Housing Services,108,Third Party Payments,505,Private Contractors,5042,Revenue,22.SUPPORT SERVICES
27-Feb-2018,7004759,104.57,SAFESTORE LTD,385223,"Health, Education, Care and Safeguarding",Children's & Education Services,103,Third Party Payments,505,Other Establishments,5041,Revenue,18.REMOVALS
27-Feb-2018,7004760,24.96,ADOBE  CREATIVE CLOUD,395909,"Health, Education, Care and Safeguarding",Children's & Education Services,103,Supplies and Services,504,Communications & Computing,5028,Revenue,15.SOFTWARE
27-Feb-2018,7004761,13.96,WELL,395516,Housing Revenue Account,Adult Social Care,101,Supplies and Services,504,Equipment,5023,Revenue,NULL
27-Feb-2018,7004762,20.20,UTILITA ENERGY LIMITED,395514,"Health, Education, Care and Safeguarding",Children's & Education Services,103,Third Party Payments,505,Other Establishments,5041,Revenue,27.GAS
27-Feb-2018,7004763,229.95,COMPLETE CARE SHOP,395383,"Health, Education, Care and Safeguarding",Adult Social Care,101,Supplies and Services,504,Equipment,5023,Revenue,SOCIAL FITTED
27-Feb-2018,7004764,27.80,STAGECOACH SERVICES LIMITED,382363,"Health, Education, Care and Safeguarding",Children's & Education Services,103,Supplies and Services,504,Expenses,5030,Revenue,18.TRAVEL
27-Feb-2018,7004764,22.80,STAGECOACH SERVICES LIMITED,382363,"Health, Education, Care and Safeguarding",Children's & Education Services,103,Supplies and Services,504,Expenses,5030,Revenue,18.TRAVEL
27-Feb-2018,7004764,12.00,STAGECOACH SERVICES LIMITED,382363,"Health, Education, Care and Safeguarding",Children's & Education Services,103,Supplies and Services,504,Expenses,5030,Revenue,18.TRAVEL
27-Feb-2018,7004765,8.99,UNLIMITED WEBHOSTING,394828,"Health, Education, Care and Safeguarding",Children's & Education Services,103,Supplies and Services,504,Communications & Computing,5028,Revenue,ICT WEB
27-Feb-2018,7004766,4.94,UK HOSTING,394827,Corporate Strategy,Central Services,102,Supplies and Services,504,"Printing, Stationery and General Office Expenses",5026,Revenue,ICT WEB
27-Feb-2018,7004767,146.25,TAYLOR FOODS,394743,Commissioning & Investment,Children's & Education Services,103,Supplies and Services,504,Equipment,5023,Revenue,03.GROCERIES & PROVISIONS
27-Feb-2018,7004767,258.25,TAYLOR FOODS,394743,Commissioning & Investment,Children's & Education Services,103,Supplies and Services,504,Catering,5024,Revenue,03.GROCERIES & PROVISIONS
27-Feb-2018,7004767,29.25,TAYLOR FOODS,394743,Commissioning & Investment,Children's & Education Services,103,Supplies and Services,504,Equipment,5023,Revenue,03.GROCERIES & PROVISIONS
27-Feb-2018,7004767,85.94,TAYLOR FOODS,394743,Commissioning & Investment,Children's & Education Services,103,Supplies and Services,504,Equipment,5023,Revenue,03.GROCERIES & PROVISIONS
27-Feb-2018,7004767,16.49,TAYLOR FOODS,394743,Commissioning & Investment,Children's & Education Services,103,Supplies and Services,504,Catering,5024,Revenue,03.GROCERIES & PROVISIONS
27-Feb-2018,7004767,21.95,TAYLOR FOODS,394743,Commissioning & Investment,Children's & Education Services,103,Supplies and Services,504,Catering,5024,Revenue,03.GROCERIES & PROVISIONS
27-Feb-2018,7004767,67.87,TAYLOR FOODS,394743,Commissioning & Investment,Children's & Education Services,103,Supplies and Services,504,Catering,5024,Revenue,03.GROCERIES & PROVISIONS
27-Feb-2018,7004767,446.29,TAYLOR FOODS,394743,Commissioning & Investment,Children's & Education Services,103,Supplies and Services,504,Equipment,5023,Revenue,03.GROCERIES & PROVISIONS
27-Feb-2018,7004767,101.50,TAYLOR FOODS,394743,Commissioning & Investment,Children's & Education Services,103,Supplies and Services,504,Catering,5024,Revenue,03.GROCERIES & PROVISIONS
27-Feb-2018,7004767,200.44,TAYLOR FOODS,394743,Commissioning & Investment,Children's & Education Services,103,Supplies and Services,504,Catering,5024,Revenue,03.GROCERIES & PROVISIONS
27-Feb-2018,7004767,68.87,TAYLOR FOODS,394743,Commissioning & Investment,Children's & Education Services,103,Supplies and Services,504,Equipment,5023,Revenue,03.GROCERIES & PROVISIONS
27-Feb-2018,7004767,115.24,TAYLOR FOODS,394743,Commissioning & Investment,Children's & Education Services,103,Supplies and Services,504,Catering,5024,Revenue,03.GROCERIES & PROVISIONS
27-Feb-2018,7004767,29.25,TAYLOR FOODS,394743,Commissioning & Investment,Children's & Education Services,103,Supplies and Services,504,Equipment,5023,Revenue,03.GROCERIES & PROVISIONS
27-Feb-2018,7004768,85.40,TRAVEL.CLOUD,394406,"Health, Education, Care and Safeguarding",Children's & Education Services,103,Supplies and Services,504,Expenses,5030,Revenue,18.TRAVEL
27-Feb-2018,7004768,81.64,TRAVEL.CLOUD,394406,"Health, Education, Care and Safeguarding",Children's & Education Services,103,Supplies and Services,504,Expenses,5030,Revenue,18.TRAVEL
27-Feb-2018,7004768,79.85,TRAVEL.CLOUD,394406,Commissioning & Investment,Children's & Education Services,103,Supplies and Services,504,Expenses,5030,Revenue,18.TRAVEL
27-Feb-2018,7004768,453.68,TRAVEL.CLOUD,394406,"Health, Education, Care and Safeguarding",Children's & Education Services,103,Supplies and Services,504,Expenses,5030,Revenue,18.TRAVEL
27-Feb-2018,7004768,173.16,TRAVEL.CLOUD,394406,Commissioning & Investment,Children's & Education Services,103,Supplies and Services,504,Expenses,5030,Revenue,18.TRAVEL
27-Feb-2018,7004768,0.78,TRAVEL.CLOUD,394406,"Health, Education, Care and Safeguarding",Children's & Education Services,103,Supplies and Services,504,Expenses,5030,Revenue,18.TRAVEL
27-Feb-2018,7004768,30.00,TRAVEL.CLOUD,394406,"Health, Education, Care and Safeguarding",Children's & Education Services,103,Supplies and Services,504,Expenses,5030,Revenue,18.TRAVEL
27-Feb-2018,7004768,226.00,TRAVEL.CLOUD,394406,"Health, Education, Care and Safeguarding",Children's & Education Services,103,Supplies and Services,504,Expenses,5030,Revenue,18.TRAVEL
27-Feb-2018,7004768,67.40,TRAVEL.CLOUD,394406,"Health, Education, Care and Safeguarding",Children's & Education Services,103,Supplies and Services,504,Expenses,5030,Revenue,18.TRAVEL
27-Feb-2018,7004768,223.41,TRAVEL.CLOUD,394406,"Health, Education, Care and Safeguarding",Children's & Education Services,103,Supplies and Services,504,Expenses,5030,Revenue,18.TRAVEL
27-Feb-2018,7004768,151.54,TRAVEL.CLOUD,394406,"Health, Education, Care and Safeguarding",Children's & Education Services,103,Supplies and Services,504,Expenses,5030,Revenue,18.TRAVEL
27-Feb-2018,7004768,78.55,TRAVEL.CLOUD,394406,Commissioning & Investment,Children's & Education Services,103,Supplies and Services,504,Expenses,5030,Revenue,18.TRAVEL
27-Feb-2018,7004768,90.31,TRAVEL.CLOUD,394406,"Health, Education, Care and Safeguarding",Children's & Education Services,103,Supplies and Services,504,Expenses,5030,Revenue,18.TRAVEL
27-Feb-2018,7004768,119.25,TRAVEL.CLOUD,394406,"Health, Education, Care and Safeguarding",Children's & Education Services,103,Supplies and Services,504,Expenses,5030,Revenue,18.TRAVEL
27-Feb-2018,7004768,174.56,TRAVEL.CLOUD,394406,"Health, Education, Care and Safeguarding",Children's & Education Services,103,Supplies and Services,504,Expenses,5030,Revenue,18.TRAVEL
27-Feb-2018,7004768,103.52,TRAVEL.CLOUD,394406,Commissioning & Investment,Children's & Education Services,103,Supplies and Services,504,Equipment,5023,Revenue,18.TRAVEL
27-Feb-2018,7004769,19.50,CITB-CONSTRUCTION SKILLS,363260,Housing Revenue Account,Housing Revenue Account,N/A,Employees,501,Indirect Employee Expenses,5002,Revenue,18.CONFERENCING
27-Feb-2018,7004770,85.04,MOJO HELPDESK,394317,"Health, Education, Care and Safeguarding",Children's & Education Services,103,Supplies and Services,504,Communications & Computing,5028,Revenue,15.SOFTWARE
27-Feb-2018,7004771,50.00,EDUCATION & TRAINING,394258,"Health, Education, Care and Safeguarding",Children's & Education Services,103,Supplies and Services,504,Equipment,5023,Revenue,18.CONFERENCING
27-Feb-2018,7004771,25.00,EDUCATION & TRAINING,394258,"Health, Education, Care and Safeguarding",Children's & Education Services,103,Supplies and Services,504,Equipment,5023,Revenue,18.CONFERENCING
27-Feb-2018,7004771,25.00,EDUCATION & TRAINING,394258,"Health, Education, Care and Safeguarding",Children's & Education Services,103,Supplies and Services,504,Equipment,5023,Revenue,18.CONFERENCING
27-Feb-2018,7004772,64.42,MEDISAVE UK LTD,373457,"Health, Education, Care and Safeguarding",Children's & Education Services,103,Supplies and Services,504,Equipment,5023,Revenue,11.CRIME & DISORDER
27-Feb-2018,7004773,11.73,TOOLSTATION LTD,393689,"Environment, Housing & Leisure",Cultural & Related Services,104,Supplies and Services,504,Equipment,5023,Revenue,13.EQUIPMENT
27-Feb-2018,7004774,32.72,FACEBOOK,393228,"Environment, Housing & Leisure",Cultural & Related Services,104,Supplies and Services,504,"Printing, Stationery and General Office Expenses",5026,Revenue,16.ADVERTISING
27-Feb-2018,7004774,199.94,FACEBOOK,393228,Corporate Strategy,Central Services,102,Supplies and Services,504,"Printing, Stationery and General Office Expenses",5026,Revenue,16.ADVERTISING
27-Feb-2018,7004774,0.62,FACEBOOK,393228,"Environment, Housing & Leisure",Cultural & Related Services,104,Supplies and Services,504,"Printing, Stationery and General Office Expenses",5026,Revenue,16.ADVERTISING
27-Feb-2018,7004774,99.87,FACEBOOK,393228,Corporate Strategy,Central Services,102,Supplies and Services,504,"Printing, Stationery and General Office Expenses",5026,Revenue,16.ADVERTISING
27-Feb-2018,7004774,8.95,FACEBOOK,393228,"Environment, Housing & Leisure",Cultural & Related Services,104,Supplies and Services,504,"Printing, Stationery and General Office Expenses",5026,Revenue,16.ADVERTISING
27-Feb-2018,7004774,7.57,FACEBOOK,393228,"Health, Education, Care and Safeguarding",Children's & Education Services,103,Supplies and Services,504,Equipment,5023,Revenue,16.ADVERTISING
27-Feb-2018,7004775,13.00,DISCLOSURE & BARRING,393127,"Health, Education, Care and Safeguarding",Children's & Education Services,103,Third Party Payments,505,Other Establishments,5041,Revenue,18.SUBSCRIPTIONS
27-Feb-2018,7004776,86.25,LOVE2SHOP.,392930,Corporate Strategy,Children's & Education Services,103,Supplies and Services,504,Expenses,5030,Revenue,SOCIAL LEAVING CARE
27-Feb-2018,7004777,57.50,COFFEE SUPPLIES DIRECT,392803,Corporate Strategy,Central Services,102,Supplies and Services,504,Catering,5024,Revenue,03.GROCERIES & PROVISIONS
27-Feb-2018,7004778,26.67,TK MAXX,392657,"Health, Education, Care and Safeguarding",Children's & Education Services,103,Supplies and Services,504,Miscellaneous Expenses,5034,Revenue,10.HOUSEHOLD
27-Feb-2018,7004778,113.34,TK MAXX,392657,"Health, Education, Care and Safeguarding",Capital,Capital,Supplies and Services,504,Equipment,5023,Revenue,10.HOUSEHOLD
27-Feb-2018,7004779,37.49,BUY A BATTERY,392542,"Environment, Housing & Leisure",Cultural & Related Services,104,Employees,501,Indirect Employee Expenses,5002,Revenue,01.ELECTRICAL
27-Feb-2018,7004780,157.50,AO RETAIL LIMITED,392123,"Health, Education, Care and Safeguarding",Children's & Education Services,103,Third Party Payments,505,Other Establishments,5041,Revenue,03.CROCKERY
27-Feb-2018,7004781,118.15,THE CATERER,392008,Commissioning & Investment,Children's & Education Services,103,Third Party Payments,505,Private Contractors,5042,Revenue,18.SUBSCRIPTIONS
27-Feb-2018,7004782,952.49,ON A ROLL SANDWICH COMPANY,391893,Commissioning & Investment,Children's & Education Services,103,Supplies and Services,504,Equipment,5023,Revenue,03.GROCERIES & PROVISIONS
27-Feb-2018,7004782,392.86,ON A ROLL SANDWICH COMPANY,391893,Commissioning & Investment,Children's & Education Services,103,Supplies and Services,504,Equipment,5023,Revenue,03.GROCERIES & PROVISIONS
27-Feb-2018,7004782,122.49,ON A ROLL SANDWICH COMPANY,391893,Commissioning & Investment,Children's & Education Services,103,Supplies and Services,504,Equipment,5023,Revenue,03.GROCERIES & PROVISIONS
27-Feb-2018,7004782,98.14,ON A ROLL SANDWICH COMPANY,391893,Commissioning & Investment,Children's & Education Services,103,Supplies and Services,504,Equipment,5023,Revenue,03.GROCERIES & PROVISIONS
27-Feb-2018,7004782,487.08,ON A ROLL SANDWICH COMPANY,391893,Commissioning & Investment,Children's & Education Services,103,Supplies and Services,504,Equipment,5023,Revenue,03.GROCERIES & PROVISIONS
27-Feb-2018,7004782,875.63,ON A ROLL SANDWICH COMPANY,391893,Commissioning & Investment,Children's & Education Services,103,Supplies and Services,504,Equipment,5023,Revenue,03.GROCERIES & PROVISIONS
27-Feb-2018,7004782,147.88,ON A ROLL SANDWICH COMPANY,391893,Commissioning & Investment,Children's & Education Services,103,Supplies and Services,504,Equipment,5023,Revenue,03.GROCERIES & PROVISIONS
27-Feb-2018,7004782,977.15,ON A ROLL SANDWICH COMPANY,391893,Commissioning & Investment,Children's & Education Services,103,Supplies and Services,504,Equipment,5023,Revenue,03.GROCERIES & PROVISIONS
27-Feb-2018,7004782,217.30,ON A ROLL SANDWICH COMPANY,391893,Commissioning & Investment,Children's & Education Services,103,Supplies and Services,504,Equipment,5023,Revenue,03.GROCERIES & PROVISIONS
27-Feb-2018,7004782,522.82,ON A ROLL SANDWICH COMPANY,391893,Commissioning & Investment,Children's & Education Services,103,Supplies and Services,504,Equipment,5023,Revenue,03.GROCERIES & PROVISIONS
27-Feb-2018,7004782,470.52,ON A ROLL SANDWICH COMPANY,391893,Commissioning & Investment,Children's & Education Services,103,Supplies and Services,504,Equipment,5023,Revenue,03.GROCERIES & PROVISIONS
27-Feb-2018,7004782,83.81,ON A ROLL SANDWICH COMPANY,391893,Commissioning & Investment,Children's & Education Services,103,Supplies and Services,504,Equipment,5023,Revenue,03.GROCERIES & PROVISIONS
27-Feb-2018,7004782,781.17,ON A ROLL SANDWICH COMPANY,391893,Commissioning & Investment,Children's & Education Services,103,Supplies and Services,504,Equipment,5023,Revenue,03.GROCERIES & PROVISIONS
27-Feb-2018,7004782,12.07,ON A ROLL SANDWICH COMPANY,391893,Commissioning & Investment,Children's & Education Services,103,Supplies and Services,504,Equipment,5023,Revenue,03.GROCERIES & PROVISIONS
27-Feb-2018,7004782,472.76,ON A ROLL SANDWICH COMPANY,391893,Commissioning & Investment,Children's & Education Services,103,Supplies and Services,504,Equipment,5023,Revenue,03.GROCERIES & PROVISIONS
27-Feb-2018,7004782,578.86,ON A ROLL SANDWICH COMPANY,391893,Commissioning & Investment,Children's & Education Services,103,Supplies and Services,504,Equipment,5023,Revenue,03.GROCERIES & PROVISIONS
27-Feb-2018,7004782,781.17,ON A ROLL SANDWICH COMPANY,391893,Commissioning & Investment,Children's & Education Services,103,Supplies and Services,504,Equipment,5023,Revenue,03.GROCERIES & PROVISIONS
27-Feb-2018,7004782,497.43,ON A ROLL SANDWICH COMPANY,391893,Commissioning & Investment,Children's & Education Services,103,Supplies and Services,504,Equipment,5023,Revenue,03.GROCERIES & PROVISIONS
27-Feb-2018,7004782,158.80,ON A ROLL SANDWICH COMPANY,391893,Commissioning & Investment,Children's & Education Services,103,Supplies and Services,504,Equipment,5023,Revenue,03.GROCERIES & PROVISIONS
27-Feb-2018,7004782,1020.76,ON A ROLL SANDWICH COMPANY,391893,Commissioning & Investment,Children's & Education Services,103,Supplies and Services,504,Equipment,5023,Revenue,03.GROCERIES & PROVISIONS
27-Feb-2018,7004782,161.33,ON A ROLL SANDWICH COMPANY,391893,Commissioning & Investment,Children's & Education Services,103,Supplies and Services,504,Equipment,5023,Revenue,03.GROCERIES & PROVISIONS
27-Feb-2018,7004782,518.51,ON A ROLL SANDWICH COMPANY,391893,Commissioning & Investment,Children's & Education Services,103,Supplies and Services,504,Equipment,5023,Revenue,03.GROCERIES & PROVISIONS
27-Feb-2018,7004782,106.03,ON A ROLL SANDWICH COMPANY,391893,Commissioning & Investment,Children's & Education Services,103,Supplies and Services,504,Equipment,5023,Revenue,03.GROCERIES & PROVISIONS
27-Feb-2018,7004782,930.13,ON A ROLL SANDWICH COMPANY,391893,Commissioning & Investment,Children's & Education Services,103,Supplies and Services,504,Equipment,5023,Revenue,03.GROCERIES & PROVISIONS
27-Feb-2018,7004782,411.57,ON A ROLL SANDWICH COMPANY,391893,Commissioning & Investment,Children's & Education Services,103,Supplies and Services,504,Equipment,5023,Revenue,03.GROCERIES & PROVISIONS
27-Feb-2018,7004782,500.51,ON A ROLL SANDWICH COMPANY,391893,Commissioning & Investment,Children's & Education Services,103,Supplies and Services,504,Equipment,5023,Revenue,03.GROCERIES & PROVISIONS
27-Feb-2018,7004782,166.43,ON A ROLL SANDWICH COMPANY,391893,Commissioning & Investment,Children's & Education Services,103,Supplies and Services,504,Equipment,5023,Revenue,03.GROCERIES & PROVISIONS
27-Feb-2018,7004782,871.25,ON A ROLL SANDWICH COMPANY,391893,Commissioning & Investment,Children's & Education Services,103,Supplies and Services,504,Equipment,5023,Revenue,03.GROCERIES & PROVISIONS
27-Feb-2018,7004782,412.32,ON A ROLL SANDWICH COMPANY,391893,Commissioning & Investment,Children's & Education Services,103,Supplies and Services,504,Equipment,5023,Revenue,03.GROCERIES & PROVISIONS
27-Feb-2018,7004782,566.11,ON A ROLL SANDWICH COMPANY,391893,Commissioning & Investment,Children's & Education Services,103,Supplies and Services,504,Equipment,5023,Revenue,03.GROCERIES & PROVISIONS
27-Feb-2018,7004782,83.81,ON A ROLL SANDWICH COMPANY,391893,Commissioning & Investment,Children's & Education Services,103,Supplies and Services,504,Equipment,5023,Revenue,03.GROCERIES & PROVISIONS
27-Feb-2018,7004782,449.78,ON A ROLL SANDWICH COMPANY,391893,Commissioning & Investment,Children's & Education Services,103,Supplies and Services,504,Equipment,5023,Revenue,03.GROCERIES & PROVISIONS
27-Feb-2018,7004782,429.00,ON A ROLL SANDWICH COMPANY,391893,Commissioning & Investment,Children's & Education Services,103,Supplies and Services,504,Equipment,5023,Revenue,03.GROCERIES & PROVISIONS
27-Feb-2018,7004782,24.14,ON A ROLL SANDWICH COMPANY,391893,Commissioning & Investment,Children's & Education Services,103,Supplies and Services,504,Equipment,5023,Revenue,03.GROCERIES & PROVISIONS
27-Feb-2018,7004782,727.57,ON A ROLL SANDWICH COMPANY,391893,Commissioning & Investment,Children's & Education Services,103,Supplies and Services,504,Equipment,5023,Revenue,03.GROCERIES & PROVISIONS
27-Feb-2018,7004782,212.80,ON A ROLL SANDWICH COMPANY,391893,Commissioning & Investment,Children's & Education Services,103,Supplies and Services,504,Equipment,5023,Revenue,03.GROCERIES & PROVISIONS
27-Feb-2018,7004782,212.80,ON A ROLL SANDWICH COMPANY,391893,Commissioning & Investment,Children's & Education Services,103,Supplies and Services,504,Equipment,5023,Revenue,03.GROCERIES & PROVISIONS
27-Feb-2018,7004782,767.77,ON A ROLL SANDWICH COMPANY,391893,Commissioning & Investment,Children's & Education Services,103,Supplies and Services,504,Equipment,5023,Revenue,03.GROCERIES & PROVISIONS
27-Feb-2018,7004782,930.13,ON A ROLL SANDWICH COMPANY,391893,Commissioning & Investment,Children's & Education Services,103,Supplies and Services,504,Equipment,5023,Revenue,03.GROCERIES & PROVISIONS
27-Feb-2018,7004782,98.14,ON A ROLL SANDWICH COMPANY,391893,Commissioning & Investment,Children's & Education Services,103,Supplies and Services,504,Equipment,5023,Revenue,03.GROCERIES & PROVISIONS
27-Feb-2018,7004782,473.92,ON A ROLL SANDWICH COMPANY,391893,Commissioning & Investment,Children's & Education Services,103,Supplies and Services,504,Equipment,5023,Revenue,03.GROCERIES & PROVISIONS
27-Feb-2018,7004782,24.14,ON A ROLL SANDWICH COMPANY,391893,Commissioning & Investment,Children's & Education Services,103,Supplies and Services,504,Equipment,5023,Revenue,03.GROCERIES & PROVISIONS
27-Feb-2018,7004782,304.73,ON A ROLL SANDWICH COMPANY,391893,Commissioning & Investment,Children's & Education Services,103,Supplies and Services,504,Equipment,5023,Revenue,03.GROCERIES & PROVISIONS
27-Feb-2018,7004782,392.86,ON A ROLL SANDWICH COMPANY,391893,Commissioning & Investment,Children's & Education Services,103,Supplies and Services,504,Equipment,5023,Revenue,03.GROCERIES & PROVISIONS
27-Feb-2018,7004782,532.84,ON A ROLL SANDWICH COMPANY,391893,Commissioning & Investment,Children's & Education Services,103,Supplies and Services,504,Equipment,5023,Revenue,03.GROCERIES & PROVISIONS
27-Feb-2018,7004782,212.80,ON A ROLL SANDWICH COMPANY,391893,Commissioning & Investment,Children's & Education Services,103,Supplies and Services,504,Equipment,5023,Revenue,03.GROCERIES & PROVISIONS
27-Feb-2018,7004782,392.86,ON A ROLL SANDWICH COMPANY,391893,Commissioning & Investment,Children's & Education Services,103,Supplies and Services,504,Equipment,5023,Revenue,03.GROCERIES & PROVISIONS
27-Feb-2018,7004782,212.80,ON A ROLL SANDWICH COMPANY,391893,Commissioning & Investment,Children's & Education Services,103,Supplies and Services,504,Equipment,5023,Revenue,03.GROCERIES & PROVISIONS
27-Feb-2018,7004782,384.98,ON A ROLL SANDWICH COMPANY,391893,Commissioning & Investment,Children's & Education Services,103,Supplies and Services,504,Equipment,5023,Revenue,03.GROCERIES & PROVISIONS
27-Feb-2018,7004782,783.44,ON A ROLL SANDWICH COMPANY,391893,Commissioning & Investment,Children's & Education Services,103,Supplies and Services,504,Equipment,5023,Revenue,03.GROCERIES & PROVISIONS
27-Feb-2018,7004782,432.32,ON A ROLL SANDWICH COMPANY,391893,Commissioning & Investment,Children's & Education Services,103,Supplies and Services,504,Equipment,5023,Revenue,03.GROCERIES & PROVISIONS
27-Feb-2018,7004782,24.14,ON A ROLL SANDWICH COMPANY,391893,Commissioning & Investment,Children's & Education Services,103,Supplies and Services,504,Equipment,5023,Revenue,03.GROCERIES & PROVISIONS
27-Feb-2018,7004782,500.51,ON A ROLL SANDWICH COMPANY,391893,Commissioning & Investment,Children's & Education Services,103,Supplies and Services,504,Equipment,5023,Revenue,03.GROCERIES & PROVISIONS
27-Feb-2018,7004782,245.05,ON A ROLL SANDWICH COMPANY,391893,Commissioning & Investment,Children's & Education Services,103,Supplies and Services,504,Equipment,5023,Revenue,03.GROCERIES & PROVISIONS
27-Feb-2018,7004782,33.90,ON A ROLL SANDWICH COMPANY,391893,Commissioning & Investment,Children's & Education Services,103,Supplies and Services,504,Equipment,5023,Revenue,03.GROCERIES & PROVISIONS
27-Feb-2018,7004782,207.90,ON A ROLL SANDWICH COMPANY,391893,Commissioning & Investment,Children's & Education Services,103,Supplies and Services,504,Equipment,5023,Revenue,03.GROCERIES & PROVISIONS
27-Feb-2018,7004782,429.00,ON A ROLL SANDWICH COMPANY,391893,Commissioning & Investment,Children's & Education Services,103,Supplies and Services,504,Equipment,5023,Revenue,03.GROCERIES & PROVISIONS
27-Feb-2018,7004782,429.00,ON A ROLL SANDWICH COMPANY,391893,Commissioning & Investment,Children's & Education Services,103,Supplies and Services,504,Equipment,5023,Revenue,03.GROCERIES & PROVISIONS
27-Feb-2018,7004782,509.21,ON A ROLL SANDWICH COMPANY,391893,Commissioning & Investment,Children's & Education Services,103,Supplies and Services,504,Equipment,5023,Revenue,03.GROCERIES & PROVISIONS
27-Feb-2018,7004782,83.81,ON A ROLL SANDWICH COMPANY,391893,Commissioning & Investment,Children's & Education Services,103,Supplies and Services,504,Equipment,5023,Revenue,03.GROCERIES & PROVISIONS
27-Feb-2018,7004782,500.51,ON A ROLL SANDWICH COMPANY,391893,Commissioning & Investment,Children's & Education Services,103,Supplies and Services,504,Equipment,5023,Revenue,03.GROCERIES & PROVISIONS
27-Feb-2018,7004782,710.00,ON A ROLL SANDWICH COMPANY,391893,Commissioning & Investment,Children's & Education Services,103,Supplies and Services,504,Equipment,5023,Revenue,03.GROCERIES & PROVISIONS
27-Feb-2018,7004782,76.49,ON A ROLL SANDWICH COMPANY,391893,Commissioning & Investment,Children's & Education Services,103,Supplies and Services,504,Equipment,5023,Revenue,03.GROCERIES & PROVISIONS
27-Feb-2018,7004782,711.68,ON A ROLL SANDWICH COMPANY,391893,Commissioning & Investment,Children's & Education Services,103,Supplies and Services,504,Equipment,5023,Revenue,03.GROCERIES & PROVISIONS
27-Feb-2018,7004782,98.14,ON A ROLL SANDWICH COMPANY,391893,Commissioning & Investment,Children's & Education Services,103,Supplies and Services,504,Equipment,5023,Revenue,03.GROCERIES & PROVISIONS
27-Feb-2018,7004782,51.44,ON A ROLL SANDWICH COMPANY,391893,Commissioning & Investment,Children's & Education Services,103,Supplies and Services,504,Equipment,5023,Revenue,03.GROCERIES & PROVISIONS
27-Feb-2018,7004782,212.80,ON A ROLL SANDWICH COMPANY,391893,Commissioning & Investment,Children's & Education Services,103,Supplies and Services,504,Equipment,5023,Revenue,03.GROCERIES & PROVISIONS
27-Feb-2018,7004782,88.35,ON A ROLL SANDWICH COMPANY,391893,Commissioning & Investment,Children's & Education Services,103,Supplies and Services,504,Equipment,5023,Revenue,03.GROCERIES & PROVISIONS
27-Feb-2018,7004782,727.57,ON A ROLL SANDWICH COMPANY,391893,Commissioning & Investment,Children's & Education Services,103,Supplies and Services,504,Equipment,5023,Revenue,03.GROCERIES & PROVISIONS
27-Feb-2018,7004782,1186.20,ON A ROLL SANDWICH COMPANY,391893,Commissioning & Investment,Children's & Education Services,103,Supplies and Services,504,Equipment,5023,Revenue,03.GROCERIES & PROVISIONS
27-Feb-2018,7004782,727.57,ON A ROLL SANDWICH COMPANY,391893,Commissioning & Investment,Children's & Education Services,103,Supplies and Services,504,Equipment,5023,Revenue,03.GROCERIES & PROVISIONS
27-Feb-2018,7004782,340.70,ON A ROLL SANDWICH COMPANY,391893,Commissioning & Investment,Children's & Education Services,103,Supplies and Services,504,Equipment,5023,Revenue,03.GROCERIES & PROVISIONS
27-Feb-2018,7004782,328.77,ON A ROLL SANDWICH COMPANY,391893,Commissioning & Investment,Children's & Education Services,103,Supplies and Services,504,Equipment,5023,Revenue,03.GROCERIES & PROVISIONS
27-Feb-2018,7004782,122.49,ON A ROLL SANDWICH COMPANY,391893,Commissioning & Investment,Children's & Education Services,103,Supplies and Services,504,Equipment,5023,Revenue,03.GROCERIES & PROVISIONS
27-Feb-2018,7004782,212.80,ON A ROLL SANDWICH COMPANY,391893,Commissioning & Investment,Children's & Education Services,103,Supplies and Services,504,Equipment,5023,Revenue,03.GROCERIES & PROVISIONS
27-Feb-2018,7004782,98.14,ON A ROLL SANDWICH COMPANY,391893,Commissioning & Investment,Children's & Education Services,103,Supplies and Services,504,Equipment,5023,Revenue,03.GROCERIES & PROVISIONS
27-Feb-2018,7004782,586.05,ON A ROLL SANDWICH COMPANY,391893,Commissioning & Investment,Children's & Education Services,103,Supplies and Services,504,Equipment,5023,Revenue,03.GROCERIES & PROVISIONS
27-Feb-2018,7004782,531.99,ON A ROLL SANDWICH COMPANY,391893,Commissioning & Investment,Children's & Education Services,103,Supplies and Services,504,Equipment,5023,Revenue,03.GROCERIES & PROVISIONS
27-Feb-2018,7004783,6.50,PRODUCT SUPPORT AG,391921,"Health, Education, Care and Safeguarding",Children's & Education Services,103,Supplies and Services,504,Equipment,5023,Revenue,14.MAINT OF COMPUTER EQU
27-Feb-2018,7004784,66.17,DUNELM LTD,391723,"Health, Education, Care and Safeguarding",Capital,Capital,Supplies and Services,504,Equipment,5023,Revenue,10.BLINDS CARPETS CURTAIN
27-Feb-2018,7004784,406.19,DUNELM LTD,391723,"Health, Education, Care and Safeguarding",Capital,Capital,Supplies and Services,504,Equipment,5023,Revenue,10.BLINDS CARPETS CURTAIN
27-Feb-2018,7004785,-1.00,ASDA HOME SHOPPING CAR,391718,"Health, Education, Care and Safeguarding",Children's & Education Services,103,Supplies and Services,504,Catering,5024,Revenue,03.GROCERIES & PROVISIONS
27-Feb-2018,7004785,40.60,ASDA HOME SHOPPING CAR,391718,"Health, Education, Care and Safeguarding",Children's & Education Services,103,Supplies and Services,504,Catering,5024,Revenue,03.GROCERIES & PROVISIONS
27-Feb-2018,7004786,8.62,ALDI STORES LTD,391717,"Health, Education, Care and Safeguarding",Capital,Capital,Supplies and Services,504,Equipment,5023,Revenue,03.GROCERIES & PROVISIONS
27-Feb-2018,7004786,42.84,ALDI STORES LTD,391717,"Health, Education, Care and Safeguarding",Capital,Capital,Supplies and Services,504,Equipment,5023,Revenue,03.GROCERIES & PROVISIONS
27-Feb-2018,7004787,120.00,H M COURT SERVICES,379509,Housing Revenue Account,Housing Revenue Account,N/A,Supplies and Services,504,Expenses,5030,Revenue,00.NON INFLUENCIBLE
27-Feb-2018,7004787,80.00,H M COURT SERVICES,379509,Housing Revenue Account,Housing Revenue Account,N/A,Supplies and Services,504,Expenses,5030,Revenue,00.NON INFLUENCIBLE
27-Feb-2018,7004787,120.00,H M COURT SERVICES,379509,Housing Revenue Account,Housing Revenue Account,N/A,Supplies and Services,504,Expenses,5030,Revenue,00.NON INFLUENCIBLE
27-Feb-2018,7004787,140.00,H M COURT SERVICES,379509,Housing Revenue Account,Housing Revenue Account,N/A,Supplies and Services,504,Expenses,5030,Revenue,00.NON INFLUENCIBLE
27-Feb-2018,7004787,60.00,H M COURT SERVICES,379509,Housing Revenue Account,Housing Revenue Account,N/A,Supplies and Services,504,Expenses,5030,Revenue,00.NON INFLUENCIBLE
27-Feb-2018,7004788,15.40,GUSTHARTS CHAINSAW CENTRE,007917,"Environment, Housing & Leisure",Cultural & Related Services,104,Supplies and Services,504,Equipment,5023,Revenue,13.EQUIPMENT
27-Feb-2018,7004789,75.00,WM MORRISON SUPERMARKETS PLC,013562,"Health, Education, Care and Safeguarding",Capital,Capital,Supplies and Services,504,Equipment,5023,Revenue,03.GROCERIES & PROVISIONS
27-Feb-2018,7004789,38.42,WM MORRISON SUPERMARKETS PLC,013562,"Health, Education, Care and Safeguarding",Children's & Education Services,103,Supplies and Services,504,Equipment,5023,Revenue,03.GROCERIES & PROVISIONS
27-Feb-2018,7004789,7.40,WM MORRISON SUPERMARKETS PLC,013562,"Health, Education, Care and Safeguarding",Children's & Education Services,103,Supplies and Services,504,Equipment,5023,Revenue,03.GROCERIES & PROVISIONS
27-Feb-2018,7004789,14.25,WM MORRISON SUPERMARKETS PLC,013562,"Health, Education, Care and Safeguarding",Capital,Capital,Supplies and Services,504,Equipment,5023,Revenue,03.GROCERIES & PROVISIONS
27-Feb-2018,7004789,33.25,WM MORRISON SUPERMARKETS PLC,013562,"Environment, Housing & Leisure",Cultural & Related Services,104,Premises-Related Expenditure,502,Cleaning and Domestic Supplies,5012,Revenue,03.GROCERIES & PROVISIONS
27-Feb-2018,7004789,2.54,WM MORRISON SUPERMARKETS PLC,013562,Corporate Strategy,Children's & Education Services,103,Supplies and Services,504,Catering,5024,Revenue,03.GROCERIES & PROVISIONS
27-Feb-2018,7004789,20.69,WM MORRISON SUPERMARKETS PLC,013562,"Health, Education, Care and Safeguarding",Children's & Education Services,103,Supplies and Services,504,Catering,5024,Revenue,03.GROCERIES & PROVISIONS
27-Feb-2018,7004789,20.77,WM MORRISON SUPERMARKETS PLC,013562,"Environment, Housing & Leisure",Cultural & Related Services,104,Supplies and Services,504,Equipment,5023,Revenue,03.GROCERIES & PROVISIONS
27-Feb-2018,7004789,15.81,WM MORRISON SUPERMARKETS PLC,013562,"Health, Education, Care and Safeguarding",Children's & Education Services,103,Supplies and Services,504,Equipment,5023,Revenue,03.GROCERIES & PROVISIONS
27-Feb-2018,7004789,4.37,WM MORRISON SUPERMARKETS PLC,013562,"Health, Education, Care and Safeguarding",Children's & Education Services,103,Supplies and Services,504,Equipment,5023,Revenue,03.GROCERIES & PROVISIONS
27-Feb-2018,7004789,13.17,WM MORRISON SUPERMARKETS PLC,013562,"Environment, Housing & Leisure",Cultural & Related Services,104,Supplies and Services,504,Equipment,5023,Revenue,03.GROCERIES & PROVISIONS
27-Feb-2018,7004790,85.83,HOLIDAY INNS,379648,"Health, Education, Care and Safeguarding",Children's & Education Services,103,Supplies and Services,504,Expenses,5030,Revenue,HR ACCOMM
27-Feb-2018,7004791,82.50,TESCO STORES LTD,336585,"Health, Education, Care and Safeguarding",Children's & Education Services,103,Supplies and Services,504,Equipment,5023,Revenue,03.GROCERIES & PROVISIONS
27-Feb-2018,7004791,77.67,TESCO STORES LTD,336585,"Health, Education, Care and Safeguarding",Capital,Capital,Supplies and Services,504,Equipment,5023,Revenue,03.GROCERIES & PROVISIONS
27-Feb-2018,7004791,8.95,TESCO STORES LTD,336585,"Health, Education, Care and Safeguarding",Children's & Education Services,103,Supplies and Services,504,Equipment,5023,Revenue,03.GROCERIES & PROVISIONS
27-Feb-2018,7004791,46.92,TESCO STORES LTD,336585,"Health, Education, Care and Safeguarding",Capital,Capital,Supplies and Services,504,Equipment,5023,Revenue,03.GROCERIES & PROVISIONS
27-Feb-2018,7004791,165.83,TESCO STORES LTD,336585,"Health, Education, Care and Safeguarding",Children's & Education Services,103,Third Party Payments,505,Other Establishments,5041,Revenue,03.GROCERIES & PROVISIONS
27-Feb-2018,7004791,50.42,TESCO STORES LTD,336585,"Health, Education, Care and Safeguarding",Children's & Education Services,103,Third Party Payments,505,Other Establishments,5041,Revenue,03.GROCERIES & PROVISIONS
27-Feb-2018,7004791,43.62,TESCO STORES LTD,336585,"Health, Education, Care and Safeguarding",Capital,Capital,Supplies and Services,504,Equipment,5023,Revenue,03.GROCERIES & PROVISIONS
27-Feb-2018,7004791,12.49,TESCO STORES LTD,336585,"Health, Education, Care and Safeguarding",Children's & Education Services,103,Third Party Payments,505,Other Establishments,5041,Revenue,03.GROCERIES & PROVISIONS
27-Feb-2018,7004791,8.53,TESCO STORES LTD,336585,"Health, Education, Care and Safeguarding",Capital,Capital,Supplies and Services,504,Equipment,5023,Revenue,03.GROCERIES & PROVISIONS
27-Feb-2018,7004791,9.17,TESCO STORES LTD,336585,"Health, Education, Care and Safeguarding",Children's & Education Services,103,Supplies and Services,504,"Clothing, Uniforms and Laundry",5025,Revenue,03.GROCERIES & PROVISIONS
27-Feb-2018,7004791,9.17,TESCO STORES LTD,336585,"Health, Education, Care and Safeguarding",Capital,Capital,Supplies and Services,504,Equipment,5023,Revenue,03.GROCERIES & PROVISIONS
27-Feb-2018,7004791,36.25,TESCO STORES LTD,336585,"Health, Education, Care and Safeguarding",Children's & Education Services,103,Supplies and Services,504,Equipment,5023,Revenue,03.GROCERIES & PROVISIONS
27-Feb-2018,7004791,17.50,TESCO STORES LTD,336585,"Health, Education, Care and Safeguarding",Capital,Capital,Supplies and Services,504,Equipment,5023,Revenue,03.GROCERIES & PROVISIONS
27-Feb-2018,7004792,8.32,HOMEBASE LIMITED,329060,"Health, Education, Care and Safeguarding",Children's & Education Services,103,Premises-Related Expenditure,502,"Repairs, alterations and maintenance of buildings",5005,Revenue,BUILD GEN
27-Feb-2018,7004793,7.41,AF BLAKEMORE & SON LIMITED T/A LOWRIES CASH & CARRY,332872,Commissioning & Investment,Children's & Education Services,103,Supplies and Services,504,Equipment,5023,Revenue,03.GROCERIES & PROVISIONS
27-Feb-2018,7004793,8.00,AF BLAKEMORE & SON LIMITED T/A LOWRIES CASH & CARRY,332872,Commissioning & Investment,Children's & Education Services,103,Supplies and Services,504,Equipment,5023,Revenue,03.GROCERIES & PROVISIONS
27-Feb-2018,7004793,97.60,AF BLAKEMORE & SON LIMITED T/A LOWRIES CASH & CARRY,332872,Commissioning & Investment,Children's & Education Services,103,Supplies and Services,504,Equipment,5023,Revenue,03.GROCERIES & PROVISIONS
27-Feb-2018,7004793,4.96,AF BLAKEMORE & SON LIMITED T/A LOWRIES CASH & CARRY,332872,Commissioning & Investment,Children's & Education Services,103,Supplies and Services,504,Equipment,5023,Revenue,03.GROCERIES & PROVISIONS
27-Feb-2018,7004793,15.20,AF BLAKEMORE & SON LIMITED T/A LOWRIES CASH & CARRY,332872,Commissioning & Investment,Children's & Education Services,103,Supplies and Services,504,Equipment,5023,Revenue,03.GROCERIES & PROVISIONS
27-Feb-2018,7004793,6.42,AF BLAKEMORE & SON LIMITED T/A LOWRIES CASH & CARRY,332872,Commissioning & Investment,Children's & Education Services,103,Supplies and Services,504,Equipment,5023,Revenue,03.GROCERIES & PROVISIONS
27-Feb-2018,7004793,7.56,AF BLAKEMORE & SON LIMITED T/A LOWRIES CASH & CARRY,332872,Commissioning & Investment,Children's & Education Services,103,Supplies and Services,504,Equipment,5023,Revenue,03.GROCERIES & PROVISIONS
27-Feb-2018,7004793,3.63,AF BLAKEMORE & SON LIMITED T/A LOWRIES CASH & CARRY,332872,Commissioning & Investment,Children's & Education Services,103,Supplies and Services,504,Equipment,5023,Revenue,03.GROCERIES & PROVISIONS
27-Feb-2018,7004793,34.60,AF BLAKEMORE & SON LIMITED T/A LOWRIES CASH & CARRY,332872,Commissioning & Investment,Children's & Education Services,103,Supplies and Services,504,Equipment,5023,Revenue,03.GROCERIES & PROVISIONS
27-Feb-2018,7004793,24.64,AF BLAKEMORE & SON LIMITED T/A LOWRIES CASH & CARRY,332872,Commissioning & Investment,Children's & Education Services,103,Supplies and Services,504,Equipment,5023,Revenue,03.GROCERIES & PROVISIONS
27-Feb-2018,7004793,16.74,AF BLAKEMORE & SON LIMITED T/A LOWRIES CASH & CARRY,332872,Commissioning & Investment,Children's & Education Services,103,Supplies and Services,504,Equipment,5023,Revenue,03.GROCERIES & PROVISIONS
27-Feb-2018,7004793,7.78,AF BLAKEMORE & SON LIMITED T/A LOWRIES CASH & CARRY,332872,Commissioning & Investment,Children's & Education Services,103,Supplies and Services,504,Equipment,5023,Revenue,03.GROCERIES & PROVISIONS
27-Feb-2018,7004793,16.74,AF BLAKEMORE & SON LIMITED T/A LOWRIES CASH & CARRY,332872,Commissioning & Investment,Children's & Education Services,103,Supplies and Services,504,Equipment,5023,Revenue,03.GROCERIES & PROVISIONS
27-Feb-2018,7004793,7.60,AF BLAKEMORE & SON LIMITED T/A LOWRIES CASH & CARRY,332872,Commissioning & Investment,Children's & Education Services,103,Supplies and Services,504,Equipment,5023,Revenue,03.GROCERIES & PROVISIONS
27-Feb-2018,7004793,7.41,AF BLAKEMORE & SON LIMITED T/A LOWRIES CASH & CARRY,332872,Commissioning & Investment,Children's & Education Services,103,Supplies and Services,504,Equipment,5023,Revenue,03.GROCERIES & PROVISIONS
27-Feb-2018,7004793,20.00,AF BLAKEMORE & SON LIMITED T/A LOWRIES CASH & CARRY,332872,Commissioning & Investment,Children's & Education Services,103,Supplies and Services,504,Equipment,5023,Revenue,03.GROCERIES & PROVISIONS
27-Feb-2018,7004793,15.20,AF BLAKEMORE & SON LIMITED T/A LOWRIES CASH & CARRY,332872,Commissioning & Investment,Children's & Education Services,103,Supplies and Services,504,Equipment,5023,Revenue,03.GROCERIES & PROVISIONS
27-Feb-2018,7004793,48.78,AF BLAKEMORE & SON LIMITED T/A LOWRIES CASH & CARRY,332872,Commissioning & Investment,Children's & Education Services,103,Supplies and Services,504,Equipment,5023,Revenue,03.GROCERIES & PROVISIONS
27-Feb-2018,7004793,13.58,AF BLAKEMORE & SON LIMITED T/A LOWRIES CASH & CARRY,332872,Commissioning & Investment,Children's & Education Services,103,Supplies and Services,504,Equipment,5023,Revenue,03.GROCERIES & PROVISIONS
27-Feb-2018,7004793,3.90,AF BLAKEMORE & SON LIMITED T/A LOWRIES CASH & CARRY,332872,Commissioning & Investment,Children's & Education Services,103,Supplies and Services,504,Equipment,5023,Revenue,03.GROCERIES & PROVISIONS
27-Feb-2018,7004793,2.43,AF BLAKEMORE & SON LIMITED T/A LOWRIES CASH & CARRY,332872,Commissioning & Investment,Children's & Education Services,103,Supplies and Services,504,Equipment,5023,Revenue,03.GROCERIES & PROVISIONS
27-Feb-2018,7004793,9.02,AF BLAKEMORE & SON LIMITED T/A LOWRIES CASH & CARRY,332872,Commissioning & Investment,Children's & Education Services,103,Supplies and Services,504,Equipment,5023,Revenue,03.GROCERIES & PROVISIONS
27-Feb-2018,7004793,7.27,AF BLAKEMORE & SON LIMITED T/A LOWRIES CASH & CARRY,332872,Commissioning & Investment,Children's & Education Services,103,Supplies and Services,504,Equipment,5023,Revenue,03.GROCERIES & PROVISIONS
27-Feb-2018,7004793,16.88,AF BLAKEMORE & SON LIMITED T/A LOWRIES CASH & CARRY,332872,Commissioning & Investment,Children's & Education Services,103,Supplies and Services,504,Equipment,5023,Revenue,03.GROCERIES & PROVISIONS
27-Feb-2018,7004793,8.37,AF BLAKEMORE & SON LIMITED T/A LOWRIES CASH & CARRY,332872,Commissioning & Investment,Children's & Education Services,103,Supplies and Services,504,Equipment,5023,Revenue,03.GROCERIES & PROVISIONS
27-Feb-2018,7004793,11.87,AF BLAKEMORE & SON LIMITED T/A LOWRIES CASH & CARRY,332872,Commissioning & Investment,Children's & Education Services,103,Supplies and Services,504,Equipment,5023,Revenue,03.GROCERIES & PROVISIONS
27-Feb-2018,7004793,6.79,AF BLAKEMORE & SON LIMITED T/A LOWRIES CASH & CARRY,332872,Commissioning & Investment,Children's & Education Services,103,Supplies and Services,504,Equipment,5023,Revenue,03.GROCERIES & PROVISIONS
27-Feb-2018,7004793,11.40,AF BLAKEMORE & SON LIMITED T/A LOWRIES CASH & CARRY,332872,Commissioning & Investment,Children's & Education Services,103,Supplies and Services,504,Equipment,5023,Revenue,03.GROCERIES & PROVISIONS
27-Feb-2018,7004793,9.62,AF BLAKEMORE & SON LIMITED T/A LOWRIES CASH & CARRY,332872,Commissioning & Investment,Children's & Education Services,103,Supplies and Services,504,Equipment,5023,Revenue,03.GROCERIES & PROVISIONS
27-Feb-2018,7004793,9.90,AF BLAKEMORE & SON LIMITED T/A LOWRIES CASH & CARRY,332872,Commissioning & Investment,Children's & Education Services,103,Supplies and Services,504,Equipment,5023,Revenue,03.GROCERIES & PROVISIONS
27-Feb-2018,7004793,7.35,AF BLAKEMORE & SON LIMITED T/A LOWRIES CASH & CARRY,332872,Commissioning & Investment,Children's & Education Services,103,Supplies and Services,504,Equipment,5023,Revenue,03.GROCERIES & PROVISIONS
27-Feb-2018,7004793,2.12,AF BLAKEMORE & SON LIMITED T/A LOWRIES CASH & CARRY,332872,Commissioning & Investment,Children's & Education Services,103,Supplies and Services,504,Equipment,5023,Revenue,03.GROCERIES & PROVISIONS
27-Feb-2018,7004793,7.41,AF BLAKEMORE & SON LIMITED T/A LOWRIES CASH & CARRY,332872,Commissioning & Investment,Children's & Education Services,103,Supplies and Services,504,Equipment,5023,Revenue,03.GROCERIES & PROVISIONS
27-Feb-2018,7004793,14.54,AF BLAKEMORE & SON LIMITED T/A LOWRIES CASH & CARRY,332872,Commissioning & Investment,Children's & Education Services,103,Supplies and Services,504,Equipment,5023,Revenue,03.GROCERIES & PROVISIONS
27-Feb-2018,7004793,6.79,AF BLAKEMORE & SON LIMITED T/A LOWRIES CASH & CARRY,332872,Commissioning & Investment,Children's & Education Services,103,Supplies and Services,504,Equipment,5023,Revenue,03.GROCERIES & PROVISIONS
27-Feb-2018,7004793,25.56,AF BLAKEMORE & SON LIMITED T/A LOWRIES CASH & CARRY,332872,Commissioning & Investment,Children's & Education Services,103,Supplies and Services,504,Equipment,5023,Revenue,03.GROCERIES & PROVISIONS
27-Feb-2018,7004793,34.08,AF BLAKEMORE & SON LIMITED T/A LOWRIES CASH & CARRY,332872,Commissioning & Investment,Children's & Education Services,103,Supplies and Services,504,Equipment,5023,Revenue,03.GROCERIES & PROVISIONS
27-Feb-2018,7004793,9.02,AF BLAKEMORE & SON LIMITED T/A LOWRIES CASH & CARRY,332872,Commissioning & Investment,Children's & Education Services,103,Supplies and Services,504,Equipment,5023,Revenue,03.GROCERIES & PROVISIONS
27-Feb-2018,7004793,13.44,AF BLAKEMORE & SON LIMITED T/A LOWRIES CASH & CARRY,332872,Commissioning & Investment,Children's & Education Services,103,Supplies and Services,504,Equipment,5023,Revenue,03.GROCERIES & PROVISIONS
27-Feb-2018,7004793,15.20,AF BLAKEMORE & SON LIMITED T/A LOWRIES CASH & CARRY,332872,Commissioning & Investment,Children's & Education Services,103,Supplies and Services,504,Equipment,5023,Revenue,03.GROCERIES & PROVISIONS
27-Feb-2018,7004793,12.91,AF BLAKEMORE & SON LIMITED T/A LOWRIES CASH & CARRY,332872,Commissioning & Investment,Children's & Education Services,103,Supplies and Services,504,Equipment,5023,Revenue,03.GROCERIES & PROVISIONS
27-Feb-2018,7004793,6.54,AF BLAKEMORE & SON LIMITED T/A LOWRIES CASH & CARRY,332872,Commissioning & Investment,Children's & Education Services,103,Supplies and Services,504,Equipment,5023,Revenue,03.GROCERIES & PROVISIONS
27-Feb-2018,7004793,6.58,AF BLAKEMORE & SON LIMITED T/A LOWRIES CASH & CARRY,332872,Commissioning & Investment,Children's & Education Services,103,Supplies and Services,504,Equipment,5023,Revenue,03.GROCERIES & PROVISIONS
27-Feb-2018,7004793,8.34,AF BLAKEMORE & SON LIMITED T/A LOWRIES CASH & CARRY,332872,Commissioning & Investment,Children's & Education Services,103,Supplies and Services,504,Equipment,5023,Revenue,03.GROCERIES & PROVISIONS
27-Feb-2018,7004793,1.24,AF BLAKEMORE & SON LIMITED T/A LOWRIES CASH & CARRY,332872,Commissioning & Investment,Children's & Education Services,103,Supplies and Services,504,Equipment,5023,Revenue,03.GROCERIES & PROVISIONS
27-Feb-2018,7004793,3.96,AF BLAKEMORE & SON LIMITED T/A LOWRIES CASH & CARRY,332872,Commissioning & Investment,Children's & Education Services,103,Supplies and Services,504,Equipment,5023,Revenue,03.GROCERIES & PROVISIONS
27-Feb-2018,7004793,2.48,AF BLAKEMORE & SON LIMITED T/A LOWRIES CASH & CARRY,332872,Commissioning & Investment,Children's & Education Services,103,Supplies and Services,504,Equipment,5023,Revenue,03.GROCERIES & PROVISIONS
27-Feb-2018,7004793,3.80,AF BLAKEMORE & SON LIMITED T/A LOWRIES CASH & CARRY,332872,Commissioning & Investment,Children's & Education Services,103,Supplies and Services,504,Equipment,5023,Revenue,03.GROCERIES & PROVISIONS
27-Feb-2018,7004793,11.76,AF BLAKEMORE & SON LIMITED T/A LOWRIES CASH & CARRY,332872,"Environment, Housing & Leisure",Adult Social Care,101,Supplies and Services,504,Equipment,5023,Revenue,03.GROCERIES & PROVISIONS
27-Feb-2018,7004793,35.08,AF BLAKEMORE & SON LIMITED T/A LOWRIES CASH & CARRY,332872,Commissioning & Investment,Children's & Education Services,103,Supplies and Services,504,Equipment,5023,Revenue,03.GROCERIES & PROVISIONS
27-Feb-2018,7004793,26.44,AF BLAKEMORE & SON LIMITED T/A LOWRIES CASH & CARRY,332872,Commissioning & Investment,Children's & Education Services,103,Supplies and Services,504,Equipment,5023,Revenue,03.GROCERIES & PROVISIONS
27-Feb-2018,7004793,41.70,AF BLAKEMORE & SON LIMITED T/A LOWRIES CASH & CARRY,332872,Commissioning & Investment,Children's & Education Services,103,Supplies and Services,504,Equipment,5023,Revenue,03.GROCERIES & PROVISIONS
27-Feb-2018,7004793,8.37,AF BLAKEMORE & SON LIMITED T/A LOWRIES CASH & CARRY,332872,Commissioning & Investment,Children's & Education Services,103,Supplies and Services,504,Equipment,5023,Revenue,03.GROCERIES & PROVISIONS
27-Feb-2018,7004793,21.81,AF BLAKEMORE & SON LIMITED T/A LOWRIES CASH & CARRY,332872,Commissioning & Investment,Children's & Education Services,103,Supplies and Services,504,Equipment,5023,Revenue,03.GROCERIES & PROVISIONS
27-Feb-2018,7004793,42.60,AF BLAKEMORE & SON LIMITED T/A LOWRIES CASH & CARRY,332872,Commissioning & Investment,Children's & Education Services,103,Supplies and Services,504,Equipment,5023,Revenue,03.GROCERIES & PROVISIONS
27-Feb-2018,7004793,22.80,AF BLAKEMORE & SON LIMITED T/A LOWRIES CASH & CARRY,332872,Commissioning & Investment,Children's & Education Services,103,Supplies and Services,504,Equipment,5023,Revenue,03.GROCERIES & PROVISIONS
27-Feb-2018,7004793,16.46,AF BLAKEMORE & SON LIMITED T/A LOWRIES CASH & CARRY,332872,Commissioning & Investment,Children's & Education Services,103,Supplies and Services,504,Equipment,5023,Revenue,03.GROCERIES & PROVISIONS
27-Feb-2018,7004793,31.44,AF BLAKEMORE & SON LIMITED T/A LOWRIES CASH & CARRY,332872,Commissioning & Investment,Children's & Education Services,103,Supplies and Services,504,Equipment,5023,Revenue,03.GROCERIES & PROVISIONS
27-Feb-2018,7004793,2.43,AF BLAKEMORE & SON LIMITED T/A LOWRIES CASH & CARRY,332872,Commissioning & Investment,Children's & Education Services,103,Supplies and Services,504,Equipment,5023,Revenue,03.GROCERIES & PROVISIONS
27-Feb-2018,7004793,29.64,AF BLAKEMORE & SON LIMITED T/A LOWRIES CASH & CARRY,332872,Commissioning & Investment,Children's & Education Services,103,Supplies and Services,504,Equipment,5023,Revenue,03.GROCERIES & PROVISIONS
27-Feb-2018,7004793,5.52,AF BLAKEMORE & SON LIMITED T/A LOWRIES CASH & CARRY,332872,Commissioning & Investment,Children's & Education Services,103,Supplies and Services,504,Equipment,5023,Revenue,03.GROCERIES & PROVISIONS
27-Feb-2018,7004793,9.89,AF BLAKEMORE & SON LIMITED T/A LOWRIES CASH & CARRY,332872,Commissioning & Investment,Children's & Education Services,103,Supplies and Services,504,Equipment,5023,Revenue,03.GROCERIES & PROVISIONS
27-Feb-2018,7004793,2.78,AF BLAKEMORE & SON LIMITED T/A LOWRIES CASH & CARRY,332872,Commissioning & Investment,Children's & Education Services,103,Supplies and Services,504,Equipment,5023,Revenue,03.GROCERIES & PROVISIONS
27-Feb-2018,7004793,7.44,AF BLAKEMORE & SON LIMITED T/A LOWRIES CASH & CARRY,332872,Commissioning & Investment,Children's & Education Services,103,Supplies and Services,504,Equipment,5023,Revenue,03.GROCERIES & PROVISIONS
27-Feb-2018,7004793,2.54,AF BLAKEMORE & SON LIMITED T/A LOWRIES CASH & CARRY,332872,Commissioning & Investment,Children's & Education Services,103,Supplies and Services,504,Equipment,5023,Revenue,03.GROCERIES & PROVISIONS
27-Feb-2018,7004793,42.60,AF BLAKEMORE & SON LIMITED T/A LOWRIES CASH & CARRY,332872,Commissioning & Investment,Children's & Education Services,103,Supplies and Services,504,Equipment,5023,Revenue,03.GROCERIES & PROVISIONS
27-Feb-2018,7004793,27.06,AF BLAKEMORE & SON LIMITED T/A LOWRIES CASH & CARRY,332872,Commissioning & Investment,Children's & Education Services,103,Supplies and Services,504,Equipment,5023,Revenue,03.GROCERIES & PROVISIONS
27-Feb-2018,7004793,30.40,AF BLAKEMORE & SON LIMITED T/A LOWRIES CASH & CARRY,332872,Commissioning & Investment,Children's & Education Services,103,Supplies and Services,504,Equipment,5023,Revenue,03.GROCERIES & PROVISIONS
27-Feb-2018,7004793,43.62,AF BLAKEMORE & SON LIMITED T/A LOWRIES CASH & CARRY,332872,Commissioning & Investment,Children's & Education Services,103,Supplies and Services,504,Equipment,5023,Revenue,03.GROCERIES & PROVISIONS
27-Feb-2018,7004793,35.94,AF BLAKEMORE & SON LIMITED T/A LOWRIES CASH & CARRY,332872,Commissioning & Investment,Children's & Education Services,103,Supplies and Services,504,Equipment,5023,Revenue,03.GROCERIES & PROVISIONS
27-Feb-2018,7004793,6.48,AF BLAKEMORE & SON LIMITED T/A LOWRIES CASH & CARRY,332872,Commissioning & Investment,Children's & Education Services,103,Supplies and Services,504,Equipment,5023,Revenue,03.GROCERIES & PROVISIONS
27-Feb-2018,7004793,12.00,AF BLAKEMORE & SON LIMITED T/A LOWRIES CASH & CARRY,332872,Commissioning & Investment,Children's & Education Services,103,Supplies and Services,504,Equipment,5023,Revenue,03.GROCERIES & PROVISIONS
27-Feb-2018,7004793,65.43,AF BLAKEMORE & SON LIMITED T/A LOWRIES CASH & CARRY,332872,Commissioning & Investment,Children's & Education Services,103,Supplies and Services,504,Equipment,5023,Revenue,03.GROCERIES & PROVISIONS
27-Feb-2018,7004793,73.36,AF BLAKEMORE & SON LIMITED T/A LOWRIES CASH & CARRY,332872,Commissioning & Investment,Children's & Education Services,103,Supplies and Services,504,Equipment,5023,Revenue,03.GROCERIES & PROVISIONS
27-Feb-2018,7004793,8.84,AF BLAKEMORE & SON LIMITED T/A LOWRIES CASH & CARRY,332872,Commissioning & Investment,Children's & Education Services,103,Supplies and Services,504,Equipment,5023,Revenue,03.GROCERIES & PROVISIONS
27-Feb-2018,7004793,4.32,AF BLAKEMORE & SON LIMITED T/A LOWRIES CASH & CARRY,332872,Commissioning & Investment,Children's & Education Services,103,Supplies and Services,504,Equipment,5023,Revenue,03.GROCERIES & PROVISIONS
27-Feb-2018,7004793,1.70,AF BLAKEMORE & SON LIMITED T/A LOWRIES CASH & CARRY,332872,Commissioning & Investment,Children's & Education Services,103,Supplies and Services,504,Equipment,5023,Revenue,03.GROCERIES & PROVISIONS
27-Feb-2018,7004793,25.56,AF BLAKEMORE & SON LIMITED T/A LOWRIES CASH & CARRY,332872,Commissioning & Investment,Children's & Education Services,103,Supplies and Services,504,Equipment,5023,Revenue,03.GROCERIES & PROVISIONS
27-Feb-2018,7004793,7.26,AF BLAKEMORE & SON LIMITED T/A LOWRIES CASH & CARRY,332872,Commissioning & Investment,Children's & Education Services,103,Supplies and Services,504,Equipment,5023,Revenue,03.GROCERIES & PROVISIONS
27-Feb-2018,7004793,4.40,AF BLAKEMORE & SON LIMITED T/A LOWRIES CASH & CARRY,332872,Commissioning & Investment,Children's & Education Services,103,Supplies and Services,504,Equipment,5023,Revenue,03.GROCERIES & PROVISIONS
27-Feb-2018,7004793,5.56,AF BLAKEMORE & SON LIMITED T/A LOWRIES CASH & CARRY,332872,Commissioning & Investment,Children's & Education Services,103,Supplies and Services,504,Equipment,5023,Revenue,03.GROCERIES & PROVISIONS
27-Feb-2018,7004793,11.48,AF BLAKEMORE & SON LIMITED T/A LOWRIES CASH & CARRY,332872,Commissioning & Investment,Children's & Education Services,103,Supplies and Services,504,Equipment,5023,Revenue,03.GROCERIES & PROVISIONS
27-Feb-2018,7004793,7.56,AF BLAKEMORE & SON LIMITED T/A LOWRIES CASH & CARRY,332872,Commissioning & Investment,Children's & Education Services,103,Supplies and Services,504,Equipment,5023,Revenue,03.GROCERIES & PROVISIONS
27-Feb-2018,7004793,-3.76,AF BLAKEMORE & SON LIMITED T/A LOWRIES CASH & CARRY,332872,"Environment, Housing & Leisure",Cultural & Related Services,104,Supplies and Services,504,Equipment,5023,Revenue,03.GROCERIES & PROVISIONS
27-Feb-2018,7004793,7.80,AF BLAKEMORE & SON LIMITED T/A LOWRIES CASH & CARRY,332872,Commissioning & Investment,Children's & Education Services,103,Supplies and Services,504,Equipment,5023,Revenue,03.GROCERIES & PROVISIONS
27-Feb-2018,7004793,6.44,AF BLAKEMORE & SON LIMITED T/A LOWRIES CASH & CARRY,332872,Commissioning & Investment,Children's & Education Services,103,Supplies and Services,504,Equipment,5023,Revenue,03.GROCERIES & PROVISIONS
27-Feb-2018,7004793,17.28,AF BLAKEMORE & SON LIMITED T/A LOWRIES CASH & CARRY,332872,Commissioning & Investment,Children's & Education Services,103,Supplies and Services,504,Equipment,5023,Revenue,03.GROCERIES & PROVISIONS
27-Feb-2018,7004793,7.21,AF BLAKEMORE & SON LIMITED T/A LOWRIES CASH & CARRY,332872,Commissioning & Investment,Children's & Education Services,103,Supplies and Services,504,Equipment,5023,Revenue,03.GROCERIES & PROVISIONS
27-Feb-2018,7004793,21.84,AF BLAKEMORE & SON LIMITED T/A LOWRIES CASH & CARRY,332872,Commissioning & Investment,Children's & Education Services,103,Supplies and Services,504,Equipment,5023,Revenue,03.GROCERIES & PROVISIONS
27-Feb-2018,7004793,3.89,AF BLAKEMORE & SON LIMITED T/A LOWRIES CASH & CARRY,332872,Commissioning & Investment,Children's & Education Services,103,Supplies and Services,504,Equipment,5023,Revenue,03.GROCERIES & PROVISIONS
27-Feb-2018,7004793,7.60,AF BLAKEMORE & SON LIMITED T/A LOWRIES CASH & CARRY,332872,Commissioning & Investment,Children's & Education Services,103,Supplies and Services,504,Equipment,5023,Revenue,03.GROCERIES & PROVISIONS
27-Feb-2018,7004793,5.25,AF BLAKEMORE & SON LIMITED T/A LOWRIES CASH & CARRY,332872,Commissioning & Investment,Children's & Education Services,103,Supplies and Services,504,Equipment,5023,Revenue,03.GROCERIES & PROVISIONS
27-Feb-2018,7004793,8.34,AF BLAKEMORE & SON LIMITED T/A LOWRIES CASH & CARRY,332872,Commissioning & Investment,Children's & Education Services,103,Supplies and Services,504,Equipment,5023,Revenue,03.GROCERIES & PROVISIONS
27-Feb-2018,7004793,2.84,AF BLAKEMORE & SON LIMITED T/A LOWRIES CASH & CARRY,332872,Commissioning & Investment,Children's & Education Services,103,Supplies and Services,504,Equipment,5023,Revenue,03.GROCERIES & PROVISIONS
27-Feb-2018,7004793,2.78,AF BLAKEMORE & SON LIMITED T/A LOWRIES CASH & CARRY,332872,Commissioning & Investment,Children's & Education Services,103,Supplies and Services,504,Equipment,5023,Revenue,03.GROCERIES & PROVISIONS
27-Feb-2018,7004793,-11.56,AF BLAKEMORE & SON LIMITED T/A LOWRIES CASH & CARRY,332872,Commissioning & Investment,Children's & Education Services,103,Supplies and Services,504,Equipment,5023,Revenue,03.GROCERIES & PROVISIONS
27-Feb-2018,7004793,8.60,AF BLAKEMORE & SON LIMITED T/A LOWRIES CASH & CARRY,332872,Commissioning & Investment,Children's & Education Services,103,Supplies and Services,504,Equipment,5023,Revenue,03.GROCERIES & PROVISIONS
27-Feb-2018,7004793,21.84,AF BLAKEMORE & SON LIMITED T/A LOWRIES CASH & CARRY,332872,Commissioning & Investment,Children's & Education Services,103,Supplies and Services,504,Equipment,5023,Revenue,03.GROCERIES & PROVISIONS
27-Feb-2018,7004793,9.81,AF BLAKEMORE & SON LIMITED T/A LOWRIES CASH & CARRY,332872,Commissioning & Investment,Children's & Education Services,103,Supplies and Services,504,Equipment,5023,Revenue,03.GROCERIES & PROVISIONS
27-Feb-2018,7004793,49.28,AF BLAKEMORE & SON LIMITED T/A LOWRIES CASH & CARRY,332872,Commissioning & Investment,Children's & Education Services,103,Supplies and Services,504,Equipment,5023,Revenue,03.GROCERIES & PROVISIONS
27-Feb-2018,7004793,2.95,AF BLAKEMORE & SON LIMITED T/A LOWRIES CASH & CARRY,332872,Commissioning & Investment,Children's & Education Services,103,Supplies and Services,504,Equipment,5023,Revenue,03.GROCERIES & PROVISIONS
27-Feb-2018,7004793,11.40,AF BLAKEMORE & SON LIMITED T/A LOWRIES CASH & CARRY,332872,Commissioning & Investment,Children's & Education Services,103,Supplies and Services,504,Equipment,5023,Revenue,03.GROCERIES & PROVISIONS
27-Feb-2018,7004793,19.20,AF BLAKEMORE & SON LIMITED T/A LOWRIES CASH & CARRY,332872,Commissioning & Investment,Children's & Education Services,103,Supplies and Services,504,Equipment,5023,Revenue,03.GROCERIES & PROVISIONS
27-Feb-2018,7004793,10.74,AF BLAKEMORE & SON LIMITED T/A LOWRIES CASH & CARRY,332872,Commissioning & Investment,Children's & Education Services,103,Supplies and Services,504,Equipment,5023,Revenue,03.GROCERIES & PROVISIONS
27-Feb-2018,7004793,14.70,AF BLAKEMORE & SON LIMITED T/A LOWRIES CASH & CARRY,332872,Commissioning & Investment,Children's & Education Services,103,Supplies and Services,504,Equipment,5023,Revenue,03.GROCERIES & PROVISIONS
27-Feb-2018,7004793,4.76,AF BLAKEMORE & SON LIMITED T/A LOWRIES CASH & CARRY,332872,Commissioning & Investment,Children's & Education Services,103,Supplies and Services,504,Equipment,5023,Revenue,03.GROCERIES & PROVISIONS
27-Feb-2018,7004793,15.20,AF BLAKEMORE & SON LIMITED T/A LOWRIES CASH & CARRY,332872,Commissioning & Investment,Children's & Education Services,103,Supplies and Services,504,Equipment,5023,Revenue,03.GROCERIES & PROVISIONS
27-Feb-2018,7004793,7.05,AF BLAKEMORE & SON LIMITED T/A LOWRIES CASH & CARRY,332872,Commissioning & Investment,Children's & Education Services,103,Supplies and Services,504,Equipment,5023,Revenue,03.GROCERIES & PROVISIONS
27-Feb-2018,7004793,29.64,AF BLAKEMORE & SON LIMITED T/A LOWRIES CASH & CARRY,332872,Commissioning & Investment,Children's & Education Services,103,Supplies and Services,504,Equipment,5023,Revenue,03.GROCERIES & PROVISIONS
27-Feb-2018,7004793,33.48,AF BLAKEMORE & SON LIMITED T/A LOWRIES CASH & CARRY,332872,Commissioning & Investment,Children's & Education Services,103,Supplies and Services,504,Equipment,5023,Revenue,03.GROCERIES & PROVISIONS
27-Feb-2018,7004793,2.37,AF BLAKEMORE & SON LIMITED T/A LOWRIES CASH & CARRY,332872,Commissioning & Investment,Children's & Education Services,103,Supplies and Services,504,Equipment,5023,Revenue,03.GROCERIES & PROVISIONS
27-Feb-2018,7004793,24.06,AF BLAKEMORE & SON LIMITED T/A LOWRIES CASH & CARRY,332872,Commissioning & Investment,Children's & Education Services,103,Supplies and Services,504,Equipment,5023,Revenue,03.GROCERIES & PROVISIONS
27-Feb-2018,7004793,40.10,AF BLAKEMORE & SON LIMITED T/A LOWRIES CASH & CARRY,332872,Commissioning & Investment,Children's & Education Services,103,Supplies and Services,504,Equipment,5023,Revenue,03.GROCERIES & PROVISIONS
27-Feb-2018,7004793,1.36,AF BLAKEMORE & SON LIMITED T/A LOWRIES CASH & CARRY,332872,Commissioning & Investment,Children's & Education Services,103,Supplies and Services,504,Equipment,5023,Revenue,03.GROCERIES & PROVISIONS
27-Feb-2018,7004793,7.04,AF BLAKEMORE & SON LIMITED T/A LOWRIES CASH & CARRY,332872,Commissioning & Investment,Children's & Education Services,103,Supplies and Services,504,Equipment,5023,Revenue,03.GROCERIES & PROVISIONS
27-Feb-2018,7004793,7.35,AF BLAKEMORE & SON LIMITED T/A LOWRIES CASH & CARRY,332872,Commissioning & Investment,Children's & Education Services,103,Supplies and Services,504,Equipment,5023,Revenue,03.GROCERIES & PROVISIONS
27-Feb-2018,7004793,6.58,AF BLAKEMORE & SON LIMITED T/A LOWRIES CASH & CARRY,332872,Commissioning & Investment,Children's & Education Services,103,Supplies and Services,504,Equipment,5023,Revenue,03.GROCERIES & PROVISIONS
27-Feb-2018,7004793,9.48,AF BLAKEMORE & SON LIMITED T/A LOWRIES CASH & CARRY,332872,Commissioning & Investment,Children's & Education Services,103,Supplies and Services,504,Equipment,5023,Revenue,03.GROCERIES & PROVISIONS
27-Feb-2018,7004793,12.03,AF BLAKEMORE & SON LIMITED T/A LOWRIES CASH & CARRY,332872,Commissioning & Investment,Children's & Education Services,103,Supplies and Services,504,Equipment,5023,Revenue,03.GROCERIES & PROVISIONS
27-Feb-2018,7004793,9.72,AF BLAKEMORE & SON LIMITED T/A LOWRIES CASH & CARRY,332872,Commissioning & Investment,Children's & Education Services,103,Supplies and Services,504,Equipment,5023,Revenue,03.GROCERIES & PROVISIONS
27-Feb-2018,7004793,5.56,AF BLAKEMORE & SON LIMITED T/A LOWRIES CASH & CARRY,332872,Commissioning & Investment,Children's & Education Services,103,Supplies and Services,504,Equipment,5023,Revenue,03.GROCERIES & PROVISIONS
27-Feb-2018,7004793,5.96,AF BLAKEMORE & SON LIMITED T/A LOWRIES CASH & CARRY,332872,Commissioning & Investment,Children's & Education Services,103,Supplies and Services,504,Equipment,5023,Revenue,03.GROCERIES & PROVISIONS
27-Feb-2018,7004793,6.80,AF BLAKEMORE & SON LIMITED T/A LOWRIES CASH & CARRY,332872,Commissioning & Investment,Children's & Education Services,103,Supplies and Services,504,Equipment,5023,Revenue,03.GROCERIES & PROVISIONS
27-Feb-2018,7004793,0.85,AF BLAKEMORE & SON LIMITED T/A LOWRIES CASH & CARRY,332872,Commissioning & Investment,Children's & Education Services,103,Supplies and Services,504,Equipment,5023,Revenue,03.GROCERIES & PROVISIONS
27-Feb-2018,7004793,20.76,AF BLAKEMORE & SON LIMITED T/A LOWRIES CASH & CARRY,332872,Commissioning & Investment,Children's & Education Services,103,Supplies and Services,504,Equipment,5023,Revenue,03.GROCERIES & PROVISIONS
27-Feb-2018,7004793,13.58,AF BLAKEMORE & SON LIMITED T/A LOWRIES CASH & CARRY,332872,Commissioning & Investment,Children's & Education Services,103,Supplies and Services,504,Equipment,5023,Revenue,03.GROCERIES & PROVISIONS
27-Feb-2018,7004793,13.84,AF BLAKEMORE & SON LIMITED T/A LOWRIES CASH & CARRY,332872,Commissioning & Investment,Children's & Education Services,103,Supplies and Services,504,Equipment,5023,Revenue,03.GROCERIES & PROVISIONS
27-Feb-2018,7004793,3.78,AF BLAKEMORE & SON LIMITED T/A LOWRIES CASH & CARRY,332872,Commissioning & Investment,Children's & Education Services,103,Supplies and Services,504,Equipment,5023,Revenue,03.GROCERIES & PROVISIONS
27-Feb-2018,7004793,10.38,AF BLAKEMORE & SON LIMITED T/A LOWRIES CASH & CARRY,332872,Commissioning & Investment,Children's & Education Services,103,Supplies and Services,504,Equipment,5023,Revenue,03.GROCERIES & PROVISIONS
27-Feb-2018,7004793,1.70,AF BLAKEMORE & SON LIMITED T/A LOWRIES CASH & CARRY,332872,Commissioning & Investment,Children's & Education Services,103,Supplies and Services,504,Equipment,5023,Revenue,03.GROCERIES & PROVISIONS
27-Feb-2018,7004793,6.72,AF BLAKEMORE & SON LIMITED T/A LOWRIES CASH & CARRY,332872,Commissioning & Investment,Children's & Education Services,103,Supplies and Services,504,Equipment,5023,Revenue,03.GROCERIES & PROVISIONS
27-Feb-2018,7004793,9.76,AF BLAKEMORE & SON LIMITED T/A LOWRIES CASH & CARRY,332872,Commissioning & Investment,Children's & Education Services,103,Supplies and Services,504,Equipment,5023,Revenue,03.GROCERIES & PROVISIONS
27-Feb-2018,7004793,2.53,AF BLAKEMORE & SON LIMITED T/A LOWRIES CASH & CARRY,332872,"Environment, Housing & Leisure",Adult Social Care,101,Supplies and Services,504,Equipment,5023,Revenue,03.GROCERIES & PROVISIONS
27-Feb-2018,7004793,7.78,AF BLAKEMORE & SON LIMITED T/A LOWRIES CASH & CARRY,332872,"Environment, Housing & Leisure",Adult Social Care,101,Supplies and Services,504,Equipment,5023,Revenue,03.GROCERIES & PROVISIONS
27-Feb-2018,7004793,7.78,AF BLAKEMORE & SON LIMITED T/A LOWRIES CASH & CARRY,332872,Commissioning & Investment,Children's & Education Services,103,Supplies and Services,504,Equipment,5023,Revenue,03.GROCERIES & PROVISIONS
27-Feb-2018,7004793,5.76,AF BLAKEMORE & SON LIMITED T/A LOWRIES CASH & CARRY,332872,Commissioning & Investment,Children's & Education Services,103,Supplies and Services,504,Equipment,5023,Revenue,03.GROCERIES & PROVISIONS
27-Feb-2018,7004793,8.00,AF BLAKEMORE & SON LIMITED T/A LOWRIES CASH & CARRY,332872,Commissioning & Investment,Children's & Education Services,103,Supplies and Services,504,Equipment,5023,Revenue,03.GROCERIES & PROVISIONS
27-Feb-2018,7004793,7.35,AF BLAKEMORE & SON LIMITED T/A LOWRIES CASH & CARRY,332872,Commissioning & Investment,Children's & Education Services,103,Supplies and Services,504,Equipment,5023,Revenue,03.GROCERIES & PROVISIONS
27-Feb-2018,7004793,7.27,AF BLAKEMORE & SON LIMITED T/A LOWRIES CASH & CARRY,332872,Commissioning & Investment,Children's & Education Services,103,Supplies and Services,504,Equipment,5023,Revenue,03.GROCERIES & PROVISIONS
27-Feb-2018,7004793,3.25,AF BLAKEMORE & SON LIMITED T/A LOWRIES CASH & CARRY,332872,Commissioning & Investment,Children's & Education Services,103,Supplies and Services,504,Equipment,5023,Revenue,03.GROCERIES & PROVISIONS
27-Feb-2018,7004793,21.84,AF BLAKEMORE & SON LIMITED T/A LOWRIES CASH & CARRY,332872,Commissioning & Investment,Children's & Education Services,103,Supplies and Services,504,Equipment,5023,Revenue,03.GROCERIES & PROVISIONS
27-Feb-2018,7004793,5.10,AF BLAKEMORE & SON LIMITED T/A LOWRIES CASH & CARRY,332872,Commissioning & Investment,Children's & Education Services,103,Supplies and Services,504,Equipment,5023,Revenue,03.GROCERIES & PROVISIONS
27-Feb-2018,7004793,0.89,AF BLAKEMORE & SON LIMITED T/A LOWRIES CASH & CARRY,332872,Commissioning & Investment,Children's & Education Services,103,Supplies and Services,504,Equipment,5023,Revenue,03.GROCERIES & PROVISIONS
27-Feb-2018,7004793,15.20,AF BLAKEMORE & SON LIMITED T/A LOWRIES CASH & CARRY,332872,Commissioning & Investment,Children's & Education Services,103,Supplies and Services,504,Equipment,5023,Revenue,03.GROCERIES & PROVISIONS
27-Feb-2018,7004793,10.92,AF BLAKEMORE & SON LIMITED T/A LOWRIES CASH & CARRY,332872,Commissioning & Investment,Children's & Education Services,103,Supplies and Services,504,Equipment,5023,Revenue,03.GROCERIES & PROVISIONS
27-Feb-2018,7004793,10.48,AF BLAKEMORE & SON LIMITED T/A LOWRIES CASH & CARRY,332872,Commissioning & Investment,Children's & Education Services,103,Supplies and Services,504,Equipment,5023,Revenue,03.GROCERIES & PROVISIONS
27-Feb-2018,7004793,6.42,AF BLAKEMORE & SON LIMITED T/A LOWRIES CASH & CARRY,332872,Commissioning & Investment,Children's & Education Services,103,Supplies and Services,504,Equipment,5023,Revenue,03.GROCERIES & PROVISIONS
27-Feb-2018,7004793,9.50,AF BLAKEMORE & SON LIMITED T/A LOWRIES CASH & CARRY,332872,Commissioning & Investment,Children's & Education Services,103,Supplies and Services,504,Equipment,5023,Revenue,03.GROCERIES & PROVISIONS
27-Feb-2018,7004793,1.24,AF BLAKEMORE & SON LIMITED T/A LOWRIES CASH & CARRY,332872,Commissioning & Investment,Children's & Education Services,103,Supplies and Services,504,Equipment,5023,Revenue,03.GROCERIES & PROVISIONS
27-Feb-2018,7004793,10.99,AF BLAKEMORE & SON LIMITED T/A LOWRIES CASH & CARRY,332872,Commissioning & Investment,Children's & Education Services,103,Supplies and Services,504,Equipment,5023,Revenue,03.GROCERIES & PROVISIONS
27-Feb-2018,7004793,15.20,AF BLAKEMORE & SON LIMITED T/A LOWRIES CASH & CARRY,332872,Commissioning & Investment,Children's & Education Services,103,Supplies and Services,504,Equipment,5023,Revenue,03.GROCERIES & PROVISIONS
27-Feb-2018,7004793,4.12,AF BLAKEMORE & SON LIMITED T/A LOWRIES CASH & CARRY,332872,Commissioning & Investment,Children's & Education Services,103,Supplies and Services,504,Equipment,5023,Revenue,03.GROCERIES & PROVISIONS
27-Feb-2018,7004793,11.87,AF BLAKEMORE & SON LIMITED T/A LOWRIES CASH & CARRY,332872,Commissioning & Investment,Children's & Education Services,103,Supplies and Services,504,Equipment,5023,Revenue,03.GROCERIES & PROVISIONS
27-Feb-2018,7004793,4.70,AF BLAKEMORE & SON LIMITED T/A LOWRIES CASH & CARRY,332872,Commissioning & Investment,Children's & Education Services,103,Supplies and Services,504,Equipment,5023,Revenue,03.GROCERIES & PROVISIONS
27-Feb-2018,7004793,11.67,AF BLAKEMORE & SON LIMITED T/A LOWRIES CASH & CARRY,332872,Commissioning & Investment,Children's & Education Services,103,Supplies and Services,504,Equipment,5023,Revenue,03.GROCERIES & PROVISIONS
27-Feb-2018,7004793,7.97,AF BLAKEMORE & SON LIMITED T/A LOWRIES CASH & CARRY,332872,Commissioning & Investment,Children's & Education Services,103,Supplies and Services,504,Equipment,5023,Revenue,03.GROCERIES & PROVISIONS
27-Feb-2018,7004793,10.38,AF BLAKEMORE & SON LIMITED T/A LOWRIES CASH & CARRY,332872,Commissioning & Investment,Children's & Education Services,103,Supplies and Services,504,Equipment,5023,Revenue,03.GROCERIES & PROVISIONS
27-Feb-2018,7004793,9.88,AF BLAKEMORE & SON LIMITED T/A LOWRIES CASH & CARRY,332872,Commissioning & Investment,Children's & Education Services,103,Supplies and Services,504,Equipment,5023,Revenue,03.GROCERIES & PROVISIONS
27-Feb-2018,7004793,5.67,AF BLAKEMORE & SON LIMITED T/A LOWRIES CASH & CARRY,332872,Commissioning & Investment,Children's & Education Services,103,Supplies and Services,504,Equipment,5023,Revenue,03.GROCERIES & PROVISIONS
27-Feb-2018,7004793,7.56,AF BLAKEMORE & SON LIMITED T/A LOWRIES CASH & CARRY,332872,Commissioning & Investment,Children's & Education Services,103,Supplies and Services,504,Equipment,5023,Revenue,03.GROCERIES & PROVISIONS
27-Feb-2018,7004793,9.50,AF BLAKEMORE & SON LIMITED T/A LOWRIES CASH & CARRY,332872,Commissioning & Investment,Children's & Education Services,103,Supplies and Services,504,Equipment,5023,Revenue,03.GROCERIES & PROVISIONS
27-Feb-2018,7004793,14.70,AF BLAKEMORE & SON LIMITED T/A LOWRIES CASH & CARRY,332872,Commissioning & Investment,Children's & Education Services,103,Supplies and Services,504,Equipment,5023,Revenue,03.GROCERIES & PROVISIONS
27-Feb-2018,7004793,20.76,AF BLAKEMORE & SON LIMITED T/A LOWRIES CASH & CARRY,332872,Commissioning & Investment,Children's & Education Services,103,Supplies and Services,504,Equipment,5023,Revenue,03.GROCERIES & PROVISIONS
27-Feb-2018,7004793,22.23,AF BLAKEMORE & SON LIMITED T/A LOWRIES CASH & CARRY,332872,Commissioning & Investment,Children's & Education Services,103,Supplies and Services,504,Equipment,5023,Revenue,03.GROCERIES & PROVISIONS
27-Feb-2018,7004793,2.78,AF BLAKEMORE & SON LIMITED T/A LOWRIES CASH & CARRY,332872,Commissioning & Investment,Children's & Education Services,103,Supplies and Services,504,Equipment,5023,Revenue,03.GROCERIES & PROVISIONS
27-Feb-2018,7004793,3.40,AF BLAKEMORE & SON LIMITED T/A LOWRIES CASH & CARRY,332872,Commissioning & Investment,Children's & Education Services,103,Supplies and Services,504,Equipment,5023,Revenue,03.GROCERIES & PROVISIONS
27-Feb-2018,7004793,7.41,AF BLAKEMORE & SON LIMITED T/A LOWRIES CASH & CARRY,332872,Commissioning & Investment,Children's & Education Services,103,Supplies and Services,504,Equipment,5023,Revenue,03.GROCERIES & PROVISIONS
27-Feb-2018,7004793,8.20,AF BLAKEMORE & SON LIMITED T/A LOWRIES CASH & CARRY,332872,Commissioning & Investment,Children's & Education Services,103,Supplies and Services,504,Equipment,5023,Revenue,03.GROCERIES & PROVISIONS
27-Feb-2018,7004793,8.52,AF BLAKEMORE & SON LIMITED T/A LOWRIES CASH & CARRY,332872,Commissioning & Investment,Children's & Education Services,103,Supplies and Services,504,Equipment,5023,Revenue,03.GROCERIES & PROVISIONS
27-Feb-2018,7004793,22.23,AF BLAKEMORE & SON LIMITED T/A LOWRIES CASH & CARRY,332872,Commissioning & Investment,Children's & Education Services,103,Supplies and Services,504,Equipment,5023,Revenue,03.GROCERIES & PROVISIONS
27-Feb-2018,7004793,7.60,AF BLAKEMORE & SON LIMITED T/A LOWRIES CASH & CARRY,332872,Commissioning & Investment,Children's & Education Services,103,Supplies and Services,504,Equipment,5023,Revenue,03.GROCERIES & PROVISIONS
27-Feb-2018,7004793,39.66,AF BLAKEMORE & SON LIMITED T/A LOWRIES CASH & CARRY,332872,Commissioning & Investment,Children's & Education Services,103,Supplies and Services,504,Equipment,5023,Revenue,03.GROCERIES & PROVISIONS
27-Feb-2018,7004793,17.04,AF BLAKEMORE & SON LIMITED T/A LOWRIES CASH & CARRY,332872,Commissioning & Investment,Children's & Education Services,103,Supplies and Services,504,Equipment,5023,Revenue,03.GROCERIES & PROVISIONS
27-Feb-2018,7004793,2.54,AF BLAKEMORE & SON LIMITED T/A LOWRIES CASH & CARRY,332872,Commissioning & Investment,Children's & Education Services,103,Supplies and Services,504,Equipment,5023,Revenue,03.GROCERIES & PROVISIONS
27-Feb-2018,7004793,20.76,AF BLAKEMORE & SON LIMITED T/A LOWRIES CASH & CARRY,332872,Commissioning & Investment,Children's & Education Services,103,Supplies and Services,504,Equipment,5023,Revenue,03.GROCERIES & PROVISIONS
27-Feb-2018,7004793,5.48,AF BLAKEMORE & SON LIMITED T/A LOWRIES CASH & CARRY,332872,Commissioning & Investment,Children's & Education Services,103,Supplies and Services,504,Equipment,5023,Revenue,03.GROCERIES & PROVISIONS
27-Feb-2018,7004793,14.70,AF BLAKEMORE & SON LIMITED T/A LOWRIES CASH & CARRY,332872,Commissioning & Investment,Children's & Education Services,103,Supplies and Services,504,Equipment,5023,Revenue,03.GROCERIES & PROVISIONS
27-Feb-2018,7004793,7.05,AF BLAKEMORE & SON LIMITED T/A LOWRIES CASH & CARRY,332872,Commissioning & Investment,Children's & Education Services,103,Supplies and Services,504,Equipment,5023,Revenue,03.GROCERIES & PROVISIONS
27-Feb-2018,7004793,2.73,AF BLAKEMORE & SON LIMITED T/A LOWRIES CASH & CARRY,332872,Commissioning & Investment,Children's & Education Services,103,Supplies and Services,504,Equipment,5023,Revenue,03.GROCERIES & PROVISIONS
27-Feb-2018,7004793,6.04,AF BLAKEMORE & SON LIMITED T/A LOWRIES CASH & CARRY,332872,"Environment, Housing & Leisure",Adult Social Care,101,Supplies and Services,504,Equipment,5023,Revenue,03.GROCERIES & PROVISIONS
27-Feb-2018,7004793,16.74,AF BLAKEMORE & SON LIMITED T/A LOWRIES CASH & CARRY,332872,Commissioning & Investment,Children's & Education Services,103,Supplies and Services,504,Equipment,5023,Revenue,03.GROCERIES & PROVISIONS
27-Feb-2018,7004793,6.66,AF BLAKEMORE & SON LIMITED T/A LOWRIES CASH & CARRY,332872,Commissioning & Investment,Children's & Education Services,103,Supplies and Services,504,Equipment,5023,Revenue,03.GROCERIES & PROVISIONS
27-Feb-2018,7004793,12.91,AF BLAKEMORE & SON LIMITED T/A LOWRIES CASH & CARRY,332872,Commissioning & Investment,Children's & Education Services,103,Supplies and Services,504,Equipment,5023,Revenue,03.GROCERIES & PROVISIONS
27-Feb-2018,7004793,0.85,AF BLAKEMORE & SON LIMITED T/A LOWRIES CASH & CARRY,332872,Commissioning & Investment,Children's & Education Services,103,Supplies and Services,504,Equipment,5023,Revenue,03.GROCERIES & PROVISIONS
27-Feb-2018,7004793,22.68,AF BLAKEMORE & SON LIMITED T/A LOWRIES CASH & CARRY,332872,Commissioning & Investment,Children's & Education Services,103,Supplies and Services,504,Equipment,5023,Revenue,03.GROCERIES & PROVISIONS
27-Feb-2018,7004793,9.02,AF BLAKEMORE & SON LIMITED T/A LOWRIES CASH & CARRY,332872,Commissioning & Investment,Children's & Education Services,103,Supplies and Services,504,Equipment,5023,Revenue,03.GROCERIES & PROVISIONS
27-Feb-2018,7004793,14.82,AF BLAKEMORE & SON LIMITED T/A LOWRIES CASH & CARRY,332872,Commissioning & Investment,Children's & Education Services,103,Supplies and Services,504,Equipment,5023,Revenue,03.GROCERIES & PROVISIONS
27-Feb-2018,7004793,3.27,AF BLAKEMORE & SON LIMITED T/A LOWRIES CASH & CARRY,332872,Commissioning & Investment,Children's & Education Services,103,Supplies and Services,504,Equipment,5023,Revenue,03.GROCERIES & PROVISIONS
27-Feb-2018,7004793,1.80,AF BLAKEMORE & SON LIMITED T/A LOWRIES CASH & CARRY,332872,Commissioning & Investment,Children's & Education Services,103,Supplies and Services,504,Equipment,5023,Revenue,03.GROCERIES & PROVISIONS
27-Feb-2018,7004793,13.58,AF BLAKEMORE & SON LIMITED T/A LOWRIES CASH & CARRY,332872,Commissioning & Investment,Children's & Education Services,103,Supplies and Services,504,Equipment,5023,Revenue,03.GROCERIES & PROVISIONS
27-Feb-2018,7004793,5.70,AF BLAKEMORE & SON LIMITED T/A LOWRIES CASH & CARRY,332872,Commissioning & Investment,Children's & Education Services,103,Supplies and Services,504,Equipment,5023,Revenue,03.GROCERIES & PROVISIONS
27-Feb-2018,7004793,2.06,AF BLAKEMORE & SON LIMITED T/A LOWRIES CASH & CARRY,332872,Commissioning & Investment,Children's & Education Services,103,Supplies and Services,504,Equipment,5023,Revenue,03.GROCERIES & PROVISIONS
27-Feb-2018,7004793,2.78,AF BLAKEMORE & SON LIMITED T/A LOWRIES CASH & CARRY,332872,Commissioning & Investment,Children's & Education Services,103,Supplies and Services,504,Equipment,5023,Revenue,03.GROCERIES & PROVISIONS
27-Feb-2018,7004793,4.70,AF BLAKEMORE & SON LIMITED T/A LOWRIES CASH & CARRY,332872,Commissioning & Investment,Children's & Education Services,103,Supplies and Services,504,Equipment,5023,Revenue,03.GROCERIES & PROVISIONS
27-Feb-2018,7004793,3.63,AF BLAKEMORE & SON LIMITED T/A LOWRIES CASH & CARRY,332872,Commissioning & Investment,Children's & Education Services,103,Supplies and Services,504,Equipment,5023,Revenue,03.GROCERIES & PROVISIONS
27-Feb-2018,7004793,5.18,AF BLAKEMORE & SON LIMITED T/A LOWRIES CASH & CARRY,332872,Commissioning & Investment,Children's & Education Services,103,Supplies and Services,504,Equipment,5023,Revenue,03.GROCERIES & PROVISIONS
27-Feb-2018,7004793,4.96,AF BLAKEMORE & SON LIMITED T/A LOWRIES CASH & CARRY,332872,Commissioning & Investment,Children's & Education Services,103,Supplies and Services,504,Equipment,5023,Revenue,03.GROCERIES & PROVISIONS
27-Feb-2018,7004793,6.55,AF BLAKEMORE & SON LIMITED T/A LOWRIES CASH & CARRY,332872,Commissioning & Investment,Children's & Education Services,103,Supplies and Services,504,Equipment,5023,Revenue,03.GROCERIES & PROVISIONS
27-Feb-2018,7004793,3.28,AF BLAKEMORE & SON LIMITED T/A LOWRIES CASH & CARRY,332872,Commissioning & Investment,Children's & Education Services,103,Supplies and Services,504,Equipment,5023,Revenue,03.GROCERIES & PROVISIONS
27-Feb-2018,7004793,2.98,AF BLAKEMORE & SON LIMITED T/A LOWRIES CASH & CARRY,332872,Commissioning & Investment,Children's & Education Services,103,Supplies and Services,504,Equipment,5023,Revenue,03.GROCERIES & PROVISIONS
27-Feb-2018,7004793,3.24,AF BLAKEMORE & SON LIMITED T/A LOWRIES CASH & CARRY,332872,Commissioning & Investment,Children's & Education Services,103,Supplies and Services,504,Equipment,5023,Revenue,03.GROCERIES & PROVISIONS
27-Feb-2018,7004793,6.66,AF BLAKEMORE & SON LIMITED T/A LOWRIES CASH & CARRY,332872,Commissioning & Investment,Children's & Education Services,103,Supplies and Services,504,Equipment,5023,Revenue,03.GROCERIES & PROVISIONS
27-Feb-2018,7004793,9.02,AF BLAKEMORE & SON LIMITED T/A LOWRIES CASH & CARRY,332872,Commissioning & Investment,Children's & Education Services,103,Supplies and Services,504,Equipment,5023,Revenue,03.GROCERIES & PROVISIONS
27-Feb-2018,7004793,2.54,AF BLAKEMORE & SON LIMITED T/A LOWRIES CASH & CARRY,332872,Commissioning & Investment,Children's & Education Services,103,Supplies and Services,504,Equipment,5023,Revenue,03.GROCERIES & PROVISIONS
27-Feb-2018,7004793,9.88,AF BLAKEMORE & SON LIMITED T/A LOWRIES CASH & CARRY,332872,Commissioning & Investment,Children's & Education Services,103,Supplies and Services,504,Equipment,5023,Revenue,03.GROCERIES & PROVISIONS
27-Feb-2018,7004793,0.80,AF BLAKEMORE & SON LIMITED T/A LOWRIES CASH & CARRY,332872,Commissioning & Investment,Children's & Education Services,103,Supplies and Services,504,Equipment,5023,Revenue,03.GROCERIES & PROVISIONS
27-Feb-2018,7004793,3.95,AF BLAKEMORE & SON LIMITED T/A LOWRIES CASH & CARRY,332872,Commissioning & Investment,Children's & Education Services,103,Supplies and Services,504,Equipment,5023,Revenue,03.GROCERIES & PROVISIONS
27-Feb-2018,7004793,3.11,AF BLAKEMORE & SON LIMITED T/A LOWRIES CASH & CARRY,332872,"Environment, Housing & Leisure",Adult Social Care,101,Supplies and Services,504,Equipment,5023,Revenue,03.GROCERIES & PROVISIONS
27-Feb-2018,7004793,15.72,AF BLAKEMORE & SON LIMITED T/A LOWRIES CASH & CARRY,332872,Commissioning & Investment,Children's & Education Services,103,Supplies and Services,504,Equipment,5023,Revenue,03.GROCERIES & PROVISIONS
27-Feb-2018,7004793,6.12,AF BLAKEMORE & SON LIMITED T/A LOWRIES CASH & CARRY,332872,Commissioning & Investment,Children's & Education Services,103,Supplies and Services,504,Equipment,5023,Revenue,03.GROCERIES & PROVISIONS
27-Feb-2018,7004793,9.88,AF BLAKEMORE & SON LIMITED T/A LOWRIES CASH & CARRY,332872,Commissioning & Investment,Children's & Education Services,103,Supplies and Services,504,Equipment,5023,Revenue,03.GROCERIES & PROVISIONS
27-Feb-2018,7004793,4.86,AF BLAKEMORE & SON LIMITED T/A LOWRIES CASH & CARRY,332872,Commissioning & Investment,Children's & Education Services,103,Supplies and Services,504,Equipment,5023,Revenue,03.GROCERIES & PROVISIONS
27-Feb-2018,7004793,3.49,AF BLAKEMORE & SON LIMITED T/A LOWRIES CASH & CARRY,332872,Commissioning & Investment,Children's & Education Services,103,Supplies and Services,504,Equipment,5023,Revenue,03.GROCERIES & PROVISIONS
27-Feb-2018,7004793,7.21,AF BLAKEMORE & SON LIMITED T/A LOWRIES CASH & CARRY,332872,Commissioning & Investment,Children's & Education Services,103,Supplies and Services,504,Equipment,5023,Revenue,03.GROCERIES & PROVISIONS
27-Feb-2018,7004793,2.54,AF BLAKEMORE & SON LIMITED T/A LOWRIES CASH & CARRY,332872,Commissioning & Investment,Children's & Education Services,103,Supplies and Services,504,Equipment,5023,Revenue,03.GROCERIES & PROVISIONS
27-Feb-2018,7004793,3.24,AF BLAKEMORE & SON LIMITED T/A LOWRIES CASH & CARRY,332872,Commissioning & Investment,Children's & Education Services,103,Supplies and Services,504,Equipment,5023,Revenue,03.GROCERIES & PROVISIONS
27-Feb-2018,7004793,5.56,AF BLAKEMORE & SON LIMITED T/A LOWRIES CASH & CARRY,332872,Commissioning & Investment,Children's & Education Services,103,Supplies and Services,504,Equipment,5023,Revenue,03.GROCERIES & PROVISIONS
27-Feb-2018,7004793,20.72,AF BLAKEMORE & SON LIMITED T/A LOWRIES CASH & CARRY,332872,Commissioning & Investment,Children's & Education Services,103,Supplies and Services,504,Equipment,5023,Revenue,03.GROCERIES & PROVISIONS
27-Feb-2018,7004793,20.96,AF BLAKEMORE & SON LIMITED T/A LOWRIES CASH & CARRY,332872,Commissioning & Investment,Children's & Education Services,103,Supplies and Services,504,Equipment,5023,Revenue,03.GROCERIES & PROVISIONS
27-Feb-2018,7004793,3.00,AF BLAKEMORE & SON LIMITED T/A LOWRIES CASH & CARRY,332872,Commissioning & Investment,Children's & Education Services,103,Supplies and Services,504,Equipment,5023,Revenue,03.GROCERIES & PROVISIONS
27-Feb-2018,7004793,3.78,AF BLAKEMORE & SON LIMITED T/A LOWRIES CASH & CARRY,332872,Commissioning & Investment,Children's & Education Services,103,Supplies and Services,504,Equipment,5023,Revenue,03.GROCERIES & PROVISIONS
27-Feb-2018,7004793,2.78,AF BLAKEMORE & SON LIMITED T/A LOWRIES CASH & CARRY,332872,Commissioning & Investment,Children's & Education Services,103,Supplies and Services,504,Equipment,5023,Revenue,03.GROCERIES & PROVISIONS
27-Feb-2018,7004793,4.32,AF BLAKEMORE & SON LIMITED T/A LOWRIES CASH & CARRY,332872,Commissioning & Investment,Children's & Education Services,103,Supplies and Services,504,Equipment,5023,Revenue,03.GROCERIES & PROVISIONS
27-Feb-2018,7004793,9.02,AF BLAKEMORE & SON LIMITED T/A LOWRIES CASH & CARRY,332872,Commissioning & Investment,Children's & Education Services,103,Supplies and Services,504,Equipment,5023,Revenue,03.GROCERIES & PROVISIONS
27-Feb-2018,7004793,21.09,AF BLAKEMORE & SON LIMITED T/A LOWRIES CASH & CARRY,332872,Commissioning & Investment,Children's & Education Services,103,Supplies and Services,504,Equipment,5023,Revenue,03.GROCERIES & PROVISIONS
27-Feb-2018,7004793,1.19,AF BLAKEMORE & SON LIMITED T/A LOWRIES CASH & CARRY,332872,Commissioning & Investment,Children's & Education Services,103,Supplies and Services,504,Equipment,5023,Revenue,03.GROCERIES & PROVISIONS
27-Feb-2018,7004793,9.02,AF BLAKEMORE & SON LIMITED T/A LOWRIES CASH & CARRY,332872,Commissioning & Investment,Children's & Education Services,103,Supplies and Services,504,Equipment,5023,Revenue,03.GROCERIES & PROVISIONS
27-Feb-2018,7004793,3.69,AF BLAKEMORE & SON LIMITED T/A LOWRIES CASH & CARRY,332872,Commissioning & Investment,Children's & Education Services,103,Supplies and Services,504,Equipment,5023,Revenue,03.GROCERIES & PROVISIONS
27-Feb-2018,7004793,37.05,AF BLAKEMORE & SON LIMITED T/A LOWRIES CASH & CARRY,332872,Commissioning & Investment,Children's & Education Services,103,Supplies and Services,504,Equipment,5023,Revenue,03.GROCERIES & PROVISIONS
27-Feb-2018,7004793,26.44,AF BLAKEMORE & SON LIMITED T/A LOWRIES CASH & CARRY,332872,Commissioning & Investment,Children's & Education Services,103,Supplies and Services,504,Equipment,5023,Revenue,03.GROCERIES & PROVISIONS
27-Feb-2018,7004793,11.85,AF BLAKEMORE & SON LIMITED T/A LOWRIES CASH & CARRY,332872,Commissioning & Investment,Children's & Education Services,103,Supplies and Services,504,Equipment,5023,Revenue,03.GROCERIES & PROVISIONS
27-Feb-2018,7004793,9.90,AF BLAKEMORE & SON LIMITED T/A LOWRIES CASH & CARRY,332872,Commissioning & Investment,Children's & Education Services,103,Supplies and Services,504,Equipment,5023,Revenue,03.GROCERIES & PROVISIONS
27-Feb-2018,7004793,0.68,AF BLAKEMORE & SON LIMITED T/A LOWRIES CASH & CARRY,332872,Commissioning & Investment,Children's & Education Services,103,Supplies and Services,504,Equipment,5023,Revenue,03.GROCERIES & PROVISIONS
27-Feb-2018,7004793,32.76,AF BLAKEMORE & SON LIMITED T/A LOWRIES CASH & CARRY,332872,Commissioning & Investment,Children's & Education Services,103,Supplies and Services,504,Equipment,5023,Revenue,03.GROCERIES & PROVISIONS
27-Feb-2018,7004793,8.37,AF BLAKEMORE & SON LIMITED T/A LOWRIES CASH & CARRY,332872,Commissioning & Investment,Children's & Education Services,103,Supplies and Services,504,Equipment,5023,Revenue,03.GROCERIES & PROVISIONS
27-Feb-2018,7004793,85.14,AF BLAKEMORE & SON LIMITED T/A LOWRIES CASH & CARRY,332872,Commissioning & Investment,Children's & Education Services,103,Supplies and Services,504,Equipment,5023,Revenue,03.GROCERIES & PROVISIONS
27-Feb-2018,7004793,9.02,AF BLAKEMORE & SON LIMITED T/A LOWRIES CASH & CARRY,332872,Commissioning & Investment,Children's & Education Services,103,Supplies and Services,504,Equipment,5023,Revenue,03.GROCERIES & PROVISIONS
27-Feb-2018,7004793,37.20,AF BLAKEMORE & SON LIMITED T/A LOWRIES CASH & CARRY,332872,Commissioning & Investment,Children's & Education Services,103,Supplies and Services,504,Equipment,5023,Revenue,03.GROCERIES & PROVISIONS
27-Feb-2018,7004793,18.12,AF BLAKEMORE & SON LIMITED T/A LOWRIES CASH & CARRY,332872,Commissioning & Investment,Children's & Education Services,103,Supplies and Services,504,Equipment,5023,Revenue,03.GROCERIES & PROVISIONS
27-Feb-2018,7004793,2.78,AF BLAKEMORE & SON LIMITED T/A LOWRIES CASH & CARRY,332872,Commissioning & Investment,Children's & Education Services,103,Supplies and Services,504,Equipment,5023,Revenue,03.GROCERIES & PROVISIONS
27-Feb-2018,7004793,36.35,AF BLAKEMORE & SON LIMITED T/A LOWRIES CASH & CARRY,332872,Commissioning & Investment,Children's & Education Services,103,Supplies and Services,504,Equipment,5023,Revenue,03.GROCERIES & PROVISIONS
27-Feb-2018,7004793,79.32,AF BLAKEMORE & SON LIMITED T/A LOWRIES CASH & CARRY,332872,Commissioning & Investment,Children's & Education Services,103,Supplies and Services,504,Equipment,5023,Revenue,03.GROCERIES & PROVISIONS
27-Feb-2018,7004793,1.08,AF BLAKEMORE & SON LIMITED T/A LOWRIES CASH & CARRY,332872,Commissioning & Investment,Children's & Education Services,103,Supplies and Services,504,Equipment,5023,Revenue,03.GROCERIES & PROVISIONS
27-Feb-2018,7004793,10.29,AF BLAKEMORE & SON LIMITED T/A LOWRIES CASH & CARRY,332872,Commissioning & Investment,Children's & Education Services,103,Supplies and Services,504,Equipment,5023,Revenue,03.GROCERIES & PROVISIONS
27-Feb-2018,7004793,4.08,AF BLAKEMORE & SON LIMITED T/A LOWRIES CASH & CARRY,332872,Commissioning & Investment,Children's & Education Services,103,Supplies and Services,504,Equipment,5023,Revenue,03.GROCERIES & PROVISIONS
27-Feb-2018,7004793,3.00,AF BLAKEMORE & SON LIMITED T/A LOWRIES CASH & CARRY,332872,Commissioning & Investment,Children's & Education Services,103,Supplies and Services,504,Equipment,5023,Revenue,03.GROCERIES & PROVISIONS
27-Feb-2018,7004793,5.78,AF BLAKEMORE & SON LIMITED T/A LOWRIES CASH & CARRY,332872,Commissioning & Investment,Children's & Education Services,103,Supplies and Services,504,Equipment,5023,Revenue,03.GROCERIES & PROVISIONS
27-Feb-2018,7004793,4.08,AF BLAKEMORE & SON LIMITED T/A LOWRIES CASH & CARRY,332872,Commissioning & Investment,Children's & Education Services,103,Supplies and Services,504,Equipment,5023,Revenue,03.GROCERIES & PROVISIONS
27-Feb-2018,7004793,8.84,AF BLAKEMORE & SON LIMITED T/A LOWRIES CASH & CARRY,332872,Commissioning & Investment,Children's & Education Services,103,Supplies and Services,504,Equipment,5023,Revenue,03.GROCERIES & PROVISIONS
27-Feb-2018,7004793,21.84,AF BLAKEMORE & SON LIMITED T/A LOWRIES CASH & CARRY,332872,Commissioning & Investment,Children's & Education Services,103,Supplies and Services,504,Equipment,5023,Revenue,03.GROCERIES & PROVISIONS
27-Feb-2018,7004793,10.00,AF BLAKEMORE & SON LIMITED T/A LOWRIES CASH & CARRY,332872,Commissioning & Investment,Children's & Education Services,103,Supplies and Services,504,Equipment,5023,Revenue,03.GROCERIES & PROVISIONS
27-Feb-2018,7004793,15.38,AF BLAKEMORE & SON LIMITED T/A LOWRIES CASH & CARRY,332872,Commissioning & Investment,Children's & Education Services,103,Supplies and Services,504,Equipment,5023,Revenue,03.GROCERIES & PROVISIONS
27-Feb-2018,7004793,6.79,AF BLAKEMORE & SON LIMITED T/A LOWRIES CASH & CARRY,332872,Commissioning & Investment,Children's & Education Services,103,Supplies and Services,504,Equipment,5023,Revenue,03.GROCERIES & PROVISIONS
27-Feb-2018,7004793,7.20,AF BLAKEMORE & SON LIMITED T/A LOWRIES CASH & CARRY,332872,Commissioning & Investment,Children's & Education Services,103,Supplies and Services,504,Equipment,5023,Revenue,03.GROCERIES & PROVISIONS
27-Feb-2018,7004793,3.72,AF BLAKEMORE & SON LIMITED T/A LOWRIES CASH & CARRY,332872,Commissioning & Investment,Children's & Education Services,103,Supplies and Services,504,Equipment,5023,Revenue,03.GROCERIES & PROVISIONS
27-Feb-2018,7004793,6.79,AF BLAKEMORE & SON LIMITED T/A LOWRIES CASH & CARRY,332872,Commissioning & Investment,Children's & Education Services,103,Supplies and Services,504,Equipment,5023,Revenue,03.GROCERIES & PROVISIONS
27-Feb-2018,7004793,6.43,AF BLAKEMORE & SON LIMITED T/A LOWRIES CASH & CARRY,332872,Commissioning & Investment,Children's & Education Services,103,Supplies and Services,504,Equipment,5023,Revenue,03.GROCERIES & PROVISIONS
27-Feb-2018,7004793,26.31,AF BLAKEMORE & SON LIMITED T/A LOWRIES CASH & CARRY,332872,Commissioning & Investment,Children's & Education Services,103,Supplies and Services,504,Equipment,5023,Revenue,03.GROCERIES & PROVISIONS
27-Feb-2018,7004793,8.37,AF BLAKEMORE & SON LIMITED T/A LOWRIES CASH & CARRY,332872,Commissioning & Investment,Children's & Education Services,103,Supplies and Services,504,Equipment,5023,Revenue,03.GROCERIES & PROVISIONS
27-Feb-2018,7004793,15.20,AF BLAKEMORE & SON LIMITED T/A LOWRIES CASH & CARRY,332872,Commissioning & Investment,Children's & Education Services,103,Supplies and Services,504,Equipment,5023,Revenue,03.GROCERIES & PROVISIONS
27-Feb-2018,7004793,-3.11,AF BLAKEMORE & SON LIMITED T/A LOWRIES CASH & CARRY,332872,"Environment, Housing & Leisure",Cultural & Related Services,104,Supplies and Services,504,Equipment,5023,Revenue,03.GROCERIES & PROVISIONS
27-Feb-2018,7004793,8.99,AF BLAKEMORE & SON LIMITED T/A LOWRIES CASH & CARRY,332872,Commissioning & Investment,Children's & Education Services,103,Supplies and Services,504,Equipment,5023,Revenue,03.GROCERIES & PROVISIONS
27-Feb-2018,7004793,16.48,AF BLAKEMORE & SON LIMITED T/A LOWRIES CASH & CARRY,332872,Commissioning & Investment,Children's & Education Services,103,Supplies and Services,504,Equipment,5023,Revenue,03.GROCERIES & PROVISIONS
27-Feb-2018,7004793,57.12,AF BLAKEMORE & SON LIMITED T/A LOWRIES CASH & CARRY,332872,Commissioning & Investment,Children's & Education Services,103,Supplies and Services,504,Equipment,5023,Revenue,03.GROCERIES & PROVISIONS
27-Feb-2018,7004793,19.83,AF BLAKEMORE & SON LIMITED T/A LOWRIES CASH & CARRY,332872,Commissioning & Investment,Children's & Education Services,103,Supplies and Services,504,Equipment,5023,Revenue,03.GROCERIES & PROVISIONS
27-Feb-2018,7004793,2.78,AF BLAKEMORE & SON LIMITED T/A LOWRIES CASH & CARRY,332872,Commissioning & Investment,Children's & Education Services,103,Supplies and Services,504,Equipment,5023,Revenue,03.GROCERIES & PROVISIONS
27-Feb-2018,7004793,8.20,AF BLAKEMORE & SON LIMITED T/A LOWRIES CASH & CARRY,332872,Commissioning & Investment,Children's & Education Services,103,Supplies and Services,504,Equipment,5023,Revenue,03.GROCERIES & PROVISIONS
27-Feb-2018,7004793,2.84,AF BLAKEMORE & SON LIMITED T/A LOWRIES CASH & CARRY,332872,Commissioning & Investment,Children's & Education Services,103,Supplies and Services,504,Equipment,5023,Revenue,03.GROCERIES & PROVISIONS
27-Feb-2018,7004793,2.78,AF BLAKEMORE & SON LIMITED T/A LOWRIES CASH & CARRY,332872,Commissioning & Investment,Children's & Education Services,103,Supplies and Services,504,Equipment,5023,Revenue,03.GROCERIES & PROVISIONS
27-Feb-2018,7004793,15.20,AF BLAKEMORE & SON LIMITED T/A LOWRIES CASH & CARRY,332872,Commissioning & Investment,Children's & Education Services,103,Supplies and Services,504,Equipment,5023,Revenue,03.GROCERIES & PROVISIONS
27-Feb-2018,7004793,3.78,AF BLAKEMORE & SON LIMITED T/A LOWRIES CASH & CARRY,332872,Commissioning & Investment,Children's & Education Services,103,Supplies and Services,504,Equipment,5023,Revenue,03.GROCERIES & PROVISIONS
27-Feb-2018,7004793,8.52,AF BLAKEMORE & SON LIMITED T/A LOWRIES CASH & CARRY,332872,Commissioning & Investment,Children's & Education Services,103,Supplies and Services,504,Equipment,5023,Revenue,03.GROCERIES & PROVISIONS
27-Feb-2018,7004793,9.02,AF BLAKEMORE & SON LIMITED T/A LOWRIES CASH & CARRY,332872,Commissioning & Investment,Children's & Education Services,103,Supplies and Services,504,Equipment,5023,Revenue,03.GROCERIES & PROVISIONS
27-Feb-2018,7004793,23.34,AF BLAKEMORE & SON LIMITED T/A LOWRIES CASH & CARRY,332872,Commissioning & Investment,Children's & Education Services,103,Supplies and Services,504,Equipment,5023,Revenue,03.GROCERIES & PROVISIONS
27-Feb-2018,7004793,43.62,AF BLAKEMORE & SON LIMITED T/A LOWRIES CASH & CARRY,332872,Commissioning & Investment,Children's & Education Services,103,Supplies and Services,504,Equipment,5023,Revenue,03.GROCERIES & PROVISIONS
27-Feb-2018,7004793,5.30,AF BLAKEMORE & SON LIMITED T/A LOWRIES CASH & CARRY,332872,Commissioning & Investment,Children's & Education Services,103,Supplies and Services,504,Equipment,5023,Revenue,03.GROCERIES & PROVISIONS
27-Feb-2018,7004793,2.28,AF BLAKEMORE & SON LIMITED T/A LOWRIES CASH & CARRY,332872,Commissioning & Investment,Children's & Education Services,103,Supplies and Services,504,Equipment,5023,Revenue,03.GROCERIES & PROVISIONS
27-Feb-2018,7004793,2.47,AF BLAKEMORE & SON LIMITED T/A LOWRIES CASH & CARRY,332872,Commissioning & Investment,Children's & Education Services,103,Supplies and Services,504,Equipment,5023,Revenue,03.GROCERIES & PROVISIONS
27-Feb-2018,7004793,1.60,AF BLAKEMORE & SON LIMITED T/A LOWRIES CASH & CARRY,332872,Commissioning & Investment,Children's & Education Services,103,Supplies and Services,504,Equipment,5023,Revenue,03.GROCERIES & PROVISIONS
27-Feb-2018,7004793,8.20,AF BLAKEMORE & SON LIMITED T/A LOWRIES CASH & CARRY,332872,Commissioning & Investment,Children's & Education Services,103,Supplies and Services,504,Equipment,5023,Revenue,03.GROCERIES & PROVISIONS
27-Feb-2018,7004793,8.94,AF BLAKEMORE & SON LIMITED T/A LOWRIES CASH & CARRY,332872,Commissioning & Investment,Children's & Education Services,103,Supplies and Services,504,Equipment,5023,Revenue,03.GROCERIES & PROVISIONS
27-Feb-2018,7004793,7.00,AF BLAKEMORE & SON LIMITED T/A LOWRIES CASH & CARRY,332872,Commissioning & Investment,Children's & Education Services,103,Supplies and Services,504,Equipment,5023,Revenue,03.GROCERIES & PROVISIONS
27-Feb-2018,7004793,14.70,AF BLAKEMORE & SON LIMITED T/A LOWRIES CASH & CARRY,332872,Commissioning & Investment,Children's & Education Services,103,Supplies and Services,504,Equipment,5023,Revenue,03.GROCERIES & PROVISIONS
27-Feb-2018,7004793,16.30,AF BLAKEMORE & SON LIMITED T/A LOWRIES CASH & CARRY,332872,Commissioning & Investment,Children's & Education Services,103,Supplies and Services,504,Equipment,5023,Revenue,03.GROCERIES & PROVISIONS
27-Feb-2018,7004793,4.62,AF BLAKEMORE & SON LIMITED T/A LOWRIES CASH & CARRY,332872,Commissioning & Investment,Children's & Education Services,103,Supplies and Services,504,Equipment,5023,Revenue,03.GROCERIES & PROVISIONS
27-Feb-2018,7004793,8.88,AF BLAKEMORE & SON LIMITED T/A LOWRIES CASH & CARRY,332872,Commissioning & Investment,Children's & Education Services,103,Supplies and Services,504,Equipment,5023,Revenue,03.GROCERIES & PROVISIONS
27-Feb-2018,7004793,4.40,AF BLAKEMORE & SON LIMITED T/A LOWRIES CASH & CARRY,332872,Commissioning & Investment,Children's & Education Services,103,Supplies and Services,504,Equipment,5023,Revenue,03.GROCERIES & PROVISIONS
27-Feb-2018,7004793,9.66,AF BLAKEMORE & SON LIMITED T/A LOWRIES CASH & CARRY,332872,Commissioning & Investment,Children's & Education Services,103,Supplies and Services,504,Equipment,5023,Revenue,03.GROCERIES & PROVISIONS
27-Feb-2018,7004793,24.64,AF BLAKEMORE & SON LIMITED T/A LOWRIES CASH & CARRY,332872,Commissioning & Investment,Children's & Education Services,103,Supplies and Services,504,Equipment,5023,Revenue,03.GROCERIES & PROVISIONS
27-Feb-2018,7004793,5.56,AF BLAKEMORE & SON LIMITED T/A LOWRIES CASH & CARRY,332872,Commissioning & Investment,Children's & Education Services,103,Supplies and Services,504,Equipment,5023,Revenue,03.GROCERIES & PROVISIONS
27-Feb-2018,7004793,2.98,AF BLAKEMORE & SON LIMITED T/A LOWRIES CASH & CARRY,332872,Commissioning & Investment,Children's & Education Services,103,Supplies and Services,504,Equipment,5023,Revenue,03.GROCERIES & PROVISIONS
27-Feb-2018,7004793,44.46,AF BLAKEMORE & SON LIMITED T/A LOWRIES CASH & CARRY,332872,Commissioning & Investment,Children's & Education Services,103,Supplies and Services,504,Equipment,5023,Revenue,03.GROCERIES & PROVISIONS
27-Feb-2018,7004793,1.78,AF BLAKEMORE & SON LIMITED T/A LOWRIES CASH & CARRY,332872,Commissioning & Investment,Children's & Education Services,103,Supplies and Services,504,Equipment,5023,Revenue,03.GROCERIES & PROVISIONS
27-Feb-2018,7004793,4.08,AF BLAKEMORE & SON LIMITED T/A LOWRIES CASH & CARRY,332872,Commissioning & Investment,Children's & Education Services,103,Supplies and Services,504,Equipment,5023,Revenue,03.GROCERIES & PROVISIONS
27-Feb-2018,7004793,7.35,AF BLAKEMORE & SON LIMITED T/A LOWRIES CASH & CARRY,332872,Commissioning & Investment,Children's & Education Services,103,Supplies and Services,504,Equipment,5023,Revenue,03.GROCERIES & PROVISIONS
27-Feb-2018,7004793,22.05,AF BLAKEMORE & SON LIMITED T/A LOWRIES CASH & CARRY,332872,Commissioning & Investment,Children's & Education Services,103,Supplies and Services,504,Equipment,5023,Revenue,03.GROCERIES & PROVISIONS
27-Feb-2018,7004793,3.89,AF BLAKEMORE & SON LIMITED T/A LOWRIES CASH & CARRY,332872,Commissioning & Investment,Children's & Education Services,103,Supplies and Services,504,Equipment,5023,Revenue,03.GROCERIES & PROVISIONS
27-Feb-2018,7004793,2.48,AF BLAKEMORE & SON LIMITED T/A LOWRIES CASH & CARRY,332872,Commissioning & Investment,Children's & Education Services,103,Supplies and Services,504,Equipment,5023,Revenue,03.GROCERIES & PROVISIONS
27-Feb-2018,7004793,2.25,AF BLAKEMORE & SON LIMITED T/A LOWRIES CASH & CARRY,332872,Commissioning & Investment,Children's & Education Services,103,Supplies and Services,504,Equipment,5023,Revenue,03.GROCERIES & PROVISIONS
27-Feb-2018,7004793,15.38,AF BLAKEMORE & SON LIMITED T/A LOWRIES CASH & CARRY,332872,Commissioning & Investment,Children's & Education Services,103,Supplies and Services,504,Equipment,5023,Revenue,03.GROCERIES & PROVISIONS
27-Feb-2018,7004793,5.68,AF BLAKEMORE & SON LIMITED T/A LOWRIES CASH & CARRY,332872,Commissioning & Investment,Children's & Education Services,103,Supplies and Services,504,Equipment,5023,Revenue,03.GROCERIES & PROVISIONS
27-Feb-2018,7004793,5.48,AF BLAKEMORE & SON LIMITED T/A LOWRIES CASH & CARRY,332872,Commissioning & Investment,Children's & Education Services,103,Supplies and Services,504,Equipment,5023,Revenue,03.GROCERIES & PROVISIONS
27-Feb-2018,7004793,2.78,AF BLAKEMORE & SON LIMITED T/A LOWRIES CASH & CARRY,332872,Commissioning & Investment,Children's & Education Services,103,Supplies and Services,504,Equipment,5023,Revenue,03.GROCERIES & PROVISIONS
27-Feb-2018,7004793,22.23,AF BLAKEMORE & SON LIMITED T/A LOWRIES CASH & CARRY,332872,Commissioning & Investment,Children's & Education Services,103,Supplies and Services,504,Equipment,5023,Revenue,03.GROCERIES & PROVISIONS
27-Feb-2018,7004793,30.40,AF BLAKEMORE & SON LIMITED T/A LOWRIES CASH & CARRY,332872,Commissioning & Investment,Children's & Education Services,103,Supplies and Services,504,Equipment,5023,Revenue,03.GROCERIES & PROVISIONS
27-Feb-2018,7004793,8.84,AF BLAKEMORE & SON LIMITED T/A LOWRIES CASH & CARRY,332872,Commissioning & Investment,Children's & Education Services,103,Supplies and Services,504,Equipment,5023,Revenue,03.GROCERIES & PROVISIONS
27-Feb-2018,7004793,1.88,AF BLAKEMORE & SON LIMITED T/A LOWRIES CASH & CARRY,332872,Commissioning & Investment,Children's & Education Services,103,Supplies and Services,504,Equipment,5023,Revenue,03.GROCERIES & PROVISIONS
27-Feb-2018,7004793,2.48,AF BLAKEMORE & SON LIMITED T/A LOWRIES CASH & CARRY,332872,Commissioning & Investment,Children's & Education Services,103,Supplies and Services,504,Equipment,5023,Revenue,03.GROCERIES & PROVISIONS
27-Feb-2018,7004793,7.41,AF BLAKEMORE & SON LIMITED T/A LOWRIES CASH & CARRY,332872,Commissioning & Investment,Children's & Education Services,103,Supplies and Services,504,Equipment,5023,Revenue,03.GROCERIES & PROVISIONS
27-Feb-2018,7004793,7.00,AF BLAKEMORE & SON LIMITED T/A LOWRIES CASH & CARRY,332872,Commissioning & Investment,Children's & Education Services,103,Supplies and Services,504,Equipment,5023,Revenue,03.GROCERIES & PROVISIONS
27-Feb-2018,7004793,4.04,AF BLAKEMORE & SON LIMITED T/A LOWRIES CASH & CARRY,332872,"Environment, Housing & Leisure",Adult Social Care,101,Supplies and Services,504,Equipment,5023,Revenue,03.GROCERIES & PROVISIONS
27-Feb-2018,7004793,15.58,AF BLAKEMORE & SON LIMITED T/A LOWRIES CASH & CARRY,332872,Commissioning & Investment,Children's & Education Services,103,Supplies and Services,504,Equipment,5023,Revenue,03.GROCERIES & PROVISIONS
27-Feb-2018,7004793,26.31,AF BLAKEMORE & SON LIMITED T/A LOWRIES CASH & CARRY,332872,Commissioning & Investment,Children's & Education Services,103,Supplies and Services,504,Equipment,5023,Revenue,03.GROCERIES & PROVISIONS
27-Feb-2018,7004793,24.64,AF BLAKEMORE & SON LIMITED T/A LOWRIES CASH & CARRY,332872,Commissioning & Investment,Children's & Education Services,103,Supplies and Services,504,Equipment,5023,Revenue,03.GROCERIES & PROVISIONS
27-Feb-2018,7004793,7.60,AF BLAKEMORE & SON LIMITED T/A LOWRIES CASH & CARRY,332872,Commissioning & Investment,Children's & Education Services,103,Supplies and Services,504,Equipment,5023,Revenue,03.GROCERIES & PROVISIONS
27-Feb-2018,7004793,1.36,AF BLAKEMORE & SON LIMITED T/A LOWRIES CASH & CARRY,332872,Commissioning & Investment,Children's & Education Services,103,Supplies and Services,504,Equipment,5023,Revenue,03.GROCERIES & PROVISIONS
27-Feb-2018,7004793,14.76,AF BLAKEMORE & SON LIMITED T/A LOWRIES CASH & CARRY,332872,Commissioning & Investment,Children's & Education Services,103,Supplies and Services,504,Equipment,5023,Revenue,03.GROCERIES & PROVISIONS
27-Feb-2018,7004793,24.22,AF BLAKEMORE & SON LIMITED T/A LOWRIES CASH & CARRY,332872,Commissioning & Investment,Children's & Education Services,103,Supplies and Services,504,Equipment,5023,Revenue,03.GROCERIES & PROVISIONS
27-Feb-2018,7004793,43.62,AF BLAKEMORE & SON LIMITED T/A LOWRIES CASH & CARRY,332872,Commissioning & Investment,Children's & Education Services,103,Supplies and Services,504,Equipment,5023,Revenue,03.GROCERIES & PROVISIONS
27-Feb-2018,7004793,1.24,AF BLAKEMORE & SON LIMITED T/A LOWRIES CASH & CARRY,332872,Commissioning & Investment,Children's & Education Services,103,Supplies and Services,504,Equipment,5023,Revenue,03.GROCERIES & PROVISIONS
27-Feb-2018,7004793,4.26,AF BLAKEMORE & SON LIMITED T/A LOWRIES CASH & CARRY,332872,Commissioning & Investment,Children's & Education Services,103,Supplies and Services,504,Equipment,5023,Revenue,03.GROCERIES & PROVISIONS
27-Feb-2018,7004793,14.82,AF BLAKEMORE & SON LIMITED T/A LOWRIES CASH & CARRY,332872,Commissioning & Investment,Children's & Education Services,103,Supplies and Services,504,Equipment,5023,Revenue,03.GROCERIES & PROVISIONS
27-Feb-2018,7004793,2.48,AF BLAKEMORE & SON LIMITED T/A LOWRIES CASH & CARRY,332872,Commissioning & Investment,Children's & Education Services,103,Supplies and Services,504,Equipment,5023,Revenue,03.GROCERIES & PROVISIONS
27-Feb-2018,7004793,1.62,AF BLAKEMORE & SON LIMITED T/A LOWRIES CASH & CARRY,332872,Commissioning & Investment,Children's & Education Services,103,Supplies and Services,504,Equipment,5023,Revenue,03.GROCERIES & PROVISIONS
27-Feb-2018,7004793,4.12,AF BLAKEMORE & SON LIMITED T/A LOWRIES CASH & CARRY,332872,Commissioning & Investment,Children's & Education Services,103,Supplies and Services,504,Equipment,5023,Revenue,03.GROCERIES & PROVISIONS
27-Feb-2018,7004793,3.78,AF BLAKEMORE & SON LIMITED T/A LOWRIES CASH & CARRY,332872,Commissioning & Investment,Children's & Education Services,103,Supplies and Services,504,Equipment,5023,Revenue,03.GROCERIES & PROVISIONS
27-Feb-2018,7004793,14.70,AF BLAKEMORE & SON LIMITED T/A LOWRIES CASH & CARRY,332872,Commissioning & Investment,Children's & Education Services,103,Supplies and Services,504,Equipment,5023,Revenue,03.GROCERIES & PROVISIONS
27-Feb-2018,7004793,7.27,AF BLAKEMORE & SON LIMITED T/A LOWRIES CASH & CARRY,332872,Commissioning & Investment,Children's & Education Services,103,Supplies and Services,504,Equipment,5023,Revenue,03.GROCERIES & PROVISIONS
27-Feb-2018,7004793,6.40,AF BLAKEMORE & SON LIMITED T/A LOWRIES CASH & CARRY,332872,Commissioning & Investment,Children's & Education Services,103,Supplies and Services,504,Equipment,5023,Revenue,03.GROCERIES & PROVISIONS
27-Feb-2018,7004793,5.56,AF BLAKEMORE & SON LIMITED T/A LOWRIES CASH & CARRY,332872,Commissioning & Investment,Children's & Education Services,103,Supplies and Services,504,Equipment,5023,Revenue,03.GROCERIES & PROVISIONS
27-Feb-2018,7004793,1.24,AF BLAKEMORE & SON LIMITED T/A LOWRIES CASH & CARRY,332872,Commissioning & Investment,Children's & Education Services,103,Supplies and Services,504,Equipment,5023,Revenue,03.GROCERIES & PROVISIONS
27-Feb-2018,7004793,25.56,AF BLAKEMORE & SON LIMITED T/A LOWRIES CASH & CARRY,332872,Commissioning & Investment,Children's & Education Services,103,Supplies and Services,504,Equipment,5023,Revenue,03.GROCERIES & PROVISIONS
27-Feb-2018,7004793,13.58,AF BLAKEMORE & SON LIMITED T/A LOWRIES CASH & CARRY,332872,Commissioning & Investment,Children's & Education Services,103,Supplies and Services,504,Equipment,5023,Revenue,03.GROCERIES & PROVISIONS
27-Feb-2018,7004793,5.48,AF BLAKEMORE & SON LIMITED T/A LOWRIES CASH & CARRY,332872,Commissioning & Investment,Children's & Education Services,103,Supplies and Services,504,Equipment,5023,Revenue,03.GROCERIES & PROVISIONS
27-Feb-2018,7004793,6.11,AF BLAKEMORE & SON LIMITED T/A LOWRIES CASH & CARRY,332872,Commissioning & Investment,Children's & Education Services,103,Supplies and Services,504,Equipment,5023,Revenue,03.GROCERIES & PROVISIONS
27-Feb-2018,7004793,0.66,AF BLAKEMORE & SON LIMITED T/A LOWRIES CASH & CARRY,332872,Commissioning & Investment,Children's & Education Services,103,Supplies and Services,504,Equipment,5023,Revenue,03.GROCERIES & PROVISIONS
27-Feb-2018,7004793,10.99,AF BLAKEMORE & SON LIMITED T/A LOWRIES CASH & CARRY,332872,Commissioning & Investment,Children's & Education Services,103,Supplies and Services,504,Equipment,5023,Revenue,03.GROCERIES & PROVISIONS
27-Feb-2018,7004793,6.58,AF BLAKEMORE & SON LIMITED T/A LOWRIES CASH & CARRY,332872,Commissioning & Investment,Children's & Education Services,103,Supplies and Services,504,Equipment,5023,Revenue,03.GROCERIES & PROVISIONS
27-Feb-2018,7004793,5.96,AF BLAKEMORE & SON LIMITED T/A LOWRIES CASH & CARRY,332872,Commissioning & Investment,Children's & Education Services,103,Supplies and Services,504,Equipment,5023,Revenue,03.GROCERIES & PROVISIONS
27-Feb-2018,7004793,3.25,AF BLAKEMORE & SON LIMITED T/A LOWRIES CASH & CARRY,332872,Commissioning & Investment,Children's & Education Services,103,Supplies and Services,504,Equipment,5023,Revenue,03.GROCERIES & PROVISIONS
27-Feb-2018,7004793,7.88,AF BLAKEMORE & SON LIMITED T/A LOWRIES CASH & CARRY,332872,Commissioning & Investment,Children's & Education Services,103,Supplies and Services,504,Equipment,5023,Revenue,03.GROCERIES & PROVISIONS
27-Feb-2018,7004793,6.42,AF BLAKEMORE & SON LIMITED T/A LOWRIES CASH & CARRY,332872,Commissioning & Investment,Children's & Education Services,103,Supplies and Services,504,Equipment,5023,Revenue,03.GROCERIES & PROVISIONS
27-Feb-2018,7004793,15.38,AF BLAKEMORE & SON LIMITED T/A LOWRIES CASH & CARRY,332872,Commissioning & Investment,Children's & Education Services,103,Supplies and Services,504,Equipment,5023,Revenue,03.GROCERIES & PROVISIONS
27-Feb-2018,7004793,3.78,AF BLAKEMORE & SON LIMITED T/A LOWRIES CASH & CARRY,332872,Commissioning & Investment,Children's & Education Services,103,Supplies and Services,504,Equipment,5023,Revenue,03.GROCERIES & PROVISIONS
27-Feb-2018,7004793,3.78,AF BLAKEMORE & SON LIMITED T/A LOWRIES CASH & CARRY,332872,Commissioning & Investment,Children's & Education Services,103,Supplies and Services,504,Equipment,5023,Revenue,03.GROCERIES & PROVISIONS
27-Feb-2018,7004793,2.25,AF BLAKEMORE & SON LIMITED T/A LOWRIES CASH & CARRY,332872,Commissioning & Investment,Children's & Education Services,103,Supplies and Services,504,Equipment,5023,Revenue,03.GROCERIES & PROVISIONS
27-Feb-2018,7004793,7.27,AF BLAKEMORE & SON LIMITED T/A LOWRIES CASH & CARRY,332872,Commissioning & Investment,Children's & Education Services,103,Supplies and Services,504,Equipment,5023,Revenue,03.GROCERIES & PROVISIONS
27-Feb-2018,7004793,6.72,AF BLAKEMORE & SON LIMITED T/A LOWRIES CASH & CARRY,332872,Commissioning & Investment,Children's & Education Services,103,Supplies and Services,504,Equipment,5023,Revenue,03.GROCERIES & PROVISIONS
27-Feb-2018,7004793,7.05,AF BLAKEMORE & SON LIMITED T/A LOWRIES CASH & CARRY,332872,Commissioning & Investment,Children's & Education Services,103,Supplies and Services,504,Equipment,5023,Revenue,03.GROCERIES & PROVISIONS
27-Feb-2018,7004793,7.41,AF BLAKEMORE & SON LIMITED T/A LOWRIES CASH & CARRY,332872,Commissioning & Investment,Children's & Education Services,103,Supplies and Services,504,Equipment,5023,Revenue,03.GROCERIES & PROVISIONS
27-Feb-2018,7004793,9.34,AF BLAKEMORE & SON LIMITED T/A LOWRIES CASH & CARRY,332872,"Environment, Housing & Leisure",Adult Social Care,101,Supplies and Services,504,Equipment,5023,Revenue,03.GROCERIES & PROVISIONS
27-Feb-2018,7004793,5.46,AF BLAKEMORE & SON LIMITED T/A LOWRIES CASH & CARRY,332872,Commissioning & Investment,Children's & Education Services,103,Supplies and Services,504,Equipment,5023,Revenue,03.GROCERIES & PROVISIONS
27-Feb-2018,7004793,2.83,AF BLAKEMORE & SON LIMITED T/A LOWRIES CASH & CARRY,332872,Commissioning & Investment,Children's & Education Services,103,Supplies and Services,504,Equipment,5023,Revenue,03.GROCERIES & PROVISIONS
27-Feb-2018,7004793,73.36,AF BLAKEMORE & SON LIMITED T/A LOWRIES CASH & CARRY,332872,Commissioning & Investment,Children's & Education Services,103,Supplies and Services,504,Equipment,5023,Revenue,03.GROCERIES & PROVISIONS
27-Feb-2018,7004793,7.44,AF BLAKEMORE & SON LIMITED T/A LOWRIES CASH & CARRY,332872,Commissioning & Investment,Children's & Education Services,103,Supplies and Services,504,Equipment,5023,Revenue,03.GROCERIES & PROVISIONS
27-Feb-2018,7004793,23.74,AF BLAKEMORE & SON LIMITED T/A LOWRIES CASH & CARRY,332872,Commissioning & Investment,Children's & Education Services,103,Supplies and Services,504,Equipment,5023,Revenue,03.GROCERIES & PROVISIONS
27-Feb-2018,7004793,17.59,AF BLAKEMORE & SON LIMITED T/A LOWRIES CASH & CARRY,332872,Commissioning & Investment,Children's & Education Services,103,Supplies and Services,504,Equipment,5023,Revenue,03.GROCERIES & PROVISIONS
27-Feb-2018,7004793,7.41,AF BLAKEMORE & SON LIMITED T/A LOWRIES CASH & CARRY,332872,Commissioning & Investment,Children's & Education Services,103,Supplies and Services,504,Equipment,5023,Revenue,03.GROCERIES & PROVISIONS
27-Feb-2018,7004793,2.78,AF BLAKEMORE & SON LIMITED T/A LOWRIES CASH & CARRY,332872,Commissioning & Investment,Children's & Education Services,103,Supplies and Services,504,Equipment,5023,Revenue,03.GROCERIES & PROVISIONS
27-Feb-2018,7004793,9.90,AF BLAKEMORE & SON LIMITED T/A LOWRIES CASH & CARRY,332872,Commissioning & Investment,Children's & Education Services,103,Supplies and Services,504,Equipment,5023,Revenue,03.GROCERIES & PROVISIONS
27-Feb-2018,7004793,38.92,AF BLAKEMORE & SON LIMITED T/A LOWRIES CASH & CARRY,332872,Commissioning & Investment,Children's & Education Services,103,Supplies and Services,504,Equipment,5023,Revenue,03.GROCERIES & PROVISIONS
27-Feb-2018,7004793,2.12,AF BLAKEMORE & SON LIMITED T/A LOWRIES CASH & CARRY,332872,Commissioning & Investment,Children's & Education Services,103,Supplies and Services,504,Equipment,5023,Revenue,03.GROCERIES & PROVISIONS
27-Feb-2018,7004793,2.04,AF BLAKEMORE & SON LIMITED T/A LOWRIES CASH & CARRY,332872,Commissioning & Investment,Children's & Education Services,103,Supplies and Services,504,Equipment,5023,Revenue,03.GROCERIES & PROVISIONS
27-Feb-2018,7004793,2.76,AF BLAKEMORE & SON LIMITED T/A LOWRIES CASH & CARRY,332872,Commissioning & Investment,Children's & Education Services,103,Supplies and Services,504,Equipment,5023,Revenue,03.GROCERIES & PROVISIONS
27-Feb-2018,7004793,4.94,AF BLAKEMORE & SON LIMITED T/A LOWRIES CASH & CARRY,332872,Commissioning & Investment,Children's & Education Services,103,Supplies and Services,504,Equipment,5023,Revenue,03.GROCERIES & PROVISIONS
27-Feb-2018,7004793,2.37,AF BLAKEMORE & SON LIMITED T/A LOWRIES CASH & CARRY,332872,Commissioning & Investment,Children's & Education Services,103,Supplies and Services,504,Equipment,5023,Revenue,03.GROCERIES & PROVISIONS
27-Feb-2018,7004793,12.03,AF BLAKEMORE & SON LIMITED T/A LOWRIES CASH & CARRY,332872,Commissioning & Investment,Children's & Education Services,103,Supplies and Services,504,Equipment,5023,Revenue,03.GROCERIES & PROVISIONS
27-Feb-2018,7004793,10.38,AF BLAKEMORE & SON LIMITED T/A LOWRIES CASH & CARRY,332872,Commissioning & Investment,Children's & Education Services,103,Supplies and Services,504,Equipment,5023,Revenue,03.GROCERIES & PROVISIONS
27-Feb-2018,7004793,13.58,AF BLAKEMORE & SON LIMITED T/A LOWRIES CASH & CARRY,332872,Commissioning & Investment,Children's & Education Services,103,Supplies and Services,504,Equipment,5023,Revenue,03.GROCERIES & PROVISIONS
27-Feb-2018,7004793,13.12,AF BLAKEMORE & SON LIMITED T/A LOWRIES CASH & CARRY,332872,Commissioning & Investment,Children's & Education Services,103,Supplies and Services,504,Equipment,5023,Revenue,03.GROCERIES & PROVISIONS
27-Feb-2018,7004793,9.06,AF BLAKEMORE & SON LIMITED T/A LOWRIES CASH & CARRY,332872,Commissioning & Investment,Children's & Education Services,103,Supplies and Services,504,Equipment,5023,Revenue,03.GROCERIES & PROVISIONS
27-Feb-2018,7004793,6.50,AF BLAKEMORE & SON LIMITED T/A LOWRIES CASH & CARRY,332872,Commissioning & Investment,Children's & Education Services,103,Supplies and Services,504,Equipment,5023,Revenue,03.GROCERIES & PROVISIONS
27-Feb-2018,7004793,7.35,AF BLAKEMORE & SON LIMITED T/A LOWRIES CASH & CARRY,332872,Commissioning & Investment,Children's & Education Services,103,Supplies and Services,504,Equipment,5023,Revenue,03.GROCERIES & PROVISIONS
27-Feb-2018,7004793,15.20,AF BLAKEMORE & SON LIMITED T/A LOWRIES CASH & CARRY,332872,Commissioning & Investment,Children's & Education Services,103,Supplies and Services,504,Equipment,5023,Revenue,03.GROCERIES & PROVISIONS
27-Feb-2018,7004793,7.27,AF BLAKEMORE & SON LIMITED T/A LOWRIES CASH & CARRY,332872,Commissioning & Investment,Children's & Education Services,103,Supplies and Services,504,Equipment,5023,Revenue,03.GROCERIES & PROVISIONS
27-Feb-2018,7004793,9.10,AF BLAKEMORE & SON LIMITED T/A LOWRIES CASH & CARRY,332872,Commissioning & Investment,Children's & Education Services,103,Supplies and Services,504,Equipment,5023,Revenue,03.GROCERIES & PROVISIONS
27-Feb-2018,7004793,7.90,AF BLAKEMORE & SON LIMITED T/A LOWRIES CASH & CARRY,332872,Commissioning & Investment,Children's & Education Services,103,Supplies and Services,504,Equipment,5023,Revenue,03.GROCERIES & PROVISIONS
27-Feb-2018,7004793,15.96,AF BLAKEMORE & SON LIMITED T/A LOWRIES CASH & CARRY,332872,Commissioning & Investment,Children's & Education Services,103,Supplies and Services,504,Equipment,5023,Revenue,03.GROCERIES & PROVISIONS
27-Feb-2018,7004793,4.14,AF BLAKEMORE & SON LIMITED T/A LOWRIES CASH & CARRY,332872,Commissioning & Investment,Children's & Education Services,103,Supplies and Services,504,Equipment,5023,Revenue,03.GROCERIES & PROVISIONS
27-Feb-2018,7004793,13.25,AF BLAKEMORE & SON LIMITED T/A LOWRIES CASH & CARRY,332872,Commissioning & Investment,Children's & Education Services,103,Supplies and Services,504,Equipment,5023,Revenue,03.GROCERIES & PROVISIONS
27-Feb-2018,7004793,9.84,AF BLAKEMORE & SON LIMITED T/A LOWRIES CASH & CARRY,332872,Commissioning & Investment,Children's & Education Services,103,Supplies and Services,504,Equipment,5023,Revenue,03.GROCERIES & PROVISIONS
27-Feb-2018,7004793,15.38,AF BLAKEMORE & SON LIMITED T/A LOWRIES CASH & CARRY,332872,Commissioning & Investment,Children's & Education Services,103,Supplies and Services,504,Equipment,5023,Revenue,03.GROCERIES & PROVISIONS
27-Feb-2018,7004793,6.56,AF BLAKEMORE & SON LIMITED T/A LOWRIES CASH & CARRY,332872,Commissioning & Investment,Children's & Education Services,103,Supplies and Services,504,Equipment,5023,Revenue,03.GROCERIES & PROVISIONS
27-Feb-2018,7004793,6.79,AF BLAKEMORE & SON LIMITED T/A LOWRIES CASH & CARRY,332872,Commissioning & Investment,Children's & Education Services,103,Supplies and Services,504,Equipment,5023,Revenue,03.GROCERIES & PROVISIONS
27-Feb-2018,7004793,2.64,AF BLAKEMORE & SON LIMITED T/A LOWRIES CASH & CARRY,332872,Commissioning & Investment,Children's & Education Services,103,Supplies and Services,504,Equipment,5023,Revenue,03.GROCERIES & PROVISIONS
27-Feb-2018,7004793,3.63,AF BLAKEMORE & SON LIMITED T/A LOWRIES CASH & CARRY,332872,Commissioning & Investment,Children's & Education Services,103,Supplies and Services,504,Equipment,5023,Revenue,03.GROCERIES & PROVISIONS
27-Feb-2018,7004793,4.86,AF BLAKEMORE & SON LIMITED T/A LOWRIES CASH & CARRY,332872,Commissioning & Investment,Children's & Education Services,103,Supplies and Services,504,Equipment,5023,Revenue,03.GROCERIES & PROVISIONS
27-Feb-2018,7004793,3.00,AF BLAKEMORE & SON LIMITED T/A LOWRIES CASH & CARRY,332872,Commissioning & Investment,Children's & Education Services,103,Supplies and Services,504,Equipment,5023,Revenue,03.GROCERIES & PROVISIONS
27-Feb-2018,7004793,42.20,AF BLAKEMORE & SON LIMITED T/A LOWRIES CASH & CARRY,332872,Commissioning & Investment,Children's & Education Services,103,Supplies and Services,504,Equipment,5023,Revenue,03.GROCERIES & PROVISIONS
27-Feb-2018,7004793,0.68,AF BLAKEMORE & SON LIMITED T/A LOWRIES CASH & CARRY,332872,Commissioning & Investment,Children's & Education Services,103,Supplies and Services,504,Equipment,5023,Revenue,03.GROCERIES & PROVISIONS
27-Feb-2018,7004793,22.23,AF BLAKEMORE & SON LIMITED T/A LOWRIES CASH & CARRY,332872,Commissioning & Investment,Children's & Education Services,103,Supplies and Services,504,Equipment,5023,Revenue,03.GROCERIES & PROVISIONS
27-Feb-2018,7004793,14.70,AF BLAKEMORE & SON LIMITED T/A LOWRIES CASH & CARRY,332872,Commissioning & Investment,Children's & Education Services,103,Supplies and Services,504,Equipment,5023,Revenue,03.GROCERIES & PROVISIONS
27-Feb-2018,7004793,5.78,AF BLAKEMORE & SON LIMITED T/A LOWRIES CASH & CARRY,332872,Commissioning & Investment,Children's & Education Services,103,Supplies and Services,504,Equipment,5023,Revenue,03.GROCERIES & PROVISIONS
27-Feb-2018,7004793,5.90,AF BLAKEMORE & SON LIMITED T/A LOWRIES CASH & CARRY,332872,Commissioning & Investment,Children's & Education Services,103,Supplies and Services,504,Equipment,5023,Revenue,03.GROCERIES & PROVISIONS
27-Feb-2018,7004793,31.44,AF BLAKEMORE & SON LIMITED T/A LOWRIES CASH & CARRY,332872,Commissioning & Investment,Children's & Education Services,103,Supplies and Services,504,Equipment,5023,Revenue,03.GROCERIES & PROVISIONS
27-Feb-2018,7004793,1.08,AF BLAKEMORE & SON LIMITED T/A LOWRIES CASH & CARRY,332872,Commissioning & Investment,Children's & Education Services,103,Supplies and Services,504,Equipment,5023,Revenue,03.GROCERIES & PROVISIONS
27-Feb-2018,7004793,19.76,AF BLAKEMORE & SON LIMITED T/A LOWRIES CASH & CARRY,332872,Commissioning & Investment,Children's & Education Services,103,Supplies and Services,504,Equipment,5023,Revenue,03.GROCERIES & PROVISIONS
27-Feb-2018,7004793,52.62,AF BLAKEMORE & SON LIMITED T/A LOWRIES CASH & CARRY,332872,Commissioning & Investment,Children's & Education Services,103,Supplies and Services,504,Equipment,5023,Revenue,03.GROCERIES & PROVISIONS
27-Feb-2018,7004793,3.40,AF BLAKEMORE & SON LIMITED T/A LOWRIES CASH & CARRY,332872,Commissioning & Investment,Children's & Education Services,103,Supplies and Services,504,Equipment,5023,Revenue,03.GROCERIES & PROVISIONS
27-Feb-2018,7004793,30.76,AF BLAKEMORE & SON LIMITED T/A LOWRIES CASH & CARRY,332872,Commissioning & Investment,Children's & Education Services,103,Supplies and Services,504,Equipment,5023,Revenue,03.GROCERIES & PROVISIONS
27-Feb-2018,7004793,3.78,AF BLAKEMORE & SON LIMITED T/A LOWRIES CASH & CARRY,332872,Commissioning & Investment,Children's & Education Services,103,Supplies and Services,504,Equipment,5023,Revenue,03.GROCERIES & PROVISIONS
27-Feb-2018,7004793,34.08,AF BLAKEMORE & SON LIMITED T/A LOWRIES CASH & CARRY,332872,Commissioning & Investment,Children's & Education Services,103,Supplies and Services,504,Equipment,5023,Revenue,03.GROCERIES & PROVISIONS
27-Feb-2018,7004793,12.54,AF BLAKEMORE & SON LIMITED T/A LOWRIES CASH & CARRY,332872,Commissioning & Investment,Children's & Education Services,103,Supplies and Services,504,Equipment,5023,Revenue,03.GROCERIES & PROVISIONS
27-Feb-2018,7004793,1.24,AF BLAKEMORE & SON LIMITED T/A LOWRIES CASH & CARRY,332872,Commissioning & Investment,Children's & Education Services,103,Supplies and Services,504,Equipment,5023,Revenue,03.GROCERIES & PROVISIONS
27-Feb-2018,7004793,17.59,AF BLAKEMORE & SON LIMITED T/A LOWRIES CASH & CARRY,332872,Commissioning & Investment,Children's & Education Services,103,Supplies and Services,504,Equipment,5023,Revenue,03.GROCERIES & PROVISIONS
27-Feb-2018,7004793,6.72,AF BLAKEMORE & SON LIMITED T/A LOWRIES CASH & CARRY,332872,Commissioning & Investment,Children's & Education Services,103,Supplies and Services,504,Equipment,5023,Revenue,03.GROCERIES & PROVISIONS
27-Feb-2018,7004793,30.40,AF BLAKEMORE & SON LIMITED T/A LOWRIES CASH & CARRY,332872,Commissioning & Investment,Children's & Education Services,103,Supplies and Services,504,Equipment,5023,Revenue,03.GROCERIES & PROVISIONS
27-Feb-2018,7004793,10.38,AF BLAKEMORE & SON LIMITED T/A LOWRIES CASH & CARRY,332872,Commissioning & Investment,Children's & Education Services,103,Supplies and Services,504,Equipment,5023,Revenue,03.GROCERIES & PROVISIONS
27-Feb-2018,7004793,7.78,AF BLAKEMORE & SON LIMITED T/A LOWRIES CASH & CARRY,332872,Commissioning & Investment,Children's & Education Services,103,Supplies and Services,504,Equipment,5023,Revenue,03.GROCERIES & PROVISIONS
27-Feb-2018,7004793,2.41,AF BLAKEMORE & SON LIMITED T/A LOWRIES CASH & CARRY,332872,Commissioning & Investment,Children's & Education Services,103,Supplies and Services,504,Equipment,5023,Revenue,03.GROCERIES & PROVISIONS
27-Feb-2018,7004793,5.56,AF BLAKEMORE & SON LIMITED T/A LOWRIES CASH & CARRY,332872,Commissioning & Investment,Children's & Education Services,103,Supplies and Services,504,Equipment,5023,Revenue,03.GROCERIES & PROVISIONS
27-Feb-2018,7004793,4.96,AF BLAKEMORE & SON LIMITED T/A LOWRIES CASH & CARRY,332872,Commissioning & Investment,Children's & Education Services,103,Supplies and Services,504,Equipment,5023,Revenue,03.GROCERIES & PROVISIONS
27-Feb-2018,7004793,5.28,AF BLAKEMORE & SON LIMITED T/A LOWRIES CASH & CARRY,332872,Commissioning & Investment,Children's & Education Services,103,Supplies and Services,504,Equipment,5023,Revenue,03.GROCERIES & PROVISIONS
27-Feb-2018,7004793,5.76,AF BLAKEMORE & SON LIMITED T/A LOWRIES CASH & CARRY,332872,Commissioning & Investment,Children's & Education Services,103,Supplies and Services,504,Equipment,5023,Revenue,03.GROCERIES & PROVISIONS
27-Feb-2018,7004793,11.34,AF BLAKEMORE & SON LIMITED T/A LOWRIES CASH & CARRY,332872,Commissioning & Investment,Children's & Education Services,103,Supplies and Services,504,Equipment,5023,Revenue,03.GROCERIES & PROVISIONS
27-Feb-2018,7004793,3.78,AF BLAKEMORE & SON LIMITED T/A LOWRIES CASH & CARRY,332872,Commissioning & Investment,Children's & Education Services,103,Supplies and Services,504,Equipment,5023,Revenue,03.GROCERIES & PROVISIONS
27-Feb-2018,7004793,6.20,AF BLAKEMORE & SON LIMITED T/A LOWRIES CASH & CARRY,332872,Commissioning & Investment,Children's & Education Services,103,Supplies and Services,504,Equipment,5023,Revenue,03.GROCERIES & PROVISIONS
27-Feb-2018,7004793,3.90,AF BLAKEMORE & SON LIMITED T/A LOWRIES CASH & CARRY,332872,Commissioning & Investment,Children's & Education Services,103,Supplies and Services,504,Equipment,5023,Revenue,03.GROCERIES & PROVISIONS
27-Feb-2018,7004793,9.90,AF BLAKEMORE & SON LIMITED T/A LOWRIES CASH & CARRY,332872,Commissioning & Investment,Children's & Education Services,103,Supplies and Services,504,Equipment,5023,Revenue,03.GROCERIES & PROVISIONS
27-Feb-2018,7004793,15.20,AF BLAKEMORE & SON LIMITED T/A LOWRIES CASH & CARRY,332872,Commissioning & Investment,Children's & Education Services,103,Supplies and Services,504,Equipment,5023,Revenue,03.GROCERIES & PROVISIONS
27-Feb-2018,7004793,13.84,AF BLAKEMORE & SON LIMITED T/A LOWRIES CASH & CARRY,332872,Commissioning & Investment,Children's & Education Services,103,Supplies and Services,504,Equipment,5023,Revenue,03.GROCERIES & PROVISIONS
27-Feb-2018,7004793,57.64,AF BLAKEMORE & SON LIMITED T/A LOWRIES CASH & CARRY,332872,Commissioning & Investment,Children's & Education Services,103,Supplies and Services,504,Equipment,5023,Revenue,03.GROCERIES & PROVISIONS
27-Feb-2018,7004793,2.54,AF BLAKEMORE & SON LIMITED T/A LOWRIES CASH & CARRY,332872,Commissioning & Investment,Children's & Education Services,103,Supplies and Services,504,Equipment,5023,Revenue,03.GROCERIES & PROVISIONS
27-Feb-2018,7004793,8.56,AF BLAKEMORE & SON LIMITED T/A LOWRIES CASH & CARRY,332872,Commissioning & Investment,Children's & Education Services,103,Supplies and Services,504,Equipment,5023,Revenue,03.GROCERIES & PROVISIONS
27-Feb-2018,7004793,14.46,AF BLAKEMORE & SON LIMITED T/A LOWRIES CASH & CARRY,332872,Commissioning & Investment,Children's & Education Services,103,Supplies and Services,504,Equipment,5023,Revenue,03.GROCERIES & PROVISIONS
27-Feb-2018,7004793,8.37,AF BLAKEMORE & SON LIMITED T/A LOWRIES CASH & CARRY,332872,Commissioning & Investment,Children's & Education Services,103,Supplies and Services,504,Equipment,5023,Revenue,03.GROCERIES & PROVISIONS
27-Feb-2018,7004793,3.00,AF BLAKEMORE & SON LIMITED T/A LOWRIES CASH & CARRY,332872,Commissioning & Investment,Children's & Education Services,103,Supplies and Services,504,Equipment,5023,Revenue,03.GROCERIES & PROVISIONS
27-Feb-2018,7004793,6.42,AF BLAKEMORE & SON LIMITED T/A LOWRIES CASH & CARRY,332872,Commissioning & Investment,Children's & Education Services,103,Supplies and Services,504,Equipment,5023,Revenue,03.GROCERIES & PROVISIONS
27-Feb-2018,7004793,15.20,AF BLAKEMORE & SON LIMITED T/A LOWRIES CASH & CARRY,332872,Commissioning & Investment,Children's & Education Services,103,Supplies and Services,504,Equipment,5023,Revenue,03.GROCERIES & PROVISIONS
27-Feb-2018,7004793,8.56,AF BLAKEMORE & SON LIMITED T/A LOWRIES CASH & CARRY,332872,Commissioning & Investment,Children's & Education Services,103,Supplies and Services,504,Equipment,5023,Revenue,03.GROCERIES & PROVISIONS
27-Feb-2018,7004793,6.79,AF BLAKEMORE & SON LIMITED T/A LOWRIES CASH & CARRY,332872,Commissioning & Investment,Children's & Education Services,103,Supplies and Services,504,Equipment,5023,Revenue,03.GROCERIES & PROVISIONS
27-Feb-2018,7004793,24.64,AF BLAKEMORE & SON LIMITED T/A LOWRIES CASH & CARRY,332872,Commissioning & Investment,Children's & Education Services,103,Supplies and Services,504,Equipment,5023,Revenue,03.GROCERIES & PROVISIONS
27-Feb-2018,7004793,15.20,AF BLAKEMORE & SON LIMITED T/A LOWRIES CASH & CARRY,332872,Commissioning & Investment,Children's & Education Services,103,Supplies and Services,504,Equipment,5023,Revenue,03.GROCERIES & PROVISIONS
27-Feb-2018,7004793,16.74,AF BLAKEMORE & SON LIMITED T/A LOWRIES CASH & CARRY,332872,Commissioning & Investment,Children's & Education Services,103,Supplies and Services,504,Equipment,5023,Revenue,03.GROCERIES & PROVISIONS
27-Feb-2018,7004793,14.54,AF BLAKEMORE & SON LIMITED T/A LOWRIES CASH & CARRY,332872,Commissioning & Investment,Children's & Education Services,103,Supplies and Services,504,Equipment,5023,Revenue,03.GROCERIES & PROVISIONS
27-Feb-2018,7004793,3.95,AF BLAKEMORE & SON LIMITED T/A LOWRIES CASH & CARRY,332872,Commissioning & Investment,Children's & Education Services,103,Supplies and Services,504,Equipment,5023,Revenue,03.GROCERIES & PROVISIONS
27-Feb-2018,7004793,15.12,AF BLAKEMORE & SON LIMITED T/A LOWRIES CASH & CARRY,332872,Commissioning & Investment,Children's & Education Services,103,Supplies and Services,504,Equipment,5023,Revenue,03.GROCERIES & PROVISIONS
27-Feb-2018,7004793,6.42,AF BLAKEMORE & SON LIMITED T/A LOWRIES CASH & CARRY,332872,Commissioning & Investment,Children's & Education Services,103,Supplies and Services,504,Equipment,5023,Revenue,03.GROCERIES & PROVISIONS
27-Feb-2018,7004793,8.10,AF BLAKEMORE & SON LIMITED T/A LOWRIES CASH & CARRY,332872,Commissioning & Investment,Children's & Education Services,103,Supplies and Services,504,Equipment,5023,Revenue,03.GROCERIES & PROVISIONS
27-Feb-2018,7004793,2.06,AF BLAKEMORE & SON LIMITED T/A LOWRIES CASH & CARRY,332872,Commissioning & Investment,Children's & Education Services,103,Supplies and Services,504,Equipment,5023,Revenue,03.GROCERIES & PROVISIONS
27-Feb-2018,7004793,3.08,AF BLAKEMORE & SON LIMITED T/A LOWRIES CASH & CARRY,332872,Commissioning & Investment,Children's & Education Services,103,Supplies and Services,504,Equipment,5023,Revenue,03.GROCERIES & PROVISIONS
27-Feb-2018,7004793,21.30,AF BLAKEMORE & SON LIMITED T/A LOWRIES CASH & CARRY,332872,Commissioning & Investment,Children's & Education Services,103,Supplies and Services,504,Equipment,5023,Revenue,03.GROCERIES & PROVISIONS
27-Feb-2018,7004793,19.24,AF BLAKEMORE & SON LIMITED T/A LOWRIES CASH & CARRY,332872,Commissioning & Investment,Children's & Education Services,103,Supplies and Services,504,Equipment,5023,Revenue,03.GROCERIES & PROVISIONS
27-Feb-2018,7004793,8.23,AF BLAKEMORE & SON LIMITED T/A LOWRIES CASH & CARRY,332872,Commissioning & Investment,Children's & Education Services,103,Supplies and Services,504,Equipment,5023,Revenue,03.GROCERIES & PROVISIONS
27-Feb-2018,7004793,2.67,AF BLAKEMORE & SON LIMITED T/A LOWRIES CASH & CARRY,332872,Commissioning & Investment,Children's & Education Services,103,Supplies and Services,504,Equipment,5023,Revenue,03.GROCERIES & PROVISIONS
27-Feb-2018,7004793,16.74,AF BLAKEMORE & SON LIMITED T/A LOWRIES CASH & CARRY,332872,Commissioning & Investment,Children's & Education Services,103,Supplies and Services,504,Equipment,5023,Revenue,03.GROCERIES & PROVISIONS
27-Feb-2018,7004793,25.56,AF BLAKEMORE & SON LIMITED T/A LOWRIES CASH & CARRY,332872,Commissioning & Investment,Children's & Education Services,103,Supplies and Services,504,Equipment,5023,Revenue,03.GROCERIES & PROVISIONS
27-Feb-2018,7004793,7.00,AF BLAKEMORE & SON LIMITED T/A LOWRIES CASH & CARRY,332872,Commissioning & Investment,Children's & Education Services,103,Supplies and Services,504,Equipment,5023,Revenue,03.GROCERIES & PROVISIONS
27-Feb-2018,7004793,42.60,AF BLAKEMORE & SON LIMITED T/A LOWRIES CASH & CARRY,332872,Commissioning & Investment,Children's & Education Services,103,Supplies and Services,504,Equipment,5023,Revenue,03.GROCERIES & PROVISIONS
27-Feb-2018,7004793,5.68,AF BLAKEMORE & SON LIMITED T/A LOWRIES CASH & CARRY,332872,Commissioning & Investment,Children's & Education Services,103,Supplies and Services,504,Equipment,5023,Revenue,03.GROCERIES & PROVISIONS
27-Feb-2018,7004793,7.60,AF BLAKEMORE & SON LIMITED T/A LOWRIES CASH & CARRY,332872,Commissioning & Investment,Children's & Education Services,103,Supplies and Services,504,Equipment,5023,Revenue,03.GROCERIES & PROVISIONS
27-Feb-2018,7004793,5.68,AF BLAKEMORE & SON LIMITED T/A LOWRIES CASH & CARRY,332872,Commissioning & Investment,Children's & Education Services,103,Supplies and Services,504,Equipment,5023,Revenue,03.GROCERIES & PROVISIONS
27-Feb-2018,7004793,1.70,AF BLAKEMORE & SON LIMITED T/A LOWRIES CASH & CARRY,332872,Commissioning & Investment,Children's & Education Services,103,Supplies and Services,504,Equipment,5023,Revenue,03.GROCERIES & PROVISIONS
27-Feb-2018,7004793,8.23,AF BLAKEMORE & SON LIMITED T/A LOWRIES CASH & CARRY,332872,Commissioning & Investment,Children's & Education Services,103,Supplies and Services,504,Equipment,5023,Revenue,03.GROCERIES & PROVISIONS
27-Feb-2018,7004793,7.80,AF BLAKEMORE & SON LIMITED T/A LOWRIES CASH & CARRY,332872,Commissioning & Investment,Children's & Education Services,103,Supplies and Services,504,Equipment,5023,Revenue,03.GROCERIES & PROVISIONS
27-Feb-2018,7004793,6.92,AF BLAKEMORE & SON LIMITED T/A LOWRIES CASH & CARRY,332872,Commissioning & Investment,Children's & Education Services,103,Supplies and Services,504,Equipment,5023,Revenue,03.GROCERIES & PROVISIONS
27-Feb-2018,7004793,2.88,AF BLAKEMORE & SON LIMITED T/A LOWRIES CASH & CARRY,332872,Commissioning & Investment,Children's & Education Services,103,Supplies and Services,504,Equipment,5023,Revenue,03.GROCERIES & PROVISIONS
27-Feb-2018,7004793,21.98,AF BLAKEMORE & SON LIMITED T/A LOWRIES CASH & CARRY,332872,Commissioning & Investment,Children's & Education Services,103,Supplies and Services,504,Equipment,5023,Revenue,03.GROCERIES & PROVISIONS
27-Feb-2018,7004793,3.21,AF BLAKEMORE & SON LIMITED T/A LOWRIES CASH & CARRY,332872,Commissioning & Investment,Children's & Education Services,103,Supplies and Services,504,Equipment,5023,Revenue,03.GROCERIES & PROVISIONS
27-Feb-2018,7004793,14.00,AF BLAKEMORE & SON LIMITED T/A LOWRIES CASH & CARRY,332872,Commissioning & Investment,Children's & Education Services,103,Supplies and Services,504,Equipment,5023,Revenue,03.GROCERIES & PROVISIONS
27-Feb-2018,7004793,4.12,AF BLAKEMORE & SON LIMITED T/A LOWRIES CASH & CARRY,332872,Commissioning & Investment,Children's & Education Services,103,Supplies and Services,504,Equipment,5023,Revenue,03.GROCERIES & PROVISIONS
27-Feb-2018,7004793,7.21,AF BLAKEMORE & SON LIMITED T/A LOWRIES CASH & CARRY,332872,Commissioning & Investment,Children's & Education Services,103,Supplies and Services,504,Equipment,5023,Revenue,03.GROCERIES & PROVISIONS
27-Feb-2018,7004793,9.92,AF BLAKEMORE & SON LIMITED T/A LOWRIES CASH & CARRY,332872,Commissioning & Investment,Children's & Education Services,103,Supplies and Services,504,Equipment,5023,Revenue,03.GROCERIES & PROVISIONS
27-Feb-2018,7004793,6.10,AF BLAKEMORE & SON LIMITED T/A LOWRIES CASH & CARRY,332872,Commissioning & Investment,Children's & Education Services,103,Supplies and Services,504,Equipment,5023,Revenue,03.GROCERIES & PROVISIONS
27-Feb-2018,7004793,9.78,AF BLAKEMORE & SON LIMITED T/A LOWRIES CASH & CARRY,332872,Commissioning & Investment,Children's & Education Services,103,Supplies and Services,504,Equipment,5023,Revenue,03.GROCERIES & PROVISIONS
27-Feb-2018,7004793,3.24,AF BLAKEMORE & SON LIMITED T/A LOWRIES CASH & CARRY,332872,Commissioning & Investment,Children's & Education Services,103,Supplies and Services,504,Equipment,5023,Revenue,03.GROCERIES & PROVISIONS
27-Feb-2018,7004793,14.56,AF BLAKEMORE & SON LIMITED T/A LOWRIES CASH & CARRY,332872,Commissioning & Investment,Children's & Education Services,103,Supplies and Services,504,Equipment,5023,Revenue,03.GROCERIES & PROVISIONS
27-Feb-2018,7004793,2.48,AF BLAKEMORE & SON LIMITED T/A LOWRIES CASH & CARRY,332872,Commissioning & Investment,Children's & Education Services,103,Supplies and Services,504,Equipment,5023,Revenue,03.GROCERIES & PROVISIONS
27-Feb-2018,7004793,3.20,AF BLAKEMORE & SON LIMITED T/A LOWRIES CASH & CARRY,332872,Commissioning & Investment,Children's & Education Services,103,Supplies and Services,504,Equipment,5023,Revenue,03.GROCERIES & PROVISIONS
27-Feb-2018,7004793,9.99,AF BLAKEMORE & SON LIMITED T/A LOWRIES CASH & CARRY,332872,Commissioning & Investment,Children's & Education Services,103,Supplies and Services,504,Equipment,5023,Revenue,03.GROCERIES & PROVISIONS
27-Feb-2018,7004793,24.64,AF BLAKEMORE & SON LIMITED T/A LOWRIES CASH & CARRY,332872,Commissioning & Investment,Children's & Education Services,103,Supplies and Services,504,Equipment,5023,Revenue,03.GROCERIES & PROVISIONS
27-Feb-2018,7004793,6.48,AF BLAKEMORE & SON LIMITED T/A LOWRIES CASH & CARRY,332872,Commissioning & Investment,Children's & Education Services,103,Supplies and Services,504,Equipment,5023,Revenue,03.GROCERIES & PROVISIONS
27-Feb-2018,7004793,8.77,AF BLAKEMORE & SON LIMITED T/A LOWRIES CASH & CARRY,332872,Commissioning & Investment,Children's & Education Services,103,Supplies and Services,504,Equipment,5023,Revenue,03.GROCERIES & PROVISIONS
27-Feb-2018,7004793,4.50,AF BLAKEMORE & SON LIMITED T/A LOWRIES CASH & CARRY,332872,Commissioning & Investment,Children's & Education Services,103,Supplies and Services,504,Equipment,5023,Revenue,03.GROCERIES & PROVISIONS
27-Feb-2018,7004793,6.42,AF BLAKEMORE & SON LIMITED T/A LOWRIES CASH & CARRY,332872,Commissioning & Investment,Children's & Education Services,103,Supplies and Services,504,Equipment,5023,Revenue,03.GROCERIES & PROVISIONS
27-Feb-2018,7004793,17.04,AF BLAKEMORE & SON LIMITED T/A LOWRIES CASH & CARRY,332872,Commissioning & Investment,Children's & Education Services,103,Supplies and Services,504,Equipment,5023,Revenue,03.GROCERIES & PROVISIONS
27-Feb-2018,7004793,34.08,AF BLAKEMORE & SON LIMITED T/A LOWRIES CASH & CARRY,332872,Commissioning & Investment,Children's & Education Services,103,Supplies and Services,504,Equipment,5023,Revenue,03.GROCERIES & PROVISIONS
27-Feb-2018,7004793,12.78,AF BLAKEMORE & SON LIMITED T/A LOWRIES CASH & CARRY,332872,Commissioning & Investment,Children's & Education Services,103,Supplies and Services,504,Equipment,5023,Revenue,03.GROCERIES & PROVISIONS
27-Feb-2018,7004793,1.62,AF BLAKEMORE & SON LIMITED T/A LOWRIES CASH & CARRY,332872,Commissioning & Investment,Children's & Education Services,103,Supplies and Services,504,Equipment,5023,Revenue,03.GROCERIES & PROVISIONS
27-Feb-2018,7004793,14.82,AF BLAKEMORE & SON LIMITED T/A LOWRIES CASH & CARRY,332872,Commissioning & Investment,Children's & Education Services,103,Supplies and Services,504,Equipment,5023,Revenue,03.GROCERIES & PROVISIONS
27-Feb-2018,7004793,14.82,AF BLAKEMORE & SON LIMITED T/A LOWRIES CASH & CARRY,332872,Commissioning & Investment,Children's & Education Services,103,Supplies and Services,504,Equipment,5023,Revenue,03.GROCERIES & PROVISIONS
27-Feb-2018,7004793,9.10,AF BLAKEMORE & SON LIMITED T/A LOWRIES CASH & CARRY,332872,Commissioning & Investment,Children's & Education Services,103,Supplies and Services,504,Equipment,5023,Revenue,03.GROCERIES & PROVISIONS
27-Feb-2018,7004793,0.69,AF BLAKEMORE & SON LIMITED T/A LOWRIES CASH & CARRY,332872,Commissioning & Investment,Children's & Education Services,103,Supplies and Services,504,Equipment,5023,Revenue,03.GROCERIES & PROVISIONS
27-Feb-2018,7004793,0.81,AF BLAKEMORE & SON LIMITED T/A LOWRIES CASH & CARRY,332872,Commissioning & Investment,Children's & Education Services,103,Supplies and Services,504,Equipment,5023,Revenue,03.GROCERIES & PROVISIONS
27-Feb-2018,7004793,6.79,AF BLAKEMORE & SON LIMITED T/A LOWRIES CASH & CARRY,332872,Commissioning & Investment,Children's & Education Services,103,Supplies and Services,504,Equipment,5023,Revenue,03.GROCERIES & PROVISIONS
27-Feb-2018,7004793,5.10,AF BLAKEMORE & SON LIMITED T/A LOWRIES CASH & CARRY,332872,Commissioning & Investment,Children's & Education Services,103,Supplies and Services,504,Equipment,5023,Revenue,03.GROCERIES & PROVISIONS
27-Feb-2018,7004793,3.78,AF BLAKEMORE & SON LIMITED T/A LOWRIES CASH & CARRY,332872,Commissioning & Investment,Children's & Education Services,103,Supplies and Services,504,Equipment,5023,Revenue,03.GROCERIES & PROVISIONS
27-Feb-2018,7004793,8.37,AF BLAKEMORE & SON LIMITED T/A LOWRIES CASH & CARRY,332872,Commissioning & Investment,Children's & Education Services,103,Supplies and Services,504,Equipment,5023,Revenue,03.GROCERIES & PROVISIONS
27-Feb-2018,7004793,24.64,AF BLAKEMORE & SON LIMITED T/A LOWRIES CASH & CARRY,332872,Commissioning & Investment,Children's & Education Services,103,Supplies and Services,504,Equipment,5023,Revenue,03.GROCERIES & PROVISIONS
27-Feb-2018,7004793,2.35,AF BLAKEMORE & SON LIMITED T/A LOWRIES CASH & CARRY,332872,Commissioning & Investment,Children's & Education Services,103,Supplies and Services,504,Equipment,5023,Revenue,03.GROCERIES & PROVISIONS
27-Feb-2018,7004793,10.99,AF BLAKEMORE & SON LIMITED T/A LOWRIES CASH & CARRY,332872,Commissioning & Investment,Children's & Education Services,103,Supplies and Services,504,Equipment,5023,Revenue,03.GROCERIES & PROVISIONS
27-Feb-2018,7004793,10.92,AF BLAKEMORE & SON LIMITED T/A LOWRIES CASH & CARRY,332872,Commissioning & Investment,Children's & Education Services,103,Supplies and Services,504,Equipment,5023,Revenue,03.GROCERIES & PROVISIONS
27-Feb-2018,7004793,9.40,AF BLAKEMORE & SON LIMITED T/A LOWRIES CASH & CARRY,332872,Commissioning & Investment,Children's & Education Services,103,Supplies and Services,504,Equipment,5023,Revenue,03.GROCERIES & PROVISIONS
27-Feb-2018,7004793,3.89,AF BLAKEMORE & SON LIMITED T/A LOWRIES CASH & CARRY,332872,Commissioning & Investment,Children's & Education Services,103,Supplies and Services,504,Equipment,5023,Revenue,03.GROCERIES & PROVISIONS
27-Feb-2018,7004793,25.56,AF BLAKEMORE & SON LIMITED T/A LOWRIES CASH & CARRY,332872,Commissioning & Investment,Children's & Education Services,103,Supplies and Services,504,Equipment,5023,Revenue,03.GROCERIES & PROVISIONS
27-Feb-2018,7004793,20.37,AF BLAKEMORE & SON LIMITED T/A LOWRIES CASH & CARRY,332872,Commissioning & Investment,Children's & Education Services,103,Supplies and Services,504,Equipment,5023,Revenue,03.GROCERIES & PROVISIONS
27-Feb-2018,7004793,6.79,AF BLAKEMORE & SON LIMITED T/A LOWRIES CASH & CARRY,332872,Commissioning & Investment,Children's & Education Services,103,Supplies and Services,504,Equipment,5023,Revenue,03.GROCERIES & PROVISIONS
27-Feb-2018,7004793,1.24,AF BLAKEMORE & SON LIMITED T/A LOWRIES CASH & CARRY,332872,Commissioning & Investment,Children's & Education Services,103,Supplies and Services,504,Equipment,5023,Revenue,03.GROCERIES & PROVISIONS
27-Feb-2018,7004793,4.96,AF BLAKEMORE & SON LIMITED T/A LOWRIES CASH & CARRY,332872,Commissioning & Investment,Children's & Education Services,103,Supplies and Services,504,Equipment,5023,Revenue,03.GROCERIES & PROVISIONS
27-Feb-2018,7004793,11.34,AF BLAKEMORE & SON LIMITED T/A LOWRIES CASH & CARRY,332872,Commissioning & Investment,Children's & Education Services,103,Supplies and Services,504,Equipment,5023,Revenue,03.GROCERIES & PROVISIONS
27-Feb-2018,7004793,20.37,AF BLAKEMORE & SON LIMITED T/A LOWRIES CASH & CARRY,332872,Commissioning & Investment,Children's & Education Services,103,Supplies and Services,504,Equipment,5023,Revenue,03.GROCERIES & PROVISIONS
27-Feb-2018,7004793,2.54,AF BLAKEMORE & SON LIMITED T/A LOWRIES CASH & CARRY,332872,Commissioning & Investment,Children's & Education Services,103,Supplies and Services,504,Equipment,5023,Revenue,03.GROCERIES & PROVISIONS
27-Feb-2018,7004793,14.82,AF BLAKEMORE & SON LIMITED T/A LOWRIES CASH & CARRY,332872,Commissioning & Investment,Children's & Education Services,103,Supplies and Services,504,Equipment,5023,Revenue,03.GROCERIES & PROVISIONS
27-Feb-2018,7004793,9.64,AF BLAKEMORE & SON LIMITED T/A LOWRIES CASH & CARRY,332872,Commissioning & Investment,Children's & Education Services,103,Supplies and Services,504,Equipment,5023,Revenue,03.GROCERIES & PROVISIONS
27-Feb-2018,7004793,16.36,AF BLAKEMORE & SON LIMITED T/A LOWRIES CASH & CARRY,332872,Commissioning & Investment,Children's & Education Services,103,Supplies and Services,504,Equipment,5023,Revenue,03.GROCERIES & PROVISIONS
27-Feb-2018,7004793,9.02,AF BLAKEMORE & SON LIMITED T/A LOWRIES CASH & CARRY,332872,Commissioning & Investment,Children's & Education Services,103,Supplies and Services,504,Equipment,5023,Revenue,03.GROCERIES & PROVISIONS
27-Feb-2018,7004793,131.55,AF BLAKEMORE & SON LIMITED T/A LOWRIES CASH & CARRY,332872,Commissioning & Investment,Children's & Education Services,103,Supplies and Services,504,Equipment,5023,Revenue,03.GROCERIES & PROVISIONS
27-Feb-2018,7004793,3.90,AF BLAKEMORE & SON LIMITED T/A LOWRIES CASH & CARRY,332872,Commissioning & Investment,Children's & Education Services,103,Supplies and Services,504,Equipment,5023,Revenue,03.GROCERIES & PROVISIONS
27-Feb-2018,7004793,11.94,AF BLAKEMORE & SON LIMITED T/A LOWRIES CASH & CARRY,332872,Commissioning & Investment,Children's & Education Services,103,Supplies and Services,504,Equipment,5023,Revenue,03.GROCERIES & PROVISIONS
27-Feb-2018,7004793,3.50,AF BLAKEMORE & SON LIMITED T/A LOWRIES CASH & CARRY,332872,Commissioning & Investment,Children's & Education Services,103,Supplies and Services,504,Equipment,5023,Revenue,03.GROCERIES & PROVISIONS
27-Feb-2018,7004793,9.89,AF BLAKEMORE & SON LIMITED T/A LOWRIES CASH & CARRY,332872,Commissioning & Investment,Children's & Education Services,103,Supplies and Services,504,Equipment,5023,Revenue,03.GROCERIES & PROVISIONS
27-Feb-2018,7004793,4.51,AF BLAKEMORE & SON LIMITED T/A LOWRIES CASH & CARRY,332872,Commissioning & Investment,Children's & Education Services,103,Supplies and Services,504,Equipment,5023,Revenue,03.GROCERIES & PROVISIONS
27-Feb-2018,7004793,6.79,AF BLAKEMORE & SON LIMITED T/A LOWRIES CASH & CARRY,332872,Commissioning & Investment,Children's & Education Services,103,Supplies and Services,504,Equipment,5023,Revenue,03.GROCERIES & PROVISIONS
27-Feb-2018,7004793,6.18,AF BLAKEMORE & SON LIMITED T/A LOWRIES CASH & CARRY,332872,Commissioning & Investment,Children's & Education Services,103,Supplies and Services,504,Equipment,5023,Revenue,03.GROCERIES & PROVISIONS
27-Feb-2018,7004793,9.90,AF BLAKEMORE & SON LIMITED T/A LOWRIES CASH & CARRY,332872,Commissioning & Investment,Children's & Education Services,103,Supplies and Services,504,Equipment,5023,Revenue,03.GROCERIES & PROVISIONS
27-Feb-2018,7004793,9.88,AF BLAKEMORE & SON LIMITED T/A LOWRIES CASH & CARRY,332872,Commissioning & Investment,Children's & Education Services,103,Supplies and Services,504,Equipment,5023,Revenue,03.GROCERIES & PROVISIONS
27-Feb-2018,7004793,6.15,AF BLAKEMORE & SON LIMITED T/A LOWRIES CASH & CARRY,332872,Commissioning & Investment,Children's & Education Services,103,Supplies and Services,504,Equipment,5023,Revenue,03.GROCERIES & PROVISIONS
27-Feb-2018,7004793,2.48,AF BLAKEMORE & SON LIMITED T/A LOWRIES CASH & CARRY,332872,Commissioning & Investment,Children's & Education Services,103,Supplies and Services,504,Equipment,5023,Revenue,03.GROCERIES & PROVISIONS
27-Feb-2018,7004793,3.80,AF BLAKEMORE & SON LIMITED T/A LOWRIES CASH & CARRY,332872,Commissioning & Investment,Children's & Education Services,103,Supplies and Services,504,Equipment,5023,Revenue,03.GROCERIES & PROVISIONS
27-Feb-2018,7004793,6.10,AF BLAKEMORE & SON LIMITED T/A LOWRIES CASH & CARRY,332872,Commissioning & Investment,Children's & Education Services,103,Supplies and Services,504,Equipment,5023,Revenue,03.GROCERIES & PROVISIONS
27-Feb-2018,7004793,3.72,AF BLAKEMORE & SON LIMITED T/A LOWRIES CASH & CARRY,332872,Commissioning & Investment,Children's & Education Services,103,Supplies and Services,504,Equipment,5023,Revenue,03.GROCERIES & PROVISIONS
27-Feb-2018,7004793,39.66,AF BLAKEMORE & SON LIMITED T/A LOWRIES CASH & CARRY,332872,Commissioning & Investment,Children's & Education Services,103,Supplies and Services,504,Equipment,5023,Revenue,03.GROCERIES & PROVISIONS
27-Feb-2018,7004793,4.96,AF BLAKEMORE & SON LIMITED T/A LOWRIES CASH & CARRY,332872,Commissioning & Investment,Children's & Education Services,103,Supplies and Services,504,Equipment,5023,Revenue,03.GROCERIES & PROVISIONS
27-Feb-2018,7004793,44.46,AF BLAKEMORE & SON LIMITED T/A LOWRIES CASH & CARRY,332872,Commissioning & Investment,Children's & Education Services,103,Supplies and Services,504,Equipment,5023,Revenue,03.GROCERIES & PROVISIONS
27-Feb-2018,7004793,34.92,AF BLAKEMORE & SON LIMITED T/A LOWRIES CASH & CARRY,332872,Commissioning & Investment,Children's & Education Services,103,Supplies and Services,504,Equipment,5023,Revenue,03.GROCERIES & PROVISIONS
27-Feb-2018,7004793,9.02,AF BLAKEMORE & SON LIMITED T/A LOWRIES CASH & CARRY,332872,Commissioning & Investment,Children's & Education Services,103,Supplies and Services,504,Equipment,5023,Revenue,03.GROCERIES & PROVISIONS
27-Feb-2018,7004793,7.21,AF BLAKEMORE & SON LIMITED T/A LOWRIES CASH & CARRY,332872,Commissioning & Investment,Children's & Education Services,103,Supplies and Services,504,Equipment,5023,Revenue,03.GROCERIES & PROVISIONS
27-Feb-2018,7004793,37.05,AF BLAKEMORE & SON LIMITED T/A LOWRIES CASH & CARRY,332872,Commissioning & Investment,Children's & Education Services,103,Supplies and Services,504,Equipment,5023,Revenue,03.GROCERIES & PROVISIONS
27-Feb-2018,7004793,29.64,AF BLAKEMORE & SON LIMITED T/A LOWRIES CASH & CARRY,332872,Commissioning & Investment,Children's & Education Services,103,Supplies and Services,504,Equipment,5023,Revenue,03.GROCERIES & PROVISIONS
27-Feb-2018,7004793,36.35,AF BLAKEMORE & SON LIMITED T/A LOWRIES CASH & CARRY,332872,Commissioning & Investment,Children's & Education Services,103,Supplies and Services,504,Equipment,5023,Revenue,03.GROCERIES & PROVISIONS
27-Feb-2018,7004793,5.56,AF BLAKEMORE & SON LIMITED T/A LOWRIES CASH & CARRY,332872,Commissioning & Investment,Children's & Education Services,103,Supplies and Services,504,Equipment,5023,Revenue,03.GROCERIES & PROVISIONS
27-Feb-2018,7004793,-3.25,AF BLAKEMORE & SON LIMITED T/A LOWRIES CASH & CARRY,332872,"Environment, Housing & Leisure",Cultural & Related Services,104,Supplies and Services,504,Equipment,5023,Revenue,03.GROCERIES & PROVISIONS
27-Feb-2018,7004793,44.05,AF BLAKEMORE & SON LIMITED T/A LOWRIES CASH & CARRY,332872,Commissioning & Investment,Children's & Education Services,103,Supplies and Services,504,Equipment,5023,Revenue,03.GROCERIES & PROVISIONS
27-Feb-2018,7004793,48.15,AF BLAKEMORE & SON LIMITED T/A LOWRIES CASH & CARRY,332872,Commissioning & Investment,Children's & Education Services,103,Supplies and Services,504,Equipment,5023,Revenue,03.GROCERIES & PROVISIONS
27-Feb-2018,7004793,35.56,AF BLAKEMORE & SON LIMITED T/A LOWRIES CASH & CARRY,332872,Commissioning & Investment,Children's & Education Services,103,Supplies and Services,504,Equipment,5023,Revenue,03.GROCERIES & PROVISIONS
27-Feb-2018,7004793,15.10,AF BLAKEMORE & SON LIMITED T/A LOWRIES CASH & CARRY,332872,Commissioning & Investment,Children's & Education Services,103,Supplies and Services,504,Equipment,5023,Revenue,03.GROCERIES & PROVISIONS
27-Feb-2018,7004793,4.92,AF BLAKEMORE & SON LIMITED T/A LOWRIES CASH & CARRY,332872,Commissioning & Investment,Children's & Education Services,103,Supplies and Services,504,Equipment,5023,Revenue,03.GROCERIES & PROVISIONS
27-Feb-2018,7004793,6.58,AF BLAKEMORE & SON LIMITED T/A LOWRIES CASH & CARRY,332872,Commissioning & Investment,Children's & Education Services,103,Supplies and Services,504,Equipment,5023,Revenue,03.GROCERIES & PROVISIONS
27-Feb-2018,7004793,5.48,AF BLAKEMORE & SON LIMITED T/A LOWRIES CASH & CARRY,332872,Commissioning & Investment,Children's & Education Services,103,Supplies and Services,504,Equipment,5023,Revenue,03.GROCERIES & PROVISIONS
27-Feb-2018,7004793,6.66,AF BLAKEMORE & SON LIMITED T/A LOWRIES CASH & CARRY,332872,Commissioning & Investment,Children's & Education Services,103,Supplies and Services,504,Equipment,5023,Revenue,03.GROCERIES & PROVISIONS
27-Feb-2018,7004793,10.92,AF BLAKEMORE & SON LIMITED T/A LOWRIES CASH & CARRY,332872,Commissioning & Investment,Children's & Education Services,103,Supplies and Services,504,Equipment,5023,Revenue,03.GROCERIES & PROVISIONS
27-Feb-2018,7004793,1.08,AF BLAKEMORE & SON LIMITED T/A LOWRIES CASH & CARRY,332872,Commissioning & Investment,Children's & Education Services,103,Supplies and Services,504,Equipment,5023,Revenue,03.GROCERIES & PROVISIONS
27-Feb-2018,7004793,7.41,AF BLAKEMORE & SON LIMITED T/A LOWRIES CASH & CARRY,332872,Commissioning & Investment,Children's & Education Services,103,Supplies and Services,504,Equipment,5023,Revenue,03.GROCERIES & PROVISIONS
27-Feb-2018,7004793,21.81,AF BLAKEMORE & SON LIMITED T/A LOWRIES CASH & CARRY,332872,Commissioning & Investment,Children's & Education Services,103,Supplies and Services,504,Equipment,5023,Revenue,03.GROCERIES & PROVISIONS
27-Feb-2018,7004793,0.85,AF BLAKEMORE & SON LIMITED T/A LOWRIES CASH & CARRY,332872,Commissioning & Investment,Children's & Education Services,103,Supplies and Services,504,Equipment,5023,Revenue,03.GROCERIES & PROVISIONS
27-Feb-2018,7004793,7.80,AF BLAKEMORE & SON LIMITED T/A LOWRIES CASH & CARRY,332872,Commissioning & Investment,Children's & Education Services,103,Supplies and Services,504,Equipment,5023,Revenue,03.GROCERIES & PROVISIONS
27-Feb-2018,7004793,4.47,AF BLAKEMORE & SON LIMITED T/A LOWRIES CASH & CARRY,332872,Commissioning & Investment,Children's & Education Services,103,Supplies and Services,504,Equipment,5023,Revenue,03.GROCERIES & PROVISIONS
27-Feb-2018,7004793,15.56,AF BLAKEMORE & SON LIMITED T/A LOWRIES CASH & CARRY,332872,Commissioning & Investment,Children's & Education Services,103,Supplies and Services,504,Equipment,5023,Revenue,03.GROCERIES & PROVISIONS
27-Feb-2018,7004793,2.67,AF BLAKEMORE & SON LIMITED T/A LOWRIES CASH & CARRY,332872,Commissioning & Investment,Children's & Education Services,103,Supplies and Services,504,Equipment,5023,Revenue,03.GROCERIES & PROVISIONS
27-Feb-2018,7004793,42.60,AF BLAKEMORE & SON LIMITED T/A LOWRIES CASH & CARRY,332872,Commissioning & Investment,Children's & Education Services,103,Supplies and Services,504,Equipment,5023,Revenue,03.GROCERIES & PROVISIONS
27-Feb-2018,7004793,9.02,AF BLAKEMORE & SON LIMITED T/A LOWRIES CASH & CARRY,332872,Commissioning & Investment,Children's & Education Services,103,Supplies and Services,504,Equipment,5023,Revenue,03.GROCERIES & PROVISIONS
27-Feb-2018,7004793,48.78,AF BLAKEMORE & SON LIMITED T/A LOWRIES CASH & CARRY,332872,Commissioning & Investment,Children's & Education Services,103,Supplies and Services,504,Equipment,5023,Revenue,03.GROCERIES & PROVISIONS
27-Feb-2018,7004793,52.38,AF BLAKEMORE & SON LIMITED T/A LOWRIES CASH & CARRY,332872,Commissioning & Investment,Children's & Education Services,103,Supplies and Services,504,Equipment,5023,Revenue,03.GROCERIES & PROVISIONS
27-Feb-2018,7004793,14.82,AF BLAKEMORE & SON LIMITED T/A LOWRIES CASH & CARRY,332872,Commissioning & Investment,Children's & Education Services,103,Supplies and Services,504,Equipment,5023,Revenue,03.GROCERIES & PROVISIONS
27-Feb-2018,7004793,1.24,AF BLAKEMORE & SON LIMITED T/A LOWRIES CASH & CARRY,332872,Commissioning & Investment,Children's & Education Services,103,Supplies and Services,504,Equipment,5023,Revenue,03.GROCERIES & PROVISIONS
27-Feb-2018,7004793,2.25,AF BLAKEMORE & SON LIMITED T/A LOWRIES CASH & CARRY,332872,Commissioning & Investment,Children's & Education Services,103,Supplies and Services,504,Equipment,5023,Revenue,03.GROCERIES & PROVISIONS
27-Feb-2018,7004793,3.89,AF BLAKEMORE & SON LIMITED T/A LOWRIES CASH & CARRY,332872,Commissioning & Investment,Children's & Education Services,103,Supplies and Services,504,Equipment,5023,Revenue,03.GROCERIES & PROVISIONS
27-Feb-2018,7004793,0.90,AF BLAKEMORE & SON LIMITED T/A LOWRIES CASH & CARRY,332872,Commissioning & Investment,Children's & Education Services,103,Supplies and Services,504,Equipment,5023,Revenue,03.GROCERIES & PROVISIONS
27-Feb-2018,7004793,3.21,AF BLAKEMORE & SON LIMITED T/A LOWRIES CASH & CARRY,332872,Commissioning & Investment,Children's & Education Services,103,Supplies and Services,504,Equipment,5023,Revenue,03.GROCERIES & PROVISIONS
27-Feb-2018,7004793,1.62,AF BLAKEMORE & SON LIMITED T/A LOWRIES CASH & CARRY,332872,Commissioning & Investment,Children's & Education Services,103,Supplies and Services,504,Equipment,5023,Revenue,03.GROCERIES & PROVISIONS
27-Feb-2018,7004793,6.79,AF BLAKEMORE & SON LIMITED T/A LOWRIES CASH & CARRY,332872,Commissioning & Investment,Children's & Education Services,103,Supplies and Services,504,Equipment,5023,Revenue,03.GROCERIES & PROVISIONS
27-Feb-2018,7004793,16.40,AF BLAKEMORE & SON LIMITED T/A LOWRIES CASH & CARRY,332872,Commissioning & Investment,Children's & Education Services,103,Supplies and Services,504,Equipment,5023,Revenue,03.GROCERIES & PROVISIONS
27-Feb-2018,7004793,3.78,AF BLAKEMORE & SON LIMITED T/A LOWRIES CASH & CARRY,332872,Commissioning & Investment,Children's & Education Services,103,Supplies and Services,504,Equipment,5023,Revenue,03.GROCERIES & PROVISIONS
27-Feb-2018,7004793,3.78,AF BLAKEMORE & SON LIMITED T/A LOWRIES CASH & CARRY,332872,Commissioning & Investment,Children's & Education Services,103,Supplies and Services,504,Equipment,5023,Revenue,03.GROCERIES & PROVISIONS
27-Feb-2018,7004793,14.54,AF BLAKEMORE & SON LIMITED T/A LOWRIES CASH & CARRY,332872,Commissioning & Investment,Children's & Education Services,103,Supplies and Services,504,Equipment,5023,Revenue,03.GROCERIES & PROVISIONS
27-Feb-2018,7004793,2.43,AF BLAKEMORE & SON LIMITED T/A LOWRIES CASH & CARRY,332872,Commissioning & Investment,Children's & Education Services,103,Supplies and Services,504,Equipment,5023,Revenue,03.GROCERIES & PROVISIONS
27-Feb-2018,7004793,4.14,AF BLAKEMORE & SON LIMITED T/A LOWRIES CASH & CARRY,332872,Commissioning & Investment,Children's & Education Services,103,Supplies and Services,504,Equipment,5023,Revenue,03.GROCERIES & PROVISIONS
27-Feb-2018,7004793,15.20,AF BLAKEMORE & SON LIMITED T/A LOWRIES CASH & CARRY,332872,Commissioning & Investment,Children's & Education Services,103,Supplies and Services,504,Equipment,5023,Revenue,03.GROCERIES & PROVISIONS
27-Feb-2018,7004793,8.37,AF BLAKEMORE & SON LIMITED T/A LOWRIES CASH & CARRY,332872,Commissioning & Investment,Children's & Education Services,103,Supplies and Services,504,Equipment,5023,Revenue,03.GROCERIES & PROVISIONS
27-Feb-2018,7004793,2.43,AF BLAKEMORE & SON LIMITED T/A LOWRIES CASH & CARRY,332872,Commissioning & Investment,Children's & Education Services,103,Supplies and Services,504,Equipment,5023,Revenue,03.GROCERIES & PROVISIONS
27-Feb-2018,7004793,7.60,AF BLAKEMORE & SON LIMITED T/A LOWRIES CASH & CARRY,332872,Commissioning & Investment,Children's & Education Services,103,Supplies and Services,504,Equipment,5023,Revenue,03.GROCERIES & PROVISIONS
27-Feb-2018,7004793,4.10,AF BLAKEMORE & SON LIMITED T/A LOWRIES CASH & CARRY,332872,Commissioning & Investment,Children's & Education Services,103,Supplies and Services,504,Equipment,5023,Revenue,03.GROCERIES & PROVISIONS
27-Feb-2018,7004793,12.36,AF BLAKEMORE & SON LIMITED T/A LOWRIES CASH & CARRY,332872,Commissioning & Investment,Children's & Education Services,103,Supplies and Services,504,Equipment,5023,Revenue,03.GROCERIES & PROVISIONS
27-Feb-2018,7004793,6.79,AF BLAKEMORE & SON LIMITED T/A LOWRIES CASH & CARRY,332872,Commissioning & Investment,Children's & Education Services,103,Supplies and Services,504,Equipment,5023,Revenue,03.GROCERIES & PROVISIONS
27-Feb-2018,7004793,7.60,AF BLAKEMORE & SON LIMITED T/A LOWRIES CASH & CARRY,332872,Commissioning & Investment,Children's & Education Services,103,Supplies and Services,504,Equipment,5023,Revenue,03.GROCERIES & PROVISIONS
27-Feb-2018,7004793,9.76,AF BLAKEMORE & SON LIMITED T/A LOWRIES CASH & CARRY,332872,Commissioning & Investment,Children's & Education Services,103,Supplies and Services,504,Equipment,5023,Revenue,03.GROCERIES & PROVISIONS
27-Feb-2018,7004793,13.58,AF BLAKEMORE & SON LIMITED T/A LOWRIES CASH & CARRY,332872,Commissioning & Investment,Children's & Education Services,103,Supplies and Services,504,Equipment,5023,Revenue,03.GROCERIES & PROVISIONS
27-Feb-2018,7004793,2.37,AF BLAKEMORE & SON LIMITED T/A LOWRIES CASH & CARRY,332872,Commissioning & Investment,Children's & Education Services,103,Supplies and Services,504,Equipment,5023,Revenue,03.GROCERIES & PROVISIONS
27-Feb-2018,7004793,7.35,AF BLAKEMORE & SON LIMITED T/A LOWRIES CASH & CARRY,332872,Commissioning & Investment,Children's & Education Services,103,Supplies and Services,504,Equipment,5023,Revenue,03.GROCERIES & PROVISIONS
27-Feb-2018,7004793,10.38,AF BLAKEMORE & SON LIMITED T/A LOWRIES CASH & CARRY,332872,Commissioning & Investment,Children's & Education Services,103,Supplies and Services,504,Equipment,5023,Revenue,03.GROCERIES & PROVISIONS
27-Feb-2018,7004793,28.38,AF BLAKEMORE & SON LIMITED T/A LOWRIES CASH & CARRY,332872,Commissioning & Investment,Children's & Education Services,103,Supplies and Services,504,Equipment,5023,Revenue,03.GROCERIES & PROVISIONS
27-Feb-2018,7004793,1.08,AF BLAKEMORE & SON LIMITED T/A LOWRIES CASH & CARRY,332872,Commissioning & Investment,Children's & Education Services,103,Supplies and Services,504,Equipment,5023,Revenue,03.GROCERIES & PROVISIONS
27-Feb-2018,7004793,5.25,AF BLAKEMORE & SON LIMITED T/A LOWRIES CASH & CARRY,332872,Commissioning & Investment,Children's & Education Services,103,Supplies and Services,504,Equipment,5023,Revenue,03.GROCERIES & PROVISIONS
27-Feb-2018,7004793,8.84,AF BLAKEMORE & SON LIMITED T/A LOWRIES CASH & CARRY,332872,Commissioning & Investment,Children's & Education Services,103,Supplies and Services,504,Equipment,5023,Revenue,03.GROCERIES & PROVISIONS
27-Feb-2018,7004793,52.62,AF BLAKEMORE & SON LIMITED T/A LOWRIES CASH & CARRY,332872,Commissioning & Investment,Children's & Education Services,103,Supplies and Services,504,Equipment,5023,Revenue,03.GROCERIES & PROVISIONS
27-Feb-2018,7004793,19.83,AF BLAKEMORE & SON LIMITED T/A LOWRIES CASH & CARRY,332872,Commissioning & Investment,Children's & Education Services,103,Supplies and Services,504,Equipment,5023,Revenue,03.GROCERIES & PROVISIONS
27-Feb-2018,7004793,9.64,AF BLAKEMORE & SON LIMITED T/A LOWRIES CASH & CARRY,332872,Commissioning & Investment,Children's & Education Services,103,Supplies and Services,504,Equipment,5023,Revenue,03.GROCERIES & PROVISIONS
27-Feb-2018,7004793,5.68,AF BLAKEMORE & SON LIMITED T/A LOWRIES CASH & CARRY,332872,Commissioning & Investment,Children's & Education Services,103,Supplies and Services,504,Equipment,5023,Revenue,03.GROCERIES & PROVISIONS
27-Feb-2018,7004793,8.00,AF BLAKEMORE & SON LIMITED T/A LOWRIES CASH & CARRY,332872,Commissioning & Investment,Children's & Education Services,103,Supplies and Services,504,Equipment,5023,Revenue,03.GROCERIES & PROVISIONS
27-Feb-2018,7004793,2.83,AF BLAKEMORE & SON LIMITED T/A LOWRIES CASH & CARRY,332872,Commissioning & Investment,Children's & Education Services,103,Supplies and Services,504,Equipment,5023,Revenue,03.GROCERIES & PROVISIONS
27-Feb-2018,7004793,10.92,AF BLAKEMORE & SON LIMITED T/A LOWRIES CASH & CARRY,332872,Commissioning & Investment,Children's & Education Services,103,Supplies and Services,504,Equipment,5023,Revenue,03.GROCERIES & PROVISIONS
27-Feb-2018,7004793,2.88,AF BLAKEMORE & SON LIMITED T/A LOWRIES CASH & CARRY,332872,Commissioning & Investment,Children's & Education Services,103,Supplies and Services,504,Equipment,5023,Revenue,03.GROCERIES & PROVISIONS
27-Feb-2018,7004793,0.90,AF BLAKEMORE & SON LIMITED T/A LOWRIES CASH & CARRY,332872,Commissioning & Investment,Children's & Education Services,103,Supplies and Services,504,Equipment,5023,Revenue,03.GROCERIES & PROVISIONS
27-Feb-2018,7004793,15.20,AF BLAKEMORE & SON LIMITED T/A LOWRIES CASH & CARRY,332872,Commissioning & Investment,Children's & Education Services,103,Supplies and Services,504,Equipment,5023,Revenue,03.GROCERIES & PROVISIONS
27-Feb-2018,7004793,2.48,AF BLAKEMORE & SON LIMITED T/A LOWRIES CASH & CARRY,332872,Commissioning & Investment,Children's & Education Services,103,Supplies and Services,504,Equipment,5023,Revenue,03.GROCERIES & PROVISIONS
27-Feb-2018,7004793,2.67,AF BLAKEMORE & SON LIMITED T/A LOWRIES CASH & CARRY,332872,Commissioning & Investment,Children's & Education Services,103,Supplies and Services,504,Equipment,5023,Revenue,03.GROCERIES & PROVISIONS
27-Feb-2018,7004793,10.92,AF BLAKEMORE & SON LIMITED T/A LOWRIES CASH & CARRY,332872,Commissioning & Investment,Children's & Education Services,103,Supplies and Services,504,Equipment,5023,Revenue,03.GROCERIES & PROVISIONS
27-Feb-2018,7004793,13.00,AF BLAKEMORE & SON LIMITED T/A LOWRIES CASH & CARRY,332872,Commissioning & Investment,Children's & Education Services,103,Supplies and Services,504,Equipment,5023,Revenue,03.GROCERIES & PROVISIONS
27-Feb-2018,7004793,14.56,AF BLAKEMORE & SON LIMITED T/A LOWRIES CASH & CARRY,332872,Commissioning & Investment,Children's & Education Services,103,Supplies and Services,504,Equipment,5023,Revenue,03.GROCERIES & PROVISIONS
27-Feb-2018,7004793,7.56,AF BLAKEMORE & SON LIMITED T/A LOWRIES CASH & CARRY,332872,Commissioning & Investment,Children's & Education Services,103,Supplies and Services,504,Equipment,5023,Revenue,03.GROCERIES & PROVISIONS
27-Feb-2018,7004793,2.48,AF BLAKEMORE & SON LIMITED T/A LOWRIES CASH & CARRY,332872,Commissioning & Investment,Children's & Education Services,103,Supplies and Services,504,Equipment,5023,Revenue,03.GROCERIES & PROVISIONS
27-Feb-2018,7004793,8.37,AF BLAKEMORE & SON LIMITED T/A LOWRIES CASH & CARRY,332872,Commissioning & Investment,Children's & Education Services,103,Supplies and Services,504,Equipment,5023,Revenue,03.GROCERIES & PROVISIONS
27-Feb-2018,7004793,6.42,AF BLAKEMORE & SON LIMITED T/A LOWRIES CASH & CARRY,332872,Commissioning & Investment,Children's & Education Services,103,Supplies and Services,504,Equipment,5023,Revenue,03.GROCERIES & PROVISIONS
27-Feb-2018,7004793,4.51,AF BLAKEMORE & SON LIMITED T/A LOWRIES CASH & CARRY,332872,Commissioning & Investment,Children's & Education Services,103,Supplies and Services,504,Equipment,5023,Revenue,03.GROCERIES & PROVISIONS
27-Feb-2018,7004793,0.85,AF BLAKEMORE & SON LIMITED T/A LOWRIES CASH & CARRY,332872,Commissioning & Investment,Children's & Education Services,103,Supplies and Services,504,Equipment,5023,Revenue,03.GROCERIES & PROVISIONS
27-Feb-2018,7004793,2.67,AF BLAKEMORE & SON LIMITED T/A LOWRIES CASH & CARRY,332872,Commissioning & Investment,Children's & Education Services,103,Supplies and Services,504,Equipment,5023,Revenue,03.GROCERIES & PROVISIONS
27-Feb-2018,7004793,11.24,AF BLAKEMORE & SON LIMITED T/A LOWRIES CASH & CARRY,332872,Commissioning & Investment,Children's & Education Services,103,Supplies and Services,504,Equipment,5023,Revenue,03.GROCERIES & PROVISIONS
27-Feb-2018,7004793,6.42,AF BLAKEMORE & SON LIMITED T/A LOWRIES CASH & CARRY,332872,Commissioning & Investment,Children's & Education Services,103,Supplies and Services,504,Equipment,5023,Revenue,03.GROCERIES & PROVISIONS
27-Feb-2018,7004793,10.99,AF BLAKEMORE & SON LIMITED T/A LOWRIES CASH & CARRY,332872,Commissioning & Investment,Children's & Education Services,103,Supplies and Services,504,Equipment,5023,Revenue,03.GROCERIES & PROVISIONS
27-Feb-2018,7004793,17.04,AF BLAKEMORE & SON LIMITED T/A LOWRIES CASH & CARRY,332872,Commissioning & Investment,Children's & Education Services,103,Supplies and Services,504,Equipment,5023,Revenue,03.GROCERIES & PROVISIONS
27-Feb-2018,7004793,9.40,AF BLAKEMORE & SON LIMITED T/A LOWRIES CASH & CARRY,332872,Commissioning & Investment,Children's & Education Services,103,Supplies and Services,504,Equipment,5023,Revenue,03.GROCERIES & PROVISIONS
27-Feb-2018,7004793,10.00,AF BLAKEMORE & SON LIMITED T/A LOWRIES CASH & CARRY,332872,Commissioning & Investment,Children's & Education Services,103,Supplies and Services,504,Equipment,5023,Revenue,03.GROCERIES & PROVISIONS
27-Feb-2018,7004793,3.63,AF BLAKEMORE & SON LIMITED T/A LOWRIES CASH & CARRY,332872,Commissioning & Investment,Children's & Education Services,103,Supplies and Services,504,Equipment,5023,Revenue,03.GROCERIES & PROVISIONS
27-Feb-2018,7004793,6.79,AF BLAKEMORE & SON LIMITED T/A LOWRIES CASH & CARRY,332872,Commissioning & Investment,Children's & Education Services,103,Supplies and Services,504,Equipment,5023,Revenue,03.GROCERIES & PROVISIONS
27-Feb-2018,7004793,2.19,AF BLAKEMORE & SON LIMITED T/A LOWRIES CASH & CARRY,332872,Commissioning & Investment,Children's & Education Services,103,Supplies and Services,504,Equipment,5023,Revenue,03.GROCERIES & PROVISIONS
27-Feb-2018,7004793,11.87,AF BLAKEMORE & SON LIMITED T/A LOWRIES CASH & CARRY,332872,Commissioning & Investment,Children's & Education Services,103,Supplies and Services,504,Equipment,5023,Revenue,03.GROCERIES & PROVISIONS
27-Feb-2018,7004793,2.41,AF BLAKEMORE & SON LIMITED T/A LOWRIES CASH & CARRY,332872,Commissioning & Investment,Children's & Education Services,103,Supplies and Services,504,Equipment,5023,Revenue,03.GROCERIES & PROVISIONS
27-Feb-2018,7004793,15.38,AF BLAKEMORE & SON LIMITED T/A LOWRIES CASH & CARRY,332872,Commissioning & Investment,Children's & Education Services,103,Supplies and Services,504,Equipment,5023,Revenue,03.GROCERIES & PROVISIONS
27-Feb-2018,7004793,5.83,AF BLAKEMORE & SON LIMITED T/A LOWRIES CASH & CARRY,332872,Commissioning & Investment,Children's & Education Services,103,Supplies and Services,504,Equipment,5023,Revenue,03.GROCERIES & PROVISIONS
27-Feb-2018,7004793,0.68,AF BLAKEMORE & SON LIMITED T/A LOWRIES CASH & CARRY,332872,Commissioning & Investment,Children's & Education Services,103,Supplies and Services,504,Equipment,5023,Revenue,03.GROCERIES & PROVISIONS
27-Feb-2018,7004793,16.40,AF BLAKEMORE & SON LIMITED T/A LOWRIES CASH & CARRY,332872,Commissioning & Investment,Children's & Education Services,103,Supplies and Services,504,Equipment,5023,Revenue,03.GROCERIES & PROVISIONS
27-Feb-2018,7004793,4.94,AF BLAKEMORE & SON LIMITED T/A LOWRIES CASH & CARRY,332872,Commissioning & Investment,Children's & Education Services,103,Supplies and Services,504,Equipment,5023,Revenue,03.GROCERIES & PROVISIONS
27-Feb-2018,7004793,4.70,AF BLAKEMORE & SON LIMITED T/A LOWRIES CASH & CARRY,332872,Commissioning & Investment,Children's & Education Services,103,Supplies and Services,504,Equipment,5023,Revenue,03.GROCERIES & PROVISIONS
27-Feb-2018,7004793,10.92,AF BLAKEMORE & SON LIMITED T/A LOWRIES CASH & CARRY,332872,Commissioning & Investment,Children's & Education Services,103,Supplies and Services,504,Equipment,5023,Revenue,03.GROCERIES & PROVISIONS
27-Feb-2018,7004793,14.56,AF BLAKEMORE & SON LIMITED T/A LOWRIES CASH & CARRY,332872,Commissioning & Investment,Children's & Education Services,103,Supplies and Services,504,Equipment,5023,Revenue,03.GROCERIES & PROVISIONS
27-Feb-2018,7004793,2.88,AF BLAKEMORE & SON LIMITED T/A LOWRIES CASH & CARRY,332872,Commissioning & Investment,Children's & Education Services,103,Supplies and Services,504,Equipment,5023,Revenue,03.GROCERIES & PROVISIONS
27-Feb-2018,7004793,1.70,AF BLAKEMORE & SON LIMITED T/A LOWRIES CASH & CARRY,332872,Commissioning & Investment,Children's & Education Services,103,Supplies and Services,504,Equipment,5023,Revenue,03.GROCERIES & PROVISIONS
27-Feb-2018,7004793,6.42,AF BLAKEMORE & SON LIMITED T/A LOWRIES CASH & CARRY,332872,Commissioning & Investment,Children's & Education Services,103,Supplies and Services,504,Equipment,5023,Revenue,03.GROCERIES & PROVISIONS
27-Feb-2018,7004793,4.70,AF BLAKEMORE & SON LIMITED T/A LOWRIES CASH & CARRY,332872,Commissioning & Investment,Children's & Education Services,103,Supplies and Services,504,Equipment,5023,Revenue,03.GROCERIES & PROVISIONS
27-Feb-2018,7004793,2.37,AF BLAKEMORE & SON LIMITED T/A LOWRIES CASH & CARRY,332872,Commissioning & Investment,Children's & Education Services,103,Supplies and Services,504,Equipment,5023,Revenue,03.GROCERIES & PROVISIONS
27-Feb-2018,7004793,2.64,AF BLAKEMORE & SON LIMITED T/A LOWRIES CASH & CARRY,332872,Commissioning & Investment,Children's & Education Services,103,Supplies and Services,504,Equipment,5023,Revenue,03.GROCERIES & PROVISIONS
27-Feb-2018,7004793,41.70,AF BLAKEMORE & SON LIMITED T/A LOWRIES CASH & CARRY,332872,Commissioning & Investment,Children's & Education Services,103,Supplies and Services,504,Equipment,5023,Revenue,03.GROCERIES & PROVISIONS
27-Feb-2018,7004793,10.92,AF BLAKEMORE & SON LIMITED T/A LOWRIES CASH & CARRY,332872,Commissioning & Investment,Children's & Education Services,103,Supplies and Services,504,Equipment,5023,Revenue,03.GROCERIES & PROVISIONS
27-Feb-2018,7004793,9.40,AF BLAKEMORE & SON LIMITED T/A LOWRIES CASH & CARRY,332872,Commissioning & Investment,Children's & Education Services,103,Supplies and Services,504,Equipment,5023,Revenue,03.GROCERIES & PROVISIONS
27-Feb-2018,7004793,0.86,AF BLAKEMORE & SON LIMITED T/A LOWRIES CASH & CARRY,332872,Commissioning & Investment,Children's & Education Services,103,Supplies and Services,504,Equipment,5023,Revenue,03.GROCERIES & PROVISIONS
27-Feb-2018,7004793,12.91,AF BLAKEMORE & SON LIMITED T/A LOWRIES CASH & CARRY,332872,Commissioning & Investment,Children's & Education Services,103,Supplies and Services,504,Equipment,5023,Revenue,03.GROCERIES & PROVISIONS
27-Feb-2018,7004793,2.40,AF BLAKEMORE & SON LIMITED T/A LOWRIES CASH & CARRY,332872,Commissioning & Investment,Children's & Education Services,103,Supplies and Services,504,Equipment,5023,Revenue,03.GROCERIES & PROVISIONS
27-Feb-2018,7004793,14.70,AF BLAKEMORE & SON LIMITED T/A LOWRIES CASH & CARRY,332872,Commissioning & Investment,Children's & Education Services,103,Supplies and Services,504,Equipment,5023,Revenue,03.GROCERIES & PROVISIONS
27-Feb-2018,7004793,9.90,AF BLAKEMORE & SON LIMITED T/A LOWRIES CASH & CARRY,332872,Commissioning & Investment,Children's & Education Services,103,Supplies and Services,504,Equipment,5023,Revenue,03.GROCERIES & PROVISIONS
27-Feb-2018,7004793,6.42,AF BLAKEMORE & SON LIMITED T/A LOWRIES CASH & CARRY,332872,Commissioning & Investment,Children's & Education Services,103,Supplies and Services,504,Equipment,5023,Revenue,03.GROCERIES & PROVISIONS
27-Feb-2018,7004793,7.21,AF BLAKEMORE & SON LIMITED T/A LOWRIES CASH & CARRY,332872,Commissioning & Investment,Children's & Education Services,103,Supplies and Services,504,Equipment,5023,Revenue,03.GROCERIES & PROVISIONS
27-Feb-2018,7004793,3.50,AF BLAKEMORE & SON LIMITED T/A LOWRIES CASH & CARRY,332872,Commissioning & Investment,Children's & Education Services,103,Supplies and Services,504,Equipment,5023,Revenue,03.GROCERIES & PROVISIONS
27-Feb-2018,7004793,24.39,AF BLAKEMORE & SON LIMITED T/A LOWRIES CASH & CARRY,332872,Commissioning & Investment,Children's & Education Services,103,Supplies and Services,504,Equipment,5023,Revenue,03.GROCERIES & PROVISIONS
27-Feb-2018,7004793,37.20,AF BLAKEMORE & SON LIMITED T/A LOWRIES CASH & CARRY,332872,Commissioning & Investment,Children's & Education Services,103,Supplies and Services,504,Equipment,5023,Revenue,03.GROCERIES & PROVISIONS
27-Feb-2018,7004793,9.02,AF BLAKEMORE & SON LIMITED T/A LOWRIES CASH & CARRY,332872,Commissioning & Investment,Children's & Education Services,103,Supplies and Services,504,Equipment,5023,Revenue,03.GROCERIES & PROVISIONS
27-Feb-2018,7004793,3.15,AF BLAKEMORE & SON LIMITED T/A LOWRIES CASH & CARRY,332872,Commissioning & Investment,Children's & Education Services,103,Supplies and Services,504,Equipment,5023,Revenue,03.GROCERIES & PROVISIONS
27-Feb-2018,7004793,4.08,AF BLAKEMORE & SON LIMITED T/A LOWRIES CASH & CARRY,332872,Commissioning & Investment,Children's & Education Services,103,Supplies and Services,504,Equipment,5023,Revenue,03.GROCERIES & PROVISIONS
27-Feb-2018,7004793,20.96,AF BLAKEMORE & SON LIMITED T/A LOWRIES CASH & CARRY,332872,Commissioning & Investment,Children's & Education Services,103,Supplies and Services,504,Equipment,5023,Revenue,03.GROCERIES & PROVISIONS
27-Feb-2018,7004793,9.64,AF BLAKEMORE & SON LIMITED T/A LOWRIES CASH & CARRY,332872,Commissioning & Investment,Children's & Education Services,103,Supplies and Services,504,Equipment,5023,Revenue,03.GROCERIES & PROVISIONS
27-Feb-2018,7004793,7.21,AF BLAKEMORE & SON LIMITED T/A LOWRIES CASH & CARRY,332872,Commissioning & Investment,Children's & Education Services,103,Supplies and Services,504,Equipment,5023,Revenue,03.GROCERIES & PROVISIONS
27-Feb-2018,7004793,-6.66,AF BLAKEMORE & SON LIMITED T/A LOWRIES CASH & CARRY,332872,Commissioning & Investment,Children's & Education Services,103,Supplies and Services,504,Equipment,5023,Revenue,03.GROCERIES & PROVISIONS
27-Feb-2018,7004793,19.80,AF BLAKEMORE & SON LIMITED T/A LOWRIES CASH & CARRY,332872,Commissioning & Investment,Children's & Education Services,103,Supplies and Services,504,Equipment,5023,Revenue,03.GROCERIES & PROVISIONS
27-Feb-2018,7004793,11.02,AF BLAKEMORE & SON LIMITED T/A LOWRIES CASH & CARRY,332872,Commissioning & Investment,Children's & Education Services,103,Supplies and Services,504,Equipment,5023,Revenue,03.GROCERIES & PROVISIONS
27-Feb-2018,7004793,15.12,AF BLAKEMORE & SON LIMITED T/A LOWRIES CASH & CARRY,332872,Commissioning & Investment,Children's & Education Services,103,Supplies and Services,504,Equipment,5023,Revenue,03.GROCERIES & PROVISIONS
27-Feb-2018,7004793,24.64,AF BLAKEMORE & SON LIMITED T/A LOWRIES CASH & CARRY,332872,Commissioning & Investment,Children's & Education Services,103,Supplies and Services,504,Equipment,5023,Revenue,03.GROCERIES & PROVISIONS
27-Feb-2018,7004793,16.35,AF BLAKEMORE & SON LIMITED T/A LOWRIES CASH & CARRY,332872,Commissioning & Investment,Children's & Education Services,103,Supplies and Services,504,Equipment,5023,Revenue,03.GROCERIES & PROVISIONS
27-Feb-2018,7004793,4.32,AF BLAKEMORE & SON LIMITED T/A LOWRIES CASH & CARRY,332872,Commissioning & Investment,Children's & Education Services,103,Supplies and Services,504,Equipment,5023,Revenue,03.GROCERIES & PROVISIONS
27-Feb-2018,7004793,33.48,AF BLAKEMORE & SON LIMITED T/A LOWRIES CASH & CARRY,332872,Commissioning & Investment,Children's & Education Services,103,Supplies and Services,504,Equipment,5023,Revenue,03.GROCERIES & PROVISIONS
27-Feb-2018,7004793,8.37,AF BLAKEMORE & SON LIMITED T/A LOWRIES CASH & CARRY,332872,Commissioning & Investment,Children's & Education Services,103,Supplies and Services,504,Equipment,5023,Revenue,03.GROCERIES & PROVISIONS
27-Feb-2018,7004793,2.78,AF BLAKEMORE & SON LIMITED T/A LOWRIES CASH & CARRY,332872,Commissioning & Investment,Children's & Education Services,103,Supplies and Services,504,Equipment,5023,Revenue,03.GROCERIES & PROVISIONS
27-Feb-2018,7004793,8.00,AF BLAKEMORE & SON LIMITED T/A LOWRIES CASH & CARRY,332872,Commissioning & Investment,Children's & Education Services,103,Supplies and Services,504,Equipment,5023,Revenue,03.GROCERIES & PROVISIONS
27-Feb-2018,7004793,13.22,AF BLAKEMORE & SON LIMITED T/A LOWRIES CASH & CARRY,332872,Commissioning & Investment,Children's & Education Services,103,Supplies and Services,504,Equipment,5023,Revenue,03.GROCERIES & PROVISIONS
27-Feb-2018,7004793,10.99,AF BLAKEMORE & SON LIMITED T/A LOWRIES CASH & CARRY,332872,Commissioning & Investment,Children's & Education Services,103,Supplies and Services,504,Equipment,5023,Revenue,03.GROCERIES & PROVISIONS
27-Feb-2018,7004793,13.18,AF BLAKEMORE & SON LIMITED T/A LOWRIES CASH & CARRY,332872,Commissioning & Investment,Children's & Education Services,103,Supplies and Services,504,Equipment,5023,Revenue,03.GROCERIES & PROVISIONS
27-Feb-2018,7004793,13.18,AF BLAKEMORE & SON LIMITED T/A LOWRIES CASH & CARRY,332872,Commissioning & Investment,Children's & Education Services,103,Supplies and Services,504,Equipment,5023,Revenue,03.GROCERIES & PROVISIONS
27-Feb-2018,7004793,13.90,AF BLAKEMORE & SON LIMITED T/A LOWRIES CASH & CARRY,332872,Commissioning & Investment,Children's & Education Services,103,Supplies and Services,504,Equipment,5023,Revenue,03.GROCERIES & PROVISIONS
27-Feb-2018,7004793,18.04,AF BLAKEMORE & SON LIMITED T/A LOWRIES CASH & CARRY,332872,Commissioning & Investment,Children's & Education Services,103,Supplies and Services,504,Equipment,5023,Revenue,03.GROCERIES & PROVISIONS
27-Feb-2018,7004793,11.34,AF BLAKEMORE & SON LIMITED T/A LOWRIES CASH & CARRY,332872,Commissioning & Investment,Children's & Education Services,103,Supplies and Services,504,Equipment,5023,Revenue,03.GROCERIES & PROVISIONS
27-Feb-2018,7004793,8.37,AF BLAKEMORE & SON LIMITED T/A LOWRIES CASH & CARRY,332872,Commissioning & Investment,Children's & Education Services,103,Supplies and Services,504,Equipment,5023,Revenue,03.GROCERIES & PROVISIONS
27-Feb-2018,7004793,14.70,AF BLAKEMORE & SON LIMITED T/A LOWRIES CASH & CARRY,332872,Commissioning & Investment,Children's & Education Services,103,Supplies and Services,504,Equipment,5023,Revenue,03.GROCERIES & PROVISIONS
27-Feb-2018,7004793,5.48,AF BLAKEMORE & SON LIMITED T/A LOWRIES CASH & CARRY,332872,Commissioning & Investment,Children's & Education Services,103,Supplies and Services,504,Equipment,5023,Revenue,03.GROCERIES & PROVISIONS
27-Feb-2018,7004793,6.79,AF BLAKEMORE & SON LIMITED T/A LOWRIES CASH & CARRY,332872,Commissioning & Investment,Children's & Education Services,103,Supplies and Services,504,Equipment,5023,Revenue,03.GROCERIES & PROVISIONS
27-Feb-2018,7004793,8.52,AF BLAKEMORE & SON LIMITED T/A LOWRIES CASH & CARRY,332872,Commissioning & Investment,Children's & Education Services,103,Supplies and Services,504,Equipment,5023,Revenue,03.GROCERIES & PROVISIONS
27-Feb-2018,7004793,7.41,AF BLAKEMORE & SON LIMITED T/A LOWRIES CASH & CARRY,332872,Commissioning & Investment,Children's & Education Services,103,Supplies and Services,504,Equipment,5023,Revenue,03.GROCERIES & PROVISIONS
27-Feb-2018,7004793,4.86,AF BLAKEMORE & SON LIMITED T/A LOWRIES CASH & CARRY,332872,Commissioning & Investment,Children's & Education Services,103,Supplies and Services,504,Equipment,5023,Revenue,03.GROCERIES & PROVISIONS
27-Feb-2018,7004793,1.49,AF BLAKEMORE & SON LIMITED T/A LOWRIES CASH & CARRY,332872,Commissioning & Investment,Children's & Education Services,103,Supplies and Services,504,Equipment,5023,Revenue,03.GROCERIES & PROVISIONS
27-Feb-2018,7004793,4.51,AF BLAKEMORE & SON LIMITED T/A LOWRIES CASH & CARRY,332872,Commissioning & Investment,Children's & Education Services,103,Supplies and Services,504,Equipment,5023,Revenue,03.GROCERIES & PROVISIONS
27-Feb-2018,7004793,7.72,AF BLAKEMORE & SON LIMITED T/A LOWRIES CASH & CARRY,332872,Commissioning & Investment,Children's & Education Services,103,Supplies and Services,504,Equipment,5023,Revenue,03.GROCERIES & PROVISIONS
27-Feb-2018,7004793,7.72,AF BLAKEMORE & SON LIMITED T/A LOWRIES CASH & CARRY,332872,Commissioning & Investment,Children's & Education Services,103,Supplies and Services,504,Equipment,5023,Revenue,03.GROCERIES & PROVISIONS
27-Feb-2018,7004793,4.74,AF BLAKEMORE & SON LIMITED T/A LOWRIES CASH & CARRY,332872,Commissioning & Investment,Children's & Education Services,103,Supplies and Services,504,Equipment,5023,Revenue,03.GROCERIES & PROVISIONS
27-Feb-2018,7004793,3.11,AF BLAKEMORE & SON LIMITED T/A LOWRIES CASH & CARRY,332872,"Environment, Housing & Leisure",Cultural & Related Services,104,Supplies and Services,504,Equipment,5023,Revenue,03.GROCERIES & PROVISIONS
27-Feb-2018,7004793,2.72,AF BLAKEMORE & SON LIMITED T/A LOWRIES CASH & CARRY,332872,Commissioning & Investment,Children's & Education Services,103,Supplies and Services,504,Equipment,5023,Revenue,03.GROCERIES & PROVISIONS
27-Feb-2018,7004793,6.64,AF BLAKEMORE & SON LIMITED T/A LOWRIES CASH & CARRY,332872,Commissioning & Investment,Children's & Education Services,103,Supplies and Services,504,Equipment,5023,Revenue,03.GROCERIES & PROVISIONS
27-Feb-2018,7004793,4.62,AF BLAKEMORE & SON LIMITED T/A LOWRIES CASH & CARRY,332872,Commissioning & Investment,Children's & Education Services,103,Supplies and Services,504,Equipment,5023,Revenue,03.GROCERIES & PROVISIONS
27-Feb-2018,7004793,13.08,AF BLAKEMORE & SON LIMITED T/A LOWRIES CASH & CARRY,332872,Commissioning & Investment,Children's & Education Services,103,Supplies and Services,504,Equipment,5023,Revenue,03.GROCERIES & PROVISIONS
27-Feb-2018,7004793,4.14,AF BLAKEMORE & SON LIMITED T/A LOWRIES CASH & CARRY,332872,Commissioning & Investment,Children's & Education Services,103,Supplies and Services,504,Equipment,5023,Revenue,03.GROCERIES & PROVISIONS
27-Feb-2018,7004793,2.83,AF BLAKEMORE & SON LIMITED T/A LOWRIES CASH & CARRY,332872,Commissioning & Investment,Children's & Education Services,103,Supplies and Services,504,Equipment,5023,Revenue,03.GROCERIES & PROVISIONS
27-Feb-2018,7004793,5.34,AF BLAKEMORE & SON LIMITED T/A LOWRIES CASH & CARRY,332872,Commissioning & Investment,Children's & Education Services,103,Supplies and Services,504,Equipment,5023,Revenue,03.GROCERIES & PROVISIONS
27-Feb-2018,7004793,29.40,AF BLAKEMORE & SON LIMITED T/A LOWRIES CASH & CARRY,332872,Commissioning & Investment,Children's & Education Services,103,Supplies and Services,504,Equipment,5023,Revenue,03.GROCERIES & PROVISIONS
27-Feb-2018,7004793,5.70,AF BLAKEMORE & SON LIMITED T/A LOWRIES CASH & CARRY,332872,Commissioning & Investment,Children's & Education Services,103,Supplies and Services,504,Equipment,5023,Revenue,03.GROCERIES & PROVISIONS
27-Feb-2018,7004793,20.96,AF BLAKEMORE & SON LIMITED T/A LOWRIES CASH & CARRY,332872,Commissioning & Investment,Children's & Education Services,103,Supplies and Services,504,Equipment,5023,Revenue,03.GROCERIES & PROVISIONS
27-Feb-2018,7004793,6.12,AF BLAKEMORE & SON LIMITED T/A LOWRIES CASH & CARRY,332872,Commissioning & Investment,Children's & Education Services,103,Supplies and Services,504,Equipment,5023,Revenue,03.GROCERIES & PROVISIONS
27-Feb-2018,7004793,24.06,AF BLAKEMORE & SON LIMITED T/A LOWRIES CASH & CARRY,332872,Commissioning & Investment,Children's & Education Services,103,Supplies and Services,504,Equipment,5023,Revenue,03.GROCERIES & PROVISIONS
27-Feb-2018,7004793,22.23,AF BLAKEMORE & SON LIMITED T/A LOWRIES CASH & CARRY,332872,Commissioning & Investment,Children's & Education Services,103,Supplies and Services,504,Equipment,5023,Revenue,03.GROCERIES & PROVISIONS
27-Feb-2018,7004793,1.24,AF BLAKEMORE & SON LIMITED T/A LOWRIES CASH & CARRY,332872,Commissioning & Investment,Children's & Education Services,103,Supplies and Services,504,Equipment,5023,Revenue,03.GROCERIES & PROVISIONS
27-Feb-2018,7004793,8.52,AF BLAKEMORE & SON LIMITED T/A LOWRIES CASH & CARRY,332872,Commissioning & Investment,Children's & Education Services,103,Supplies and Services,504,Equipment,5023,Revenue,03.GROCERIES & PROVISIONS
27-Feb-2018,7004793,1.72,AF BLAKEMORE & SON LIMITED T/A LOWRIES CASH & CARRY,332872,Commissioning & Investment,Children's & Education Services,103,Supplies and Services,504,Equipment,5023,Revenue,03.GROCERIES & PROVISIONS
27-Feb-2018,7004793,8.37,AF BLAKEMORE & SON LIMITED T/A LOWRIES CASH & CARRY,332872,Commissioning & Investment,Children's & Education Services,103,Supplies and Services,504,Equipment,5023,Revenue,03.GROCERIES & PROVISIONS
27-Feb-2018,7004793,3.80,AF BLAKEMORE & SON LIMITED T/A LOWRIES CASH & CARRY,332872,Commissioning & Investment,Children's & Education Services,103,Supplies and Services,504,Equipment,5023,Revenue,03.GROCERIES & PROVISIONS
27-Feb-2018,7004793,6.92,AF BLAKEMORE & SON LIMITED T/A LOWRIES CASH & CARRY,332872,Commissioning & Investment,Children's & Education Services,103,Supplies and Services,504,Equipment,5023,Revenue,03.GROCERIES & PROVISIONS
27-Feb-2018,7004793,29.64,AF BLAKEMORE & SON LIMITED T/A LOWRIES CASH & CARRY,332872,Commissioning & Investment,Children's & Education Services,103,Supplies and Services,504,Equipment,5023,Revenue,03.GROCERIES & PROVISIONS
27-Feb-2018,7004793,29.08,AF BLAKEMORE & SON LIMITED T/A LOWRIES CASH & CARRY,332872,Commissioning & Investment,Children's & Education Services,103,Supplies and Services,504,Equipment,5023,Revenue,03.GROCERIES & PROVISIONS
27-Feb-2018,7004793,34.08,AF BLAKEMORE & SON LIMITED T/A LOWRIES CASH & CARRY,332872,Commissioning & Investment,Children's & Education Services,103,Supplies and Services,504,Equipment,5023,Revenue,03.GROCERIES & PROVISIONS
27-Feb-2018,7004793,3.90,AF BLAKEMORE & SON LIMITED T/A LOWRIES CASH & CARRY,332872,Commissioning & Investment,Children's & Education Services,103,Supplies and Services,504,Equipment,5023,Revenue,03.GROCERIES & PROVISIONS
27-Feb-2018,7004793,3.89,AF BLAKEMORE & SON LIMITED T/A LOWRIES CASH & CARRY,332872,Commissioning & Investment,Children's & Education Services,103,Supplies and Services,504,Equipment,5023,Revenue,03.GROCERIES & PROVISIONS
27-Feb-2018,7004793,22.04,AF BLAKEMORE & SON LIMITED T/A LOWRIES CASH & CARRY,332872,Commissioning & Investment,Children's & Education Services,103,Supplies and Services,504,Equipment,5023,Revenue,03.GROCERIES & PROVISIONS
27-Feb-2018,7004793,10.99,AF BLAKEMORE & SON LIMITED T/A LOWRIES CASH & CARRY,332872,Commissioning & Investment,Children's & Education Services,103,Supplies and Services,504,Equipment,5023,Revenue,03.GROCERIES & PROVISIONS
27-Feb-2018,7004793,8.84,AF BLAKEMORE & SON LIMITED T/A LOWRIES CASH & CARRY,332872,Commissioning & Investment,Children's & Education Services,103,Supplies and Services,504,Equipment,5023,Revenue,03.GROCERIES & PROVISIONS
27-Feb-2018,7004793,14.70,AF BLAKEMORE & SON LIMITED T/A LOWRIES CASH & CARRY,332872,Commissioning & Investment,Children's & Education Services,103,Supplies and Services,504,Equipment,5023,Revenue,03.GROCERIES & PROVISIONS
27-Feb-2018,7004793,3.89,AF BLAKEMORE & SON LIMITED T/A LOWRIES CASH & CARRY,332872,Commissioning & Investment,Children's & Education Services,103,Supplies and Services,504,Equipment,5023,Revenue,03.GROCERIES & PROVISIONS
27-Feb-2018,7004793,3.46,AF BLAKEMORE & SON LIMITED T/A LOWRIES CASH & CARRY,332872,Commissioning & Investment,Children's & Education Services,103,Supplies and Services,504,Equipment,5023,Revenue,03.GROCERIES & PROVISIONS
27-Feb-2018,7004793,10.99,AF BLAKEMORE & SON LIMITED T/A LOWRIES CASH & CARRY,332872,Commissioning & Investment,Children's & Education Services,103,Supplies and Services,504,Equipment,5023,Revenue,03.GROCERIES & PROVISIONS
27-Feb-2018,7004793,4.70,AF BLAKEMORE & SON LIMITED T/A LOWRIES CASH & CARRY,332872,Commissioning & Investment,Children's & Education Services,103,Supplies and Services,504,Equipment,5023,Revenue,03.GROCERIES & PROVISIONS
